Workbook

Sheet Front sheet
B11: Website: | D11: fingertips.phe.org.uk
B12: Address: | D12: Public Health England, Wellington House, 133-155 Waterloo Road, London, SE1 8UG
B13: Email: | D13: profilefeedback@phe.gov.uk
B15: Data Link: | D15: http://fingertips.phe.org.uk/sexualhealth
B16: Date extracted: | D16: 2017-10-05

Sheet New STI (All)
A1: All persons, new STI diagnosis rate per 100,000
A4: The number of new STI diagnoses among people accessing sexual health services* in England who are also residents in England.
A6: Sexual health services (SHS) include both specialist (level 3) and non-specialist (level 1 & 2) SHSs. Specialist SHSs refers to genitourinary medicine (GUM) and integrated GUM/sexual and reproductive health (SRH). Non-specialist SHSs refers to SRH services, young people’s services, online sexual health services, termination of pregnancy services, pharmacies, outreach, general practice, and other community-based settings
A10: 2016 New STI diagnosis rate per 100,000
A11: Area Name | B11: Count | C11: Denominator | D11: Value | E11: Lower CI 95.0 limit | F11: Upper CI 95.0 limit | G11: Significance | I11: England | J11: L CI | K11: U CI
A12: England | B12: 410715 | C12: 54786327 | D12: 749.67 | E12: 747.38 | F12: 751.96 | G12: - | I12: =$D$12 -> 749.67 | J12: =D12-E12 -> 2.29 | K12: =F12-D12 -> 2.29
A13: Blackburn with Darwen | B13: 1406 | C13: 146846 | D13: 957.47 | E13: 908.07 | F13: 1008.85 | G13: Higher | I13: =$D$12 -> 749.67 | J13: =D13-E13 -> 49.4 | K13: =F13-D13 -> 51.38
A14: Blackpool | B14: 1490 | C14: 139578 | D14: 1067.5 | E14: 1013.98 | F14: 1123.12 | G14: Higher | I14: 749.67 | J14: 53.52 | K14: 55.62
A15: Lancashire-12 | B15: 7963 | C15: 1191691 | D15: 668.21 | E15: 653.61 | F15: 683.05 | G15: Lower | I15: 749.67 | J15: 14.6 | K15: 14.84
A16: Burnley | B16: 717 | C16: 87371 | D16: 820.64 | E16: 761.66 | F16: 882.97 | G16: Higher | I16: 749.67 | J16: 58.98 | K16: 62.33
A17: Chorley | B17: 571 | C17: 112969 | D17: 505.45 | E17: 464.84 | F17: 548.66 | G17: Lower | I17: 749.67 | J17: 40.61 | K17: 43.21
A18: Fylde | B18: 447 | C18: 77322 | D18: 578.1 | E18: 525.75 | F18: 634.26 | G18: Lower | I18: 749.67 | J18: 52.35 | K18: 56.16
A19: Hyndburn | B19: 388 | C19: 80228 | D19: 483.62 | E19: 436.69 | F19: 534.22 | G19: Lower | I19: 749.67 | J19: 46.93 | K19: 50.6
A20: Lancaster | B20: 1188 | C20: 142283 | D20: 834.96 | E20: 788.15 | F20: 883.82 | G20: Higher | I20: 749.67 | J20: 46.81 | K20: 48.86
A21: Pendle | B21: 421 | C21: 90111 | D21: 467.2 | E21: 423.63 | F21: 514.03 | G21: Lower | I21: 749.67 | J21: 43.57 | K21: 46.83
A22: Preston | B22: 1772 | C22: 141302 | D22: 1254.05 | E22: 1196.34 | F22: 1313.83 | G22: Higher | I22: 749.67 | J22: 57.71 | K22: 59.78
A23: Ribble Valley | B23: 248 | C23: 58480 | D23: 424.08 | E23: 372.93 | F23: 480.27 | G23: Lower | I23: 749.67 | J23: 51.15 | K23: 56.19
A24: Rossendale | B24: 397 | C24: 69487 | D24: 571.33 | E24: 516.5 | F24: 630.39 | G24: Lower | I24: 749.67 | J24: 54.83 | K24: 59.06
A25: South Ribble | B25: 605 | C25: 109651 | D25: 551.75 | E25: 508.65 | F25: 597.52 | G25: Lower | I25: 749.67 | J25: 43.1 | K25: 45.77
A26: West Lancashire | B26: 574 | C26: 112742 | D26: 509.13 | E26: 468.32 | F26: 552.53 | G26: Lower | I26: 749.67 | J26: 40.81 | K26: 43.4
A27: Wyre | B27: 635 | C27: 109745 | D27: 578.61 | E27: 534.48 | F27: 625.42 | G27: Lower | I27: 749.67 | J27: 44.13 | K27: 46.81
B29: << Select area
A30: New STI diagnosis rate per 100,000
A31: Area Name | B31: 2012 | C31: 2013 | D31: 2014 | E31: 2015 | F31: 2016
A32: England | B32: 812.19 | C32: 817.29 | D32: 811.68 | E32: 777.8 | F32: 749.67
A33: Blackburn with Darwen | B33: =SUM(IF($A$37:$A$51=$A$33,IF($B$35:$F$35=B31,$B$37:$F$51))) -> 708.81 | C33: =SUM(IF($A$37:$A$51=$A$33,IF($B$35:$F$35=C31,$B$37:$F$51))) -> 549.64 | D33: =SUM(IF($A$37:$A$51=$A$33,IF($B$35:$F$35=D31,$B$37:$F$51))) -> 575.16 | E33: =SUM(IF($A$37:$A$51=$A$33,IF($B$35:$F$35=E31,$B$37:$F$51))) -> 794.03 | F33: =SUM(IF($A$37:$A$51=$A$33,IF($B$35:$F$35=F31,$B$37:$F$51))) -> 957.47
A35: Area Name | B35: 2012 | C35: 2013 | D35: 2014 | E35: 2015 | F35: 2016
A36: England | B36: 812.19 | C36: 817.29 | D36: 811.68 | E36: 777.8 | F36: 749.67
A37: Blackburn with Darwen | B37: 708.81 | C37: 549.64 | D37: 575.16 | E37: 794.03 | F37: 957.47
A38: Blackpool | B38: 1406.58 | C38: 1198.73 | D38: 1143.76 | E38: 1129.12 | F38: 1067.5
A39: Lancashire-12 | B39: 751.8 | C39: 733.85 | D39: 740.67 | E39: 698.84 | F39: 668.21
A40: Burnley | B40: 811.46 | C40: 660.57 | D40: 820.24 | E40: 802.33 | F40: 820.64
A41: Chorley | B41: 523.48 | C41: 614.45 | D41: 623.62 | E41: 524.04 | F41: 505.45
A42: Fylde | B42: 565.64 | C42: 607 | D42: 645.1 | E42: 602.67 | F42: 578.1
A43: Hyndburn | B43: 668.41 | C43: 630.89 | D43: 597.2 | E43: 621.98 | F43: 483.62
A44: Lancaster | B44: 1147.75 | C44: 1120.4 | D44: 1142.44 | E44: 1107.65 | F44: 834.96
A45: Pendle | B45: 581.39 | C45: 473.75 | D45: 587.71 | E45: 429.47 | F45: 467.2
A46: Preston | B46: 1218.16 | C46: 1103.84 | D46: 1018.85 | E46: 961.06 | F46: 1254.05
A47: Ribble Valley | B47: 527.81 | C47: 419.99 | D47: 406.26 | E47: 490.77 | F47: 424.08
A48: Rossendale | B48: 618.73 | C48: 635.69 | D48: 649.14 | E48: 549.74 | F48: 571.33
A49: South Ribble | B49: 616.68 | C49: 706.99 | D49: 605.99 | E49: 602.82 | F49: 551.75
A50: West Lancashire | B50: 640.97 | C50: 626.16 | D50: 664.64 | E50: 627.98 | F50: 509.13
A51: Wyre | B51: 603.4 | C51: 682.77 | D51: 665.8 | E51: 647.87 | F51: 578.61

Sheet New STI (Ex chlamydia)
A1: All persons, new STI (Excluding chlamydia) diagnosis <25 rate per 100,000
A4: The number of new STI diagnoses (Excluding chlamydia) among people aged <25 accessing sexual health services* in England who are also residents in England.
A6: Sexual health services (SHS) include both specialist (level 3) and non-specialist (level 1 & 2) SHSs. Specialist SHSs refers to genitourinary medicine (GUM) and integrated GUM/sexual and reproductive health (SRH). Non-specialist SHSs refers to SRH services, young people’s services, online sexual health services, termination of pregnancy services, pharmacies, outreach, general practice, and other community-based settings
A10: 2016 New STI diagnosis (Excluding chlamydia) rate per 100,000
A11: Area Name | B11: Count | C11: Denominator | D11: Value | E11: Lower CI 95.0 limit | F11: Upper CI 95.0 limit | G11: Significance | I11: England | J11: L CI | K11: U CI
A12: England | B12: 280622 | C12: 35282317 | D12: 795.36157 | E12: 792.42157 | F12: 798.30988 | G12: - | I12: =$D$12 -> 795.36157 | J12: =D12-E12 -> 2.94 | K12: =F12-D12 -> 2.94831
A13: Blackburn with Darwen | B13: 606 | C13: 93885 | D13: 645.47052 | E13: 595.09558 | F13: 698.97046 | G13: Better | I13: =$D$12 -> 795.36157 | J13: =D13-E13 -> 50.37494 | K13: =F13-D13 -> 53.49994
A14: Blackpool | B14: 1005 | C14: 87366 | D14: 1150.3331 | E14: 1080.3038 | F14: 1223.7104 | G14: Worse | I14: 795.36157 | J14: 70.0293 | K14: 73.3773
A15: Lancashire-12 | B15: 4701 | C15: 749831 | D15: 626.94128 | E15: 609.14618 | F15: 645.12427 | G15: Better | I15: 795.36157 | J15: 17.7951 | K15: 18.18299
A16: Burnley | B16: 449 | C16: 54897 | D16: 817.89532 | E16: 743.98279 | F16: 897.16382 | G16: Same | I16: 795.36157 | J16: 73.91253 | K16: 79.2685
A17: Chorley | B17: 395 | C17: 71911 | D17: 549.2901 | E17: 496.44995 | F17: 606.22314 | G17: Better | I17: 795.36157 | J17: 52.84015 | K17: 56.93304
A18: Fylde | B18: 283 | C18: 45519 | D18: 621.71838 | E18: 551.38611 | F18: 698.53601 | G18: Better | I18: 795.36157 | J18: 70.33227 | K18: 76.81763
A19: Hyndburn | B19: 251 | C19: 50375 | D19: 498.26303 | E19: 438.52319 | F19: 563.87 | G19: Better | I19: 795.36157 | J19: 59.73984 | K19: 65.60697
A20: Lancaster | B20: 628 | C20: 92481 | D20: 679.05841 | E20: 626.97998 | F20: 734.30847 | G20: Better | I20: 795.36157 | J20: 52.07843 | K20: 55.25006
A21: Pendle | B21: 298 | C21: 56178 | D21: 530.45679 | E21: 471.93323 | F21: 594.23248 | G21: Better | I21: 795.36157 | J21: 58.52356 | K21: 63.77569
A22: Preston | B22: 885 | C22: 94645 | D22: 935.07318 | E22: 874.47406 | F22: 998.76495 | G22: Worse | I22: 795.36157 | J22: 60.59912 | K22: 63.69177
A23: Ribble Valley | B23: 155 | C23: 35693 | D23: 434.25882 | E23: 368.5853 | F23: 508.25906 | G23: Better | I23: 795.36157 | J23: 65.67352 | K23: 74.00024
A24: Rossendale | B24: 260 | C24: 44420 | D24: 585.3219 | E24: 516.33063 | F24: 660.96454 | G24: Better | I24: 795.36157 | J24: 68.99127 | K24: 75.64264
A25: South Ribble | B25: 389 | C25: 68733 | D25: 565.95813 | E25: 511.10696 | F25: 625.09198 | G25: Better | I25: 795.36157 | J25: 54.85117 | K25: 59.13385
A26: West Lancashire | B26: 294 | C26: 70692 | D26: 415.88864 | E26: 369.70316 | F26: 466.2485 | G26: Better | I26: 795.36157 | J26: 46.18548 | K26: 50.35986
A27: Wyre | B27: 414 | C27: 64287 | D27: 643.98712 | E27: 583.44 | F27: 709.11078 | G27: Better | I27: 795.36157 | J27: 60.54712 | K27: 65.12366
B29: << Select area
A30: New STI diagnosis rate per 100,000
A31: Area Name | B31: 2012 | C31: 2013 | D31: 2014 | E31: 2015 | F31: 2016
A32: England | B32: 831.97406 | C32: 843.51196 | D32: 853.06665 | E32: 833.24176 | F32: 795.36157
A33: Burnley | B33: =SUM(IF($A$37:$A$51=$A$33,IF($B$35:$F$35=B31,$B$37:$F$51))) -> 764.99225 | C33: =SUM(IF($A$37:$A$51=$A$33,IF($B$35:$F$35=C31,$B$37:$F$51))) -> 677.0993 | D33: =SUM(IF($A$37:$A$51=$A$33,IF($B$35:$F$35=D31,$B$37:$F$51))) -> 799.71051 | E33: =SUM(IF($A$37:$A$51=$A$33,IF($B$35:$F$35=E31,$B$37:$F$51))) -> 750.4964 | F33: =SUM(IF($A$37:$A$51=$A$33,IF($B$35:$F$35=F31,$B$37:$F$51))) -> 817.89532
A35: Area Name | B35: 2012 | C35: 2013 | D35: 2014 | E35: 2015 | F35: 2016
A36: England | B36: 831.97406 | C36: 843.51196 | D36: 853.06665 | E36: 833.24176 | F36: 795.36157
A37: Blackburn with Darwen | B37: 588.7204 | C37: 534.5174 | D37: 540.46594 | E37: 659.31726 | F37: 645.47052
A38: Blackpool | B38: 1206.1416 | C38: 1109.8804 | D38: 1063.1793 | E38: 1110.2717 | F38: 1150.3331
A39: Lancashire-12 | B39: 695.04999 | C39: 668.40363 | D39: 674.06702 | E39: 638.81061 | F39: 626.94128
A40: Burnley | B40: 764.99225 | C40: 677.0993 | D40: 799.71051 | E40: 750.4964 | F40: 817.89532
A41: Chorley | B41: 532.33325 | C41: 565.35126 | D41: 555.07397 | E41: 507.57187 | F41: 549.2901
A42: Fylde | B42: 592.46625 | C42: 671.17041 | D42: 677.27515 | E42: 694.21558 | F42: 621.71838
A43: Hyndburn | B43: 715.34094 | C43: 674.02924 | D43: 611.77771 | E43: 557.81641 | F43: 498.26303
A44: Lancaster | B44: 785.34314 | C44: 757.19666 | D44: 830.29938 | E44: 844.4978 | F44: 679.05841
A45: Pendle | B45: 633.34204 | C45: 466.15961 | D45: 638.45636 | E45: 446.79413 | F45: 530.45679
A46: Preston | B46: 981.81854 | C46: 948.80664 | D46: 860.49762 | E46: 805.11383 | F46: 935.07318
A47: Ribble Valley | B47: 559.26849 | C47: 433.96701 | D47: 419.15158 | E47: 456.67218 | F47: 434.25882
A48: Rossendale | B48: 625.37689 | C48: 590.06976 | D48: 658.79706 | E48: 506.52859 | F48: 585.3219
A49: South Ribble | B49: 617.38098 | C49: 676.63098 | D49: 564.34882 | E49: 597.96606 | F49: 565.95813
A50: West Lancashire | B50: 642.23438 | C50: 596.73499 | D50: 523.53052 | E50: 533.29938 | F50: 415.88864
A51: Wyre | B51: 637.59485 | C51: 661.99377 | D51: 713.5719 | E51: 693.76392 | F51: 643.98712

Sheet STI testing rate
A1: STI testing rate (exc chlamydia aged <25) per 100,000
A4: The number of all tests done per episode for syphilis, HIV, gonorrhoea and chlamydia (aged over 25) among people accessing sexual health services* in England who are also residents in England.
A6: Sexual health services (SHS) include both specialist (level 3) and non-specialist (level 1 & 2) SHSs. Specialist SHSs refers to genitourinary medicine (GUM) and integrated GUM/sexual and reproductive health (SRH). Non-specialist SHSs refers to SRH services, young people’s services, online sexual health services, termination of pregnancy services, pharmacies, outreach, general practice, and other community-based settings
A10: STI testing rate (exc chlamydia aged <25) per 100,000
A11: Area Name | B11: Count | C11: Denominator | D11: Value | E11: Lower CI 95.0 limit | F11: Upper CI 95.0 limit | G11: Significance | I11: England | J11: L CI | K11: U CI
A12: England | B12: 5899843 | C12: 35282317 | D12: 16721.813 | E12: 16708.322 | F12: 16735.311 | G12: - | I12: =$D$12 -> 16721.813 | J12: =D12-E12 -> 13.491 | K12: =F12-D12 -> 13.498
A13: Blackburn with Darwen | B13: 12042 | C13: 93885 | D13: 12826.33 | E13: 12598.253 | F13: 13057.499 | G13: Worse | I13: =$D$12 -> 16721.813 | J13: =D13-E13 -> 228.077 | K13: =F13-D13 -> 231.169
A14: Blackpool | B14: 19216 | C14: 87366 | D14: 21994.826 | E14: 21684.928 | F14: 22308.045 | G14: Better | I14: 16721.813 | J14: 309.898 | K14: 313.219
A15: Lancashire-12 | B15: 85554 | C15: 749831 | D15: 11409.771 | E15: 11333.442 | F15: 11486.486 | G15: Worse | I15: 16721.813 | J15: 76.329 | K15: 76.715
A16: Burnley | B16: 7031 | C16: 54897 | D16: 12807.621 | E16: 12509.98 | F16: 13110.556 | G16: Worse | I16: 16721.813 | J16: 297.641 | K16: 302.935
A17: Chorley | B17: 6751 | C17: 71911 | D17: 9387.9932 | E17: 9165.3711 | F17: 9614.6572 | G17: Worse | I17: 16721.813 | J17: 222.6221 | K17: 226.664
A18: Fylde | B18: 5715 | C18: 45519 | D18: 12555.196 | E18: 12231.773 | F18: 12885.007 | G18: Worse | I18: 16721.813 | J18: 323.423 | K18: 329.811
A19: Hyndburn | B19: 4710 | C19: 50375 | D19: 9349.876 | E19: 9084.7412 | F19: 9620.7842 | G19: Worse | I19: 16721.813 | J19: 265.1348 | K19: 270.9082
A20: Lancaster | B20: 12846 | C20: 92481 | D20: 13890.421 | E20: 13651.243 | F20: 14132.737 | G20: Worse | I20: 16721.813 | J20: 239.178 | K20: 242.316
A21: Pendle | B21: 4991 | C21: 56178 | D21: 8884.2607 | E21: 8639.4746 | F21: 9134.2236 | G21: Worse | I21: 16721.813 | J21: 244.7861 | K21: 249.9629
A22: Preston | B22: 14118 | C22: 94645 | D22: 14916.794 | E22: 14671.739 | F22: 15164.917 | G22: Worse | I22: 16721.813 | J22: 245.055 | K22: 248.123
A23: Ribble Valley | B23: 3068 | C23: 35693 | D23: 8595.5225 | E23: 8294.0322 | F23: 8905.1729 | G23: Worse | I23: 16721.813 | J23: 301.4903 | K23: 309.6504
A24: Rossendale | B24: 4177 | C24: 44420 | D24: 9403.4219 | E24: 9120.3916 | F24: 9693.002 | G24: Worse | I24: 16721.813 | J24: 283.0303 | K24: 289.5801
A25: South Ribble | B25: 7678 | C25: 68733 | D25: 11170.763 | E25: 10922.277 | F25: 11423.475 | G25: Worse | I25: 16721.813 | J25: 248.486 | K25: 252.712
A26: West Lancashire | B26: 6322 | C26: 70692 | D26: 8943.0205 | E26: 8723.916 | F26: 9166.2363 | G26: Worse | I26: 16721.813 | J26: 219.1045 | K26: 223.2158
A27: Wyre | B27: 8147 | C27: 64287 | D27: 12672.857 | E27: 12399.149 | F27: 12951.085 | G27: Worse | I27: 16721.813 | J27: 273.708 | K27: 278.228
B29: << Select area
A30: STI testing rate (exc chlamydia aged <25) per 100,000
A31: Area Name | B31: 2012 | C31: 2013 | D31: 2014 | E31: 2015 | F31: 2016
A32: England | B32: 14440.014 | C32: 15346.135 | D32: 16105.581 | E32: 16348.033 | F32: 16721.813
A33: Chorley | B33: =SUM(IF($A$37:$A$51=$A$33,IF($B$35:$F$35=B31,$B$37:$F$51))) -> 8142.3115 | C33: =SUM(IF($A$37:$A$51=$A$33,IF($B$35:$F$35=C31,$B$37:$F$51))) -> 8851.1055 | D33: =SUM(IF($A$37:$A$51=$A$33,IF($B$35:$F$35=D31,$B$37:$F$51))) -> 8959.4814 | E33: =SUM(IF($A$37:$A$51=$A$33,IF($B$35:$F$35=E31,$B$37:$F$51))) -> 8447.9424 | F33: =SUM(IF($A$37:$A$51=$A$33,IF($B$35:$F$35=F31,$B$37:$F$51))) -> 9387.9932
A35: Area Name | B35: 2012 | C35: 2013 | D35: 2014 | E35: 2015 | F35: 2016
A36: England | B36: 14440.014 | C36: 15346.135 | D36: 16105.581 | E36: 16348.033 | F36: 16721.813
A37: Blackburn with Darwen | B37: 8626.2148 | C37: 7291.7432 | D37: 7323.3662 | E37: 11132.769 | F37: 12826.33
A38: Blackpool | B38: 17878.166 | C38: 18294.006 | D38: 18606.205 | E38: 18915.826 | F38: 21994.826
A39: Lancashire-12 | B39: 14440.014 | C39: 15346.135 | D39: 16105.581 | E39: 16348.033 | F39: 16721.813
A40: Burnley | B40: 10950.623 | C40: 9392.9521 | D40: 11107.291 | E40: 11190.047 | F40: 12807.621
A41: Chorley | B41: 8142.3115 | C41: 8851.1055 | D41: 8959.4814 | E41: 8447.9424 | F41: 9387.9932
A42: Fylde | B42: 9536.3018 | C42: 10381.207 | D42: 11472.032 | E42: 11603.945 | F42: 12555.196
A43: Hyndburn | B43: 9760.1279 | C43: 8003.8516 | D43: 7803.126 | E43: 9300.248 | F43: 9349.876
A44: Lancaster | B44: 14930.234 | C44: 15133.054 | D44: 16367.983 | E44: 15682.14 | F44: 13890.421
A45: Pendle | B45: 8709.7617 | C45: 7300.8306 | D45: 9337.4238 | E45: 8841.5391 | F45: 8884.2607
A46: Preston | B46: 14082.502 | C46: 13836.763 | D46: 13707.558 | E46: 12838.502 | F46: 14916.794
A47: Ribble Valley | B47: 8338.6934 | C47: 6803.4829 | D47: 7066.5015 | E47: 8306.9512 | F47: 8595.5225
A48: Rossendale | B48: 9521.3633 | C48: 8909.3809 | D48: 9661.6074 | E48: 8901.3955 | F48: 9403.4219
A49: South Ribble | B49: 10818.459 | C49: 10987.68 | D49: 10239.521 | E49: 10219.254 | F49: 11170.763
A50: West Lancashire | B50: 8220.0322 | C50: 7952.2046 | D50: 7938.0845 | E50: 9490.4658 | F50: 8943.0205
A51: Wyre | B51: 9753.1846 | C51: 10912.772 | D51: 11362.501 | E51: 11447.104 | F51: 12672.857

Sheet STI testing + % rate
A1: Sexually transmitted infection (STI) testing positivity rate (excluding chlamydia in under 25 year olds) percent
A4: The number of new STI diagnoses excluding chlamydia in those aged under 25 years among people accessing sexual health services* in England who are also residents in England
A6: Sexual health services (SHS) include both specialist (level 3) and non-specialist (level 1 & 2) SHSs. Specialist SHSs refers to genitourinary medicine (GUM) and integrated GUM/sexual and reproductive health (SRH). Non-specialist SHSs refers to SRH services, young people’s services, online sexual health services, termination of pregnancy services, pharmacies, outreach, general practice, and other community-based settings
A10: Sexually transmitted infection (STI) % of positve tests
A11: Area Name | B11: Count | C11: Denominator | D11: Value | E11: Lower CI 95.0 limit | F11: Upper CI 95.0 limit | G11: Significance | I11: England | J11: L CI | K11: U CI
A12: England | B12: 280622 | C12: 5899843 | D12: 4.8 | E12: 4.7 | F12: 4.8 | G12: - | I12: =$D$12 -> 4.8 | J12: =D12-E12 -> 0.1 | K12: =F12-D12 -> 0
A13: Blackburn with Darwen | B13: 606 | C13: 12042 | D13: 5 | E13: 4.6 | F13: 5.4 | G13: Same | I13: =$D$12 -> 4.8 | J13: =D13-E13 -> 0.4 | K13: =F13-D13 -> 0.4
A14: Blackpool | B14: 1005 | C14: 19216 | D14: 5.2 | E14: 4.9 | F14: 5.6 | G14: Better | I14: 4.8 | J14: 0.3 | K14: 0.4
A15: Lancashire-12 | B15: 4701 | C15: 85554 | D15: 5.5 | E15: 5.3 | F15: 5.6 | G15: Better | I15: 4.8 | J15: 0.2 | K15: 0.1
A16: Burnley | B16: 449 | C16: 7031 | D16: 6.4 | E16: 5.8 | F16: 7 | G16: Better | I16: 4.8 | J16: 0.6 | K16: 0.6
A17: Chorley | B17: 395 | C17: 6751 | D17: 5.9 | E17: 5.3 | F17: 6.4 | G17: Better | I17: 4.8 | J17: 0.6 | K17: 0.5
A18: Fylde | B18: 283 | C18: 5715 | D18: 5 | E18: 4.4 | F18: 5.5 | G18: Same | I18: 4.8 | J18: 0.6 | K18: 0.5
A19: Hyndburn | B19: 251 | C19: 4710 | D19: 5.3 | E19: 4.7 | F19: 6 | G19: Same | I19: 4.8 | J19: 0.6 | K19: 0.7
A20: Lancaster | B20: 628 | C20: 12846 | D20: 4.9 | E20: 4.5 | F20: 5.3 | G20: Same | I20: 4.8 | J20: 0.4 | K20: 0.4
A21: Pendle | B21: 298 | C21: 4991 | D21: 6 | E21: 5.3 | F21: 6.7 | G21: Better | I21: 4.8 | J21: 0.7 | K21: 0.7
A22: Preston | B22: 885 | C22: 14118 | D22: 6.3 | E22: 5.9 | F22: 6.7 | G22: Better | I22: 4.8 | J22: 0.4 | K22: 0.4
A23: Ribble Valley | B23: 155 | C23: 3068 | D23: 5.1 | E23: 4.3 | F23: 5.9 | G23: Same | I23: 4.8 | J23: 0.8 | K23: 0.8
A24: Rossendale | B24: 260 | C24: 4177 | D24: 6.2 | E24: 5.5 | F24: 7 | G24: Better | I24: 4.8 | J24: 0.7 | K24: 0.8
A25: South Ribble | B25: 389 | C25: 7678 | D25: 5.1 | E25: 4.6 | F25: 5.6 | G25: Same | I25: 4.8 | J25: 0.5 | K25: 0.5
A26: West Lancashire | B26: 294 | C26: 6322 | D26: 4.7 | E26: 4.1 | F26: 5.2 | G26: Same | I26: 4.8 | J26: 0.6 | K26: 0.5
A27: Wyre | B27: 414 | C27: 8147 | D27: 5.1 | E27: 4.6 | F27: 5.6 | G27: Same | I27: 4.8 | J27: 0.5 | K27: 0.5
B29: << Select area
A30: Sexually transmitted infection (STI) % of positve tests
A31: Area Name | B31: 2012 | C31: 2013 | D31: 2014 | E31: 2015 | F31: 2016
A32: England | B32: =B36 -> 5.8 | C32: =C36 -> 5.5 | D32: 5.3 | E32: 5.1 | F32: 4.8
A33: Lancaster | B33: =SUM(IF($A$37:$A$51=$A$33,IF($B$35:$F$35=B31,$B$37:$F$51))) -> 5.3 | C33: =SUM(IF($A$37:$A$51=$A$33,IF($B$35:$F$35=C31,$B$37:$F$51))) -> 5 | D33: =SUM(IF($A$37:$A$51=$A$33,IF($B$35:$F$35=D31,$B$37:$F$51))) -> 5.1 | E33: =SUM(IF($A$37:$A$51=$A$33,IF($B$35:$F$35=E31,$B$37:$F$51))) -> 5.4 | F33: =SUM(IF($A$37:$A$51=$A$33,IF($B$35:$F$35=F31,$B$37:$F$51))) -> 4.9
A35: Area Name | B35: 2012 | C35: 2013 | D35: 2014 | E35: 2015 | F35: 2016
A36: England | B36: 5.8 | C36: 5.5 | D36: 5.3 | E36: 5.1 | F36: 4.8
A37: Blackburn with Darwen | B37: 6.8 | C37: 7.3 | D37: 7.4 | E37: 5.9 | F37: 5
A38: Blackpool | B38: 6.7 | C38: 6.1 | D38: 5.7 | E38: 5.9 | F38: 5.2
A39: Lancashire-12 | B39: 6.5 | C39: 6.4 | D39: 6.2 | E39: 5.9 | F39: 5.5
A40: Burnley | B40: 7 | C40: 7.2 | D40: 7.2 | E40: 6.7 | F40: 6.4
A41: Chorley | B41: 6.5 | C41: 6.4 | D41: 6.2 | E41: 6 | F41: 5.9
A42: Fylde | B42: 6.2 | C42: 6.5 | D42: 5.9 | E42: 6 | F42: 5
A43: Hyndburn | B43: 7.3 | C43: 8.4 | D43: 7.8 | E43: 6 | F43: 5.3
A44: Lancaster | B44: 5.3 | C44: 5 | D44: 5.1 | E44: 5.4 | F44: 4.9
A45: Pendle | B45: 7.3 | C45: 6.4 | D45: 6.8 | E45: 5.1 | F45: 6
A46: Preston | B46: 7 | C46: 6.9 | D46: 6.3 | E46: 6.3 | F46: 6.3
A47: Ribble Valley | B47: 6.7 | C47: 6.4 | D47: 5.9 | E47: 5.5 | F47: 5.1
A48: Rossendale | B48: 6.6 | C48: 6.6 | D48: 6.8 | E48: 5.7 | F48: 6.2
A49: South Ribble | B49: 5.7 | C49: 6.2 | D49: 5.5 | E49: 5.9 | F49: 5.1
A50: West Lancashire | B50: 7.8 | C50: 7.5 | D50: 6.6 | E50: 5.6 | F50: 4.7
A51: Wyre | B51: 6.5 | C51: 6.1 | D51: 6.3 | E51: 6.1 | F51: 5.1

Sheet Chlamydia detection
A1: Chlamydia detection rate / 100,000 aged 15-24 (PHOF indicator 3.02)
A4: All chlamydia diagnoses in 15 to 24 year olds attending specialist and non-specialist sexual health services (SHSs)*, who are residents in England, expressed as a rate per 100,000 population.
A7: *Sexual health services (SHS) include both specialist (level 3) and non-specialist (level 1 & 2) SHSs. Specialist SHSs refers to genitourinary medicine (GUM) and integrated GUM/sexual and reproductive health (SRH) services. Non-specialist SHSs refers to SRH services, young people’s services, online sexual health services, termination of pregnancy services, pharmacies, outreach, general practice, and other community-based settings.
A11: 2016 Chlamydia detection rate / 100,000 aged 15-24 (PHOF indicator 3.02)
A12: Area Name | B12: All Person | H12: Female | M12: Male
B13: Count | C13: Denominator | D13: Value | E13: Lower CI 95.0 limit | F13: Upper CI 95.0 limit | G13: Significance | H13: Count | I13: Value | J13: Lower CI 95.0 limit | K13: Upper CI 95.0 limit | L13: Significance | M13: Count | N13: Value | O13: Lower CI 95.0 limit | P13: Upper CI 95.0 limit | Q13: Significance
A14: England | B14: 128098 | C14: 6805546 | D14: 1882.258969 | E14: 1871.965323 | F14: 1892.595184 | G14: - | H14: 82371 | I14: 2479.139604 | J14: 2462.237934 | K14: 2496.128487 | L14: - | M14: 44195 | N14: 1268.883962 | O14: 1257.081213 | P14: 1280.769943 | Q14: -
A15: Blackburn with Darwen | B15: 794 | C15: 19028 | D15: 4172.797982 | E15: 3887.558881 | F15: 4473.429198 | G15: Better | H15: 497 | I15: 5469.953775 | J15: 4999.554443 | K15: 5972.686652 | L15: =IF(J15>$K$14,"Better",IF(K15<$J$14,"Worse","Same")) -> Better | M15: 292 | N15: 2937.034802 | O15: 2609.787735 | P15: 3293.965604 | Q15: =IF(O15>$P$14,"Better",IF(P15<$O$14,"Worse","Same")) -> Better
A16: Blackpool | B16: 466 | C16: 16490 | D16: 2825.955124 | E16: 2575.162982 | F16: 3094.571614 | G16: Better | H16: 297 | I16: 3592.162554 | J16: 3195.204248 | K16: 4024.808824 | L16: =IF(J16>$K$14,"Better",IF(K16<$J$14,"Worse","Same")) -> Better | M16: 169 | N16: 2055.460958 | O16: 1757.241905 | P16: 2389.788154 | Q16: =IF(O16>$P$14,"Better",IF(P16<$O$14,"Worse","Same")) -> Better
A17: Lancashire-12 | B17: 3184 | C17: 151539 | D17: 2101.109285 | E17: 2028.755052 | F17: 2175.384876 | G17: Better | H17: 2106 | I17: 2853.271914 | J17: 2732.699452 | K17: 2977.794463 | L17: Better | M17: 1052 | N17: 1353.420216 | O17: 1272.859981 | P17: 1437.742645 | Q17: Same
A18: Burnley | B18: 265 | C18: 10379 | D18: 2553.232489 | E18: 2255.049129 | F18: 2879.876733 | G18: Better | H18: 174 | I18: 3461.308932 | J18: 2966.104665 | K18: 4015.549338 | L18: Better | M18: 91 | N18: 1700.298954 | O18: 1368.974654 | P18: 2087.590339 | Q18: Better
A19: Chorley | B19: 170 | C19: 11813 | D19: 1439.092525 | E19: 1230.890722 | F19: 1672.424227 | G19: Worse | H19: 105 | I19: 1826.404592 | J19: 1493.818009 | K19: 2210.974115 | L19: Worse | M19: 63 | N19: 1038.918206 | O19: 798.333275 | P19: 1329.227693 | Q19: Same
A20: Fylde | B20: 153 | C20: 7121 | D20: 2148.574638 | E20: 1821.614594 | F20: 2517.278249 | G20: Same | H20: 105 | I20: 3189.550425 | J20: 2608.736249 | K20: 3861.145257 | L20: Better | M20: 47 | N20: 1227.474536 | O20: 901.9021198 | P20: 1632.280918 | Q20: Same
A21: Hyndburn | B21: 134 | C21: 9670 | D21: 1385.729059 | E21: 1161.047083 | F21: 1641.205715 | G21: Worse | H21: 85 | I21: 1801.229074 | J21: 1438.757809 | K21: 2227.247644 | L21: Worse | M21: 49 | N21: 989.6990507 | O21: 732.1848061 | P21: 1308.434631 | Q21: Same
A22: Lancaster | B22: 556 | C22: 25414 | D22: 2187.77052 | E22: 2009.673164 | F22: 2377.4185 | G22: Better | H22: 357 | I22: 2872.083669 | J22: 2581.847378 | K22: 3186.01881 | L22: Better | M22: 182 | N22: 1401.7252 | O22: 1205.469431 | P22: 1620.825505 | Q22: Same
A23: Pendle | B23: 116 | C23: 9965 | D23: 1164.07426 | E23: 961.8970848 | F23: 1396.196191 | G23: Worse | H23: 80 | I23: 1644.398767 | J23: 1303.905953 | K23: 2046.596608 | L23: Worse | M23: 36 | N23: 705.8823529 | O23: 494.3913219 | P23: 977.2387155 | Q23: Worse
A24: Preston | B24: 875 | C24: 23905 | D24: 3660.322108 | E24: 3421.777086 | F24: 3911.11222 | G24: Better | H24: 573 | I24: 4907.082299 | J24: 4513.462665 | K24: 5325.835665 | L24: Better | M24: 299 | N24: 2445.20772 | O24: 2175.874367 | P24: 2738.67007 | Q24: Better
A25: Ribble Valley | B25: 91 | C25: 6248 | D25: 1456.466069 | E25: 1172.655626 | F25: 1788.217588 | G25: Worse | H25: 62 | I25: 2115.319004 | J25: 1621.802951 | K25: 2711.743496 | L25: Same | M25: 28 | N25: 844.1362677 | O25: 560.9224195 | P25: 1220.011937 | Q25: Worse
A26: Rossendale | B26: 130 | C26: 7556 | D26: 1720.48703 | E26: 1437.462397 | F26: 2042.938638 | G26: Same | H26: 100 | I26: 2693.239968 | J26: 2191.327532 | K26: 3275.701422 | L26: Same | M26: 30 | N26: 780.6401249 | O26: 526.6946141 | P26: 1114.412318 | Q26: Worse
A27: South Ribble | B27: 206 | C27: 11819 | D27: 1742.956257 | E27: 1513.055385 | F27: 1997.91737 | G27: Same | H27: 133 | I27: 2326.801959 | J27: 1948.182657 | K27: 2757.523335 | L27: Same | M27: 73 | N27: 1196.133049 | O27: 937.5773705 | P27: 1503.957729 | Q27: Same
A28: West Lancashire | B28: 275 | C28: 16213 | D28: 1696.16974 | E28: 1501.60329 | F28: 1908.949175 | G28: Same | H28: 188 | I28: 2277.683547 | J28: 1963.722389 | K28: 2627.566596 | L28: Same | M28: 85 | N28: 1067.973363 | O28: 853.0591909 | P28: 1320.565603 | Q28: Same
A29: Wyre | B29: 213 | C29: 11436 | D29: 1862.539349 | E29: 1620.792861 | F29: 2130.175686 | G29: Same | H29: 144 | I29: 2648.519404 | J29: 2233.610837 | K29: 3118.144435 | L29: Same | M29: 69 | N29: 1150.191699 | O29: 894.9177956 | P29: 1455.641208 | Q29: Same
A31: Area | B31: All-person | F31: Female | J31: Male
B32: Value | C32: Lower CI 95.0 limit | D32: Upper CI 95.0 limit | E32: England | F32: Value | G32: Lower CI 95.0 limit | H32: Upper CI 95.0 limit | I32: England | J32: Value | K32: Lower CI 95.0 limit | L32: Upper CI 95.0 limit | M32: England
A33: England | B33: 1882.258969 | C33: =D14-E14 -> 10.293646 | D33: =F14-D14 -> 10.336215 | E33: =$B$33 -> 1882.258969 | F33: 2479.139604 | G33: =I14-J14 -> 16.90167 | H33: =K14-I14 -> 16.988883 | I33: =$F$33 -> 2479.139604 | J33: 1268.883962 | K33: =J33-O14 -> 11.802749 | L33: =P14-N14 -> 11.885981 | M33: =$J$33 -> 1268.883962
A34: Blackburn with Darwen | B34: 4172.797982 | C34: =D15-E15 -> 285.239101 | D34: =F15-D15 -> 300.631216 | E34: =$B$33 -> 1882.258969 | F34: 5469.953775 | G34: 470.399332 | H34: 502.732877 | I34: =$F$33 -> 2479.139604 | J34: 2937.034802 | K34: 327.247067 | L34: =P15-N15 -> 356.930802 | M34: =$J$33 -> 1268.883962
A35: Blackpool | B35: 2825.955124 | C35: 250.792142 | D35: 268.61649 | E35: 1882.258969 | F35: 3592.162554 | G35: 396.958306 | H35: 432.64627 | I35: 2479.139604 | J35: 2055.460958 | K35: 298.219053 | L35: 334.327196 | M35: 1268.883962
A36: Lancashire-12 | B36: 2101.109285 | C36: 72.354233 | D36: 74.275591 | E36: 1882.258969 | F36: 2853.271914 | G36: 120.572462 | H36: 124.522549 | I36: 2479.139604 | J36: 1353.420216 | K36: 80.560235 | L36: 84.322429 | M36: 1268.883962
A37: Burnley | B37: 2553.232489 | C37: 298.18336 | D37: 326.644244 | E37: 1882.258969 | F37: 3461.308932 | G37: 495.204267 | H37: 554.240406 | I37: 2479.139604 | J37: 1700.298954 | K37: 331.3243 | L37: 387.291385 | M37: 1268.883962
A38: Chorley | B38: 1439.092525 | C38: 208.201803 | D38: 233.331702 | E38: 1882.258969 | F38: 1826.404592 | G38: 332.586583 | H38: 384.569523 | I38: 2479.139604 | J38: 1038.918206 | K38: 240.584931 | L38: 290.309487 | M38: 1268.883962
A39: Fylde | B39: 2148.574638 | C39: 326.960044 | D39: 368.703611 | E39: 1882.258969 | F39: 3189.550425 | G39: 580.814176 | H39: 671.594832 | I39: 2479.139604 | J39: 1227.474536 | K39: 325.5724162 | L39: 404.806382 | M39: 1268.883962
A40: Hyndburn | B40: 1385.729059 | C40: 224.681976 | D40: 255.476656 | E40: 1882.258969 | F40: 1801.229074 | G40: 362.471265 | H40: 426.01857 | I40: 2479.139604 | J40: 989.6990507 | K40: 257.5142446 | L40: 318.7355803 | M40: 1268.883962
A41: Lancaster | B41: 2187.77052 | C41: 178.097356 | D41: 189.64798 | E41: 1882.258969 | F41: 2872.083669 | G41: 290.236291 | H41: 313.935141 | I41: 2479.139604 | J41: 1401.7252 | K41: 196.255769 | L41: 219.100305 | M41: 1268.883962
A42: Pendle | B42: 1164.07426 | C42: 202.1771752 | D42: 232.121931 | E42: 1882.258969 | F42: 1644.398767 | G42: 340.492814 | H42: 402.197841 | I42: 2479.139604 | J42: 705.8823529 | K42: 211.491031 | L42: 271.3563626 | M42: 1268.883962
A43: Preston | B43: 3660.322108 | C43: 238.545022 | D43: 250.790112 | E43: 1882.258969 | F43: 4907.082299 | G43: 393.619634 | H43: 418.753366 | I43: 2479.139604 | J43: 2445.20772 | K43: 269.333353 | L43: 293.46235 | M43: 1268.883962
A44: Ribble Valley | B44: 1456.466069 | C44: 283.810443 | D44: 331.751519 | E44: 1882.258969 | F44: 2115.319004 | G44: 493.516053 | H44: 596.424492 | I44: 2479.139604 | J44: 844.1362677 | K44: 283.2138482 | L44: 375.8756693 | M44: 1268.883962
A45: Rossendale | B45: 1720.48703 | C45: 283.024633 | D45: 322.451608 | E45: 1882.258969 | F45: 2693.239968 | G45: 501.912436 | H45: 582.461454 | I45: 2479.139604 | J45: 780.6401249 | K45: 253.9455108 | L45: 333.7721931 | M45: 1268.883962
A46: South Ribble | B46: 1742.956257 | C46: 229.900872 | D46: 254.961113 | E46: 1882.258969 | F46: 2326.801959 | G46: 378.619302 | H46: 430.721376 | I46: 2479.139604 | J46: 1196.133049 | K46: 258.5556785 | L46: 307.82468 | M46: 1268.883962
A47: West Lancashire | B47: 1696.16974 | C47: 194.56645 | D47: 212.779435 | E47: 1882.258969 | F47: 2277.683547 | G47: 313.961158 | H47: 349.883049 | I47: 2479.139604 | J47: 1067.973363 | K47: 214.9141721 | L47: 252.59224 | M47: 1268.883962
A48: Wyre | B48: 1862.539349 | C48: 241.746488 | D48: 267.636337 | E48: 1882.258969 | F48: 2648.519404 | G48: 414.908567 | H48: 469.625031 | I48: 2479.139604 | J48: 1150.191699 | K48: 255.2739034 | L48: 305.449509 | M48: 1268.883962
A53: =A57& " chlamydia detection rate per 100,000 aged 15-24 " -> Persons chlamydia detection rate per 100,000 aged 15-24
B55: << Select population
A57: Persons | B57: =MAX(B59:F74) -> 5109.8 | C57: =MIN(B59:F74) -> 1164.07426
A58: Select chart areas | B58: 2012 | C58: 2013 | D58: 2014 | E58: 2015 | F58: 2016
A59: England | B59: =SUM(IF(Lookup!$B$30:$P$30='Chlamydia detection'!$A$57,IF(Lookup!$A$32:$A$47='Chlamydia detection'!$A59,IF(Lookup!$B$31:$P$31='Chlamydia detection'!B$58,Lookup!$B$32:$P$47)))) -> 2094.6 | C59: =SUM(IF(Lookup!$B$30:$P$30='Chlamydia detection'!$A$57,IF(Lookup!$A$32:$A$47='Chlamydia detection'!$A59,IF(Lookup!$B$31:$P$31='Chlamydia detection'!C$58,Lookup!$B$32:$P$47)))) -> 2087.6 | D59: =SUM(IF(Lookup!$B$30:$P$30='Chlamydia detection'!$A$57,IF(Lookup!$A$32:$A$47='Chlamydia detection'!$A59,IF(Lookup!$B$31:$P$31='Chlamydia detection'!D$58,Lookup!$B$32:$P$47)))) -> 2035.3 | E59: =SUM(IF(Lookup!$B$30:$P$30='Chlamydia detection'!$A$57,IF(Lookup!$A$32:$A$47='Chlamydia detection'!$A59,IF(Lookup!$B$31:$P$31='Chlamydia detection'!E$58,Lookup!$B$32:$P$47)))) -> 1913.58636 | F59: =SUM(IF(Lookup!$B$30:$P$30='Chlamydia detection'!$A$57,IF(Lookup!$A$32:$A$47='Chlamydia detection'!$A59,IF(Lookup!$B$31:$P$31='Chlamydia detection'!F$58,Lookup!$B$32:$P$47)))) -> 1882.258969
A60: Blackburn with Darwen | B60: =SUM(IF(Lookup!$B$30:$P$30='Chlamydia detection'!$A$57,IF(Lookup!$A$32:$A$47='Chlamydia detection'!$A60,IF(Lookup!$B$31:$P$31='Chlamydia detection'!B$58,Lookup!$B$32:$P$47)))) -> 2381 | C60: =SUM(IF(Lookup!$B$30:$P$30='Chlamydia detection'!$A$57,IF(Lookup!$A$32:$A$47='Chlamydia detection'!$A60,IF(Lookup!$B$31:$P$31='Chlamydia detection'!C$58,Lookup!$B$32:$P$47)))) -> 1513.3 | D60: =SUM(IF(Lookup!$B$30:$P$30='Chlamydia detection'!$A$57,IF(Lookup!$A$32:$A$47='Chlamydia detection'!$A60,IF(Lookup!$B$31:$P$31='Chlamydia detection'!D$58,Lookup!$B$32:$P$47)))) -> 1721.3 | E60: =SUM(IF(Lookup!$B$30:$P$30='Chlamydia detection'!$A$57,IF(Lookup!$A$32:$A$47='Chlamydia detection'!$A60,IF(Lookup!$B$31:$P$31='Chlamydia detection'!E$58,Lookup!$B$32:$P$47)))) -> 2848.433887 | F60: =SUM(IF(Lookup!$B$30:$P$30='Chlamydia detection'!$A$57,IF(Lookup!$A$32:$A$47='Chlamydia detection'!$A60,IF(Lookup!$B$31:$P$31='Chlamydia detection'!F$58,Lookup!$B$32:$P$47)))) -> 4172.797982
A61: Blackpool | B61: =SUM(IF(Lookup!$B$30:$P$30='Chlamydia detection'!$A$57,IF(Lookup!$A$32:$A$47='Chlamydia detection'!$A61,IF(Lookup!$B$31:$P$31='Chlamydia detection'!B$58,Lookup!$B$32:$P$47)))) -> 5109.8 | C61: =SUM(IF(Lookup!$B$30:$P$30='Chlamydia detection'!$A$57,IF(Lookup!$A$32:$A$47='Chlamydia detection'!$A61,IF(Lookup!$B$31:$P$31='Chlamydia detection'!C$58,Lookup!$B$32:$P$47)))) -> 3893.2 | D61: =SUM(IF(Lookup!$B$30:$P$30='Chlamydia detection'!$A$57,IF(Lookup!$A$32:$A$47='Chlamydia detection'!$A61,IF(Lookup!$B$31:$P$31='Chlamydia detection'!D$58,Lookup!$B$32:$P$47)))) -> 3849.6 | E61: =SUM(IF(Lookup!$B$30:$P$30='Chlamydia detection'!$A$57,IF(Lookup!$A$32:$A$47='Chlamydia detection'!$A61,IF(Lookup!$B$31:$P$31='Chlamydia detection'!E$58,Lookup!$B$32:$P$47)))) -> 3499.090358 | F61: =SUM(IF(Lookup!$B$30:$P$30='Chlamydia detection'!$A$57,IF(Lookup!$A$32:$A$47='Chlamydia detection'!$A61,IF(Lookup!$B$31:$P$31='Chlamydia detection'!F$58,Lookup!$B$32:$P$47)))) -> 2825.955124
A62: Lancashire-12 | B62: =SUM(IF(Lookup!$B$30:$P$30='Chlamydia detection'!$A$57,IF(Lookup!$A$32:$A$47='Chlamydia detection'!$A62,IF(Lookup!$B$31:$P$31='Chlamydia detection'!B$58,Lookup!$B$32:$P$47)))) -> 2263.3 | C62: =SUM(IF(Lookup!$B$30:$P$30='Chlamydia detection'!$A$57,IF(Lookup!$A$32:$A$47='Chlamydia detection'!$A62,IF(Lookup!$B$31:$P$31='Chlamydia detection'!C$58,Lookup!$B$32:$P$47)))) -> 2313.7 | D62: =SUM(IF(Lookup!$B$30:$P$30='Chlamydia detection'!$A$57,IF(Lookup!$A$32:$A$47='Chlamydia detection'!$A62,IF(Lookup!$B$31:$P$31='Chlamydia detection'!D$58,Lookup!$B$32:$P$47)))) -> 2389 | E62: =SUM(IF(Lookup!$B$30:$P$30='Chlamydia detection'!$A$57,IF(Lookup!$A$32:$A$47='Chlamydia detection'!$A62,IF(Lookup!$B$31:$P$31='Chlamydia detection'!E$58,Lookup!$B$32:$P$47)))) -> 2280.601033 | F62: =SUM(IF(Lookup!$B$30:$P$30='Chlamydia detection'!$A$57,IF(Lookup!$A$32:$A$47='Chlamydia detection'!$A62,IF(Lookup!$B$31:$P$31='Chlamydia detection'!F$58,Lookup!$B$32:$P$47)))) -> 2101.109285
A63: Burnley | B63: =SUM(IF(Lookup!$B$30:$P$30='Chlamydia detection'!$A$57,IF(Lookup!$A$32:$A$47='Chlamydia detection'!$A63,IF(Lookup!$B$31:$P$31='Chlamydia detection'!B$58,Lookup!$B$32:$P$47)))) -> 2519.8 | C63: =SUM(IF(Lookup!$B$30:$P$30='Chlamydia detection'!$A$57,IF(Lookup!$A$32:$A$47='Chlamydia detection'!$A63,IF(Lookup!$B$31:$P$31='Chlamydia detection'!C$58,Lookup!$B$32:$P$47)))) -> 1815.8 | D63: =SUM(IF(Lookup!$B$30:$P$30='Chlamydia detection'!$A$57,IF(Lookup!$A$32:$A$47='Chlamydia detection'!$A63,IF(Lookup!$B$31:$P$31='Chlamydia detection'!D$58,Lookup!$B$32:$P$47)))) -> 2553.5 | E63: =SUM(IF(Lookup!$B$30:$P$30='Chlamydia detection'!$A$57,IF(Lookup!$A$32:$A$47='Chlamydia detection'!$A63,IF(Lookup!$B$31:$P$31='Chlamydia detection'!E$58,Lookup!$B$32:$P$47)))) -> 2755.56412 | F63: =SUM(IF(Lookup!$B$30:$P$30='Chlamydia detection'!$A$57,IF(Lookup!$A$32:$A$47='Chlamydia detection'!$A63,IF(Lookup!$B$31:$P$31='Chlamydia detection'!F$58,Lookup!$B$32:$P$47)))) -> 2553.232489
A64: Chorley | B64: =SUM(IF(Lookup!$B$30:$P$30='Chlamydia detection'!$A$57,IF(Lookup!$A$32:$A$47='Chlamydia detection'!$A64,IF(Lookup!$B$31:$P$31='Chlamydia detection'!B$58,Lookup!$B$32:$P$47)))) -> 1546.4 | C64: =SUM(IF(Lookup!$B$30:$P$30='Chlamydia detection'!$A$57,IF(Lookup!$A$32:$A$47='Chlamydia detection'!$A64,IF(Lookup!$B$31:$P$31='Chlamydia detection'!C$58,Lookup!$B$32:$P$47)))) -> 2227.2 | D64: =SUM(IF(Lookup!$B$30:$P$30='Chlamydia detection'!$A$57,IF(Lookup!$A$32:$A$47='Chlamydia detection'!$A64,IF(Lookup!$B$31:$P$31='Chlamydia detection'!D$58,Lookup!$B$32:$P$47)))) -> 2454.7 | E64: =SUM(IF(Lookup!$B$30:$P$30='Chlamydia detection'!$A$57,IF(Lookup!$A$32:$A$47='Chlamydia detection'!$A64,IF(Lookup!$B$31:$P$31='Chlamydia detection'!E$58,Lookup!$B$32:$P$47)))) -> 1887.750783 | F64: =SUM(IF(Lookup!$B$30:$P$30='Chlamydia detection'!$A$57,IF(Lookup!$A$32:$A$47='Chlamydia detection'!$A64,IF(Lookup!$B$31:$P$31='Chlamydia detection'!F$58,Lookup!$B$32:$P$47)))) -> 1439.092525
A65: Fylde | B65: =SUM(IF(Lookup!$B$30:$P$30='Chlamydia detection'!$A$57,IF(Lookup!$A$32:$A$47='Chlamydia detection'!$A65,IF(Lookup!$B$31:$P$31='Chlamydia detection'!B$58,Lookup!$B$32:$P$47)))) -> 2039.2 | C65: =SUM(IF(Lookup!$B$30:$P$30='Chlamydia detection'!$A$57,IF(Lookup!$A$32:$A$47='Chlamydia detection'!$A65,IF(Lookup!$B$31:$P$31='Chlamydia detection'!C$58,Lookup!$B$32:$P$47)))) -> 2103.1 | D65: =SUM(IF(Lookup!$B$30:$P$30='Chlamydia detection'!$A$57,IF(Lookup!$A$32:$A$47='Chlamydia detection'!$A65,IF(Lookup!$B$31:$P$31='Chlamydia detection'!D$58,Lookup!$B$32:$P$47)))) -> 2503.1 | E65: =SUM(IF(Lookup!$B$30:$P$30='Chlamydia detection'!$A$57,IF(Lookup!$A$32:$A$47='Chlamydia detection'!$A65,IF(Lookup!$B$31:$P$31='Chlamydia detection'!E$58,Lookup!$B$32:$P$47)))) -> 2022.187895 | F65: =SUM(IF(Lookup!$B$30:$P$30='Chlamydia detection'!$A$57,IF(Lookup!$A$32:$A$47='Chlamydia detection'!$A65,IF(Lookup!$B$31:$P$31='Chlamydia detection'!F$58,Lookup!$B$32:$P$47)))) -> 2148.574638
A66: Hyndburn | B66: =SUM(IF(Lookup!$B$30:$P$30='Chlamydia detection'!$A$57,IF(Lookup!$A$32:$A$47='Chlamydia detection'!$A66,IF(Lookup!$B$31:$P$31='Chlamydia detection'!B$58,Lookup!$B$32:$P$47)))) -> 1655.3 | C66: =SUM(IF(Lookup!$B$30:$P$30='Chlamydia detection'!$A$57,IF(Lookup!$A$32:$A$47='Chlamydia detection'!$A66,IF(Lookup!$B$31:$P$31='Chlamydia detection'!C$58,Lookup!$B$32:$P$47)))) -> 1614 | D66: =SUM(IF(Lookup!$B$30:$P$30='Chlamydia detection'!$A$57,IF(Lookup!$A$32:$A$47='Chlamydia detection'!$A66,IF(Lookup!$B$31:$P$31='Chlamydia detection'!D$58,Lookup!$B$32:$P$47)))) -> 1693 | E66: =SUM(IF(Lookup!$B$30:$P$30='Chlamydia detection'!$A$57,IF(Lookup!$A$32:$A$47='Chlamydia detection'!$A66,IF(Lookup!$B$31:$P$31='Chlamydia detection'!E$58,Lookup!$B$32:$P$47)))) -> 2192.347466 | F66: =SUM(IF(Lookup!$B$30:$P$30='Chlamydia detection'!$A$57,IF(Lookup!$A$32:$A$47='Chlamydia detection'!$A66,IF(Lookup!$B$31:$P$31='Chlamydia detection'!F$58,Lookup!$B$32:$P$47)))) -> 1385.729059
A67: Lancaster | B67: =SUM(IF(Lookup!$B$30:$P$30='Chlamydia detection'!$A$57,IF(Lookup!$A$32:$A$47='Chlamydia detection'!$A67,IF(Lookup!$B$31:$P$31='Chlamydia detection'!B$58,Lookup!$B$32:$P$47)))) -> 3418.1 | C67: =SUM(IF(Lookup!$B$30:$P$30='Chlamydia detection'!$A$57,IF(Lookup!$A$32:$A$47='Chlamydia detection'!$A67,IF(Lookup!$B$31:$P$31='Chlamydia detection'!C$58,Lookup!$B$32:$P$47)))) -> 3410.1 | D67: =SUM(IF(Lookup!$B$30:$P$30='Chlamydia detection'!$A$57,IF(Lookup!$A$32:$A$47='Chlamydia detection'!$A67,IF(Lookup!$B$31:$P$31='Chlamydia detection'!D$58,Lookup!$B$32:$P$47)))) -> 3282.9 | E67: =SUM(IF(Lookup!$B$30:$P$30='Chlamydia detection'!$A$57,IF(Lookup!$A$32:$A$47='Chlamydia detection'!$A67,IF(Lookup!$B$31:$P$31='Chlamydia detection'!E$58,Lookup!$B$32:$P$47)))) -> 3084.913827 | F67: =SUM(IF(Lookup!$B$30:$P$30='Chlamydia detection'!$A$57,IF(Lookup!$A$32:$A$47='Chlamydia detection'!$A67,IF(Lookup!$B$31:$P$31='Chlamydia detection'!F$58,Lookup!$B$32:$P$47)))) -> 2187.77052
A68: Pendle | B68: =SUM(IF(Lookup!$B$30:$P$30='Chlamydia detection'!$A$57,IF(Lookup!$A$32:$A$47='Chlamydia detection'!$A68,IF(Lookup!$B$31:$P$31='Chlamydia detection'!B$58,Lookup!$B$32:$P$47)))) -> 1426.3 | C68: =SUM(IF(Lookup!$B$30:$P$30='Chlamydia detection'!$A$57,IF(Lookup!$A$32:$A$47='Chlamydia detection'!$A68,IF(Lookup!$B$31:$P$31='Chlamydia detection'!C$58,Lookup!$B$32:$P$47)))) -> 1510.4 | D68: =SUM(IF(Lookup!$B$30:$P$30='Chlamydia detection'!$A$57,IF(Lookup!$A$32:$A$47='Chlamydia detection'!$A68,IF(Lookup!$B$31:$P$31='Chlamydia detection'!D$58,Lookup!$B$32:$P$47)))) -> 1587.6 | E68: =SUM(IF(Lookup!$B$30:$P$30='Chlamydia detection'!$A$57,IF(Lookup!$A$32:$A$47='Chlamydia detection'!$A68,IF(Lookup!$B$31:$P$31='Chlamydia detection'!E$58,Lookup!$B$32:$P$47)))) -> 1314.601104 | F68: =SUM(IF(Lookup!$B$30:$P$30='Chlamydia detection'!$A$57,IF(Lookup!$A$32:$A$47='Chlamydia detection'!$A68,IF(Lookup!$B$31:$P$31='Chlamydia detection'!F$58,Lookup!$B$32:$P$47)))) -> 1164.07426
A69: Preston | B69: =SUM(IF(Lookup!$B$30:$P$30='Chlamydia detection'!$A$57,IF(Lookup!$A$32:$A$47='Chlamydia detection'!$A69,IF(Lookup!$B$31:$P$31='Chlamydia detection'!B$58,Lookup!$B$32:$P$47)))) -> 3090 | C69: =SUM(IF(Lookup!$B$30:$P$30='Chlamydia detection'!$A$57,IF(Lookup!$A$32:$A$47='Chlamydia detection'!$A69,IF(Lookup!$B$31:$P$31='Chlamydia detection'!C$58,Lookup!$B$32:$P$47)))) -> 2626.8 | D69: =SUM(IF(Lookup!$B$30:$P$30='Chlamydia detection'!$A$57,IF(Lookup!$A$32:$A$47='Chlamydia detection'!$A69,IF(Lookup!$B$31:$P$31='Chlamydia detection'!D$58,Lookup!$B$32:$P$47)))) -> 2541.6 | E69: =SUM(IF(Lookup!$B$30:$P$30='Chlamydia detection'!$A$57,IF(Lookup!$A$32:$A$47='Chlamydia detection'!$A69,IF(Lookup!$B$31:$P$31='Chlamydia detection'!E$58,Lookup!$B$32:$P$47)))) -> 2447.186781 | F69: =SUM(IF(Lookup!$B$30:$P$30='Chlamydia detection'!$A$57,IF(Lookup!$A$32:$A$47='Chlamydia detection'!$A69,IF(Lookup!$B$31:$P$31='Chlamydia detection'!F$58,Lookup!$B$32:$P$47)))) -> 3660.322108
A70: Ribble Valley | B70: =SUM(IF(Lookup!$B$30:$P$30='Chlamydia detection'!$A$57,IF(Lookup!$A$32:$A$47='Chlamydia detection'!$A70,IF(Lookup!$B$31:$P$31='Chlamydia detection'!B$58,Lookup!$B$32:$P$47)))) -> 1633.4 | C70: =SUM(IF(Lookup!$B$30:$P$30='Chlamydia detection'!$A$57,IF(Lookup!$A$32:$A$47='Chlamydia detection'!$A70,IF(Lookup!$B$31:$P$31='Chlamydia detection'!C$58,Lookup!$B$32:$P$47)))) -> 1361.9 | D70: =SUM(IF(Lookup!$B$30:$P$30='Chlamydia detection'!$A$57,IF(Lookup!$A$32:$A$47='Chlamydia detection'!$A70,IF(Lookup!$B$31:$P$31='Chlamydia detection'!D$58,Lookup!$B$32:$P$47)))) -> 1369.9 | E70: =SUM(IF(Lookup!$B$30:$P$30='Chlamydia detection'!$A$57,IF(Lookup!$A$32:$A$47='Chlamydia detection'!$A70,IF(Lookup!$B$31:$P$31='Chlamydia detection'!E$58,Lookup!$B$32:$P$47)))) -> 1920.614597 | F70: =SUM(IF(Lookup!$B$30:$P$30='Chlamydia detection'!$A$57,IF(Lookup!$A$32:$A$47='Chlamydia detection'!$A70,IF(Lookup!$B$31:$P$31='Chlamydia detection'!F$58,Lookup!$B$32:$P$47)))) -> 1456.466069
A71: Rossendale | B71: =SUM(IF(Lookup!$B$30:$P$30='Chlamydia detection'!$A$57,IF(Lookup!$A$32:$A$47='Chlamydia detection'!$A71,IF(Lookup!$B$31:$P$31='Chlamydia detection'!B$58,Lookup!$B$32:$P$47)))) -> 1760.1 | C71: =SUM(IF(Lookup!$B$30:$P$30='Chlamydia detection'!$A$57,IF(Lookup!$A$32:$A$47='Chlamydia detection'!$A71,IF(Lookup!$B$31:$P$31='Chlamydia detection'!C$58,Lookup!$B$32:$P$47)))) -> 2116.7 | D71: =SUM(IF(Lookup!$B$30:$P$30='Chlamydia detection'!$A$57,IF(Lookup!$A$32:$A$47='Chlamydia detection'!$A71,IF(Lookup!$B$31:$P$31='Chlamydia detection'!D$58,Lookup!$B$32:$P$47)))) -> 1959.5 | E71: =SUM(IF(Lookup!$B$30:$P$30='Chlamydia detection'!$A$57,IF(Lookup!$A$32:$A$47='Chlamydia detection'!$A71,IF(Lookup!$B$31:$P$31='Chlamydia detection'!E$58,Lookup!$B$32:$P$47)))) -> 1971.942827 | F71: =SUM(IF(Lookup!$B$30:$P$30='Chlamydia detection'!$A$57,IF(Lookup!$A$32:$A$47='Chlamydia detection'!$A71,IF(Lookup!$B$31:$P$31='Chlamydia detection'!F$58,Lookup!$B$32:$P$47)))) -> 1720.48703
A72: South Ribble | B72: =SUM(IF(Lookup!$B$30:$P$30='Chlamydia detection'!$A$57,IF(Lookup!$A$32:$A$47='Chlamydia detection'!$A72,IF(Lookup!$B$31:$P$31='Chlamydia detection'!B$58,Lookup!$B$32:$P$47)))) -> 1822.4 | C72: =SUM(IF(Lookup!$B$30:$P$30='Chlamydia detection'!$A$57,IF(Lookup!$A$32:$A$47='Chlamydia detection'!$A72,IF(Lookup!$B$31:$P$31='Chlamydia detection'!C$58,Lookup!$B$32:$P$47)))) -> 2412.3 | D72: =SUM(IF(Lookup!$B$30:$P$30='Chlamydia detection'!$A$57,IF(Lookup!$A$32:$A$47='Chlamydia detection'!$A72,IF(Lookup!$B$31:$P$31='Chlamydia detection'!D$58,Lookup!$B$32:$P$47)))) -> 2218.9 | E72: =SUM(IF(Lookup!$B$30:$P$30='Chlamydia detection'!$A$57,IF(Lookup!$A$32:$A$47='Chlamydia detection'!$A72,IF(Lookup!$B$31:$P$31='Chlamydia detection'!E$58,Lookup!$B$32:$P$47)))) -> 2072.933412 | F72: =SUM(IF(Lookup!$B$30:$P$30='Chlamydia detection'!$A$57,IF(Lookup!$A$32:$A$47='Chlamydia detection'!$A72,IF(Lookup!$B$31:$P$31='Chlamydia detection'!F$58,Lookup!$B$32:$P$47)))) -> 1742.956257
A73: West Lancashire | B73: =SUM(IF(Lookup!$B$30:$P$30='Chlamydia detection'!$A$57,IF(Lookup!$A$32:$A$47='Chlamydia detection'!$A73,IF(Lookup!$B$31:$P$31='Chlamydia detection'!B$58,Lookup!$B$32:$P$47)))) -> 1652.4 | C73: =SUM(IF(Lookup!$B$30:$P$30='Chlamydia detection'!$A$57,IF(Lookup!$A$32:$A$47='Chlamydia detection'!$A73,IF(Lookup!$B$31:$P$31='Chlamydia detection'!C$58,Lookup!$B$32:$P$47)))) -> 1721.3 | D73: =SUM(IF(Lookup!$B$30:$P$30='Chlamydia detection'!$A$57,IF(Lookup!$A$32:$A$47='Chlamydia detection'!$A73,IF(Lookup!$B$31:$P$31='Chlamydia detection'!D$58,Lookup!$B$32:$P$47)))) -> 2277.5 | E73: =SUM(IF(Lookup!$B$30:$P$30='Chlamydia detection'!$A$57,IF(Lookup!$A$32:$A$47='Chlamydia detection'!$A73,IF(Lookup!$B$31:$P$31='Chlamydia detection'!E$58,Lookup!$B$32:$P$47)))) -> 2016.900019 | F73: =SUM(IF(Lookup!$B$30:$P$30='Chlamydia detection'!$A$57,IF(Lookup!$A$32:$A$47='Chlamydia detection'!$A73,IF(Lookup!$B$31:$P$31='Chlamydia detection'!F$58,Lookup!$B$32:$P$47)))) -> 1696.16974
A74: Wyre | B74: =SUM(IF(Lookup!$B$30:$P$30='Chlamydia detection'!$A$57,IF(Lookup!$A$32:$A$47='Chlamydia detection'!$A74,IF(Lookup!$B$31:$P$31='Chlamydia detection'!B$58,Lookup!$B$32:$P$47)))) -> 1920.2 | C74: =SUM(IF(Lookup!$B$30:$P$30='Chlamydia detection'!$A$57,IF(Lookup!$A$32:$A$47='Chlamydia detection'!$A74,IF(Lookup!$B$31:$P$31='Chlamydia detection'!C$58,Lookup!$B$32:$P$47)))) -> 2611 | D74: =SUM(IF(Lookup!$B$30:$P$30='Chlamydia detection'!$A$57,IF(Lookup!$A$32:$A$47='Chlamydia detection'!$A74,IF(Lookup!$B$31:$P$31='Chlamydia detection'!D$58,Lookup!$B$32:$P$47)))) -> 2262.8 | E74: =SUM(IF(Lookup!$B$30:$P$30='Chlamydia detection'!$A$57,IF(Lookup!$A$32:$A$47='Chlamydia detection'!$A74,IF(Lookup!$B$31:$P$31='Chlamydia detection'!E$58,Lookup!$B$32:$P$47)))) -> 2186.079049 | F74: =SUM(IF(Lookup!$B$30:$P$30='Chlamydia detection'!$A$57,IF(Lookup!$A$32:$A$47='Chlamydia detection'!$A74,IF(Lookup!$B$31:$P$31='Chlamydia detection'!F$58,Lookup!$B$32:$P$47)))) -> 1862.539349

Sheet Chlamydia diagnostic rate
A1: Rate of chlamydia diagnoses per 100,000 population
A4: The number of chlamydia diagnoses among people accessing sexual health services* in England. Includes those diagnosed through NHS and local authority commissioned testing and excludes those diagnosed through private testing.
A7: Sexual health services (SHS) include both specialist (level 3) and non-specialist (level 1 & 2) SHSs. Specialist SHSs refers to genitourinary medicine (GUM) and integrated GUM/sexual and reproductive health (SRH). Non-specialist SHSs refers to SRH services, young people’s services, online sexual health services, termination of pregnancy services, pharmacies, outreach, general practice, and other community-based settings
A11: 2016 Rate of chlamydia diagnoses per 100,000 population
A12: Area Name | B12: Count | C12: Denominator | D12: Value | E12: Lower CI 95.0 limit | F12: Upper CI 95.0 limit | G12: Significance | I12: England | J12: L CI | K12: U CI
A13: England | B13: 199509 | C13: 54786327 | D13: 364.1583862 | E13: 362.5621948 | F13: 365.7598572 | G13: - | I13: =$D$13 -> 364.1583862 | J13: =D13-E13 -> 1.5961914 | K13: =F13-D13 -> 1.601471
A14: Blackburn with Darwen | B14: 1114 | C14: 146846 | D14: 758.6178589 | E14: 714.7183228 | F14: 804.5083618 | G14: Higher | I14: =$D$13 -> 364.1583862 | J14: =D14-E14 -> 43.8995361 | K14: =F14-D14 -> 45.8905029
A15: Blackpool | B15: 687 | C15: 139578 | D15: 492.1979065 | E15: 456.0758972 | F15: 530.420166 | G15: Higher | I15: 364.1583862 | J15: 36.1220093 | K15: 38.2222595
A16: Lancashire-12 | B16: 4451 | C16: 1191691 | D16: 373.5028687 | E16: 362.6098633 | F16: 384.6399536 | G16: Same | I16: 364.1583862 | J16: 10.8930054 | K16: 11.1370849
A17: Burnley | B17: 455 | C17: 87371 | D17: 520.7677612 | E17: 474.010376 | F17: 570.8900146 | G17: Higher | I17: 364.1583862 | J17: 46.7573852 | K17: 50.1222534
A18: Chorley | B18: 261 | C18: 112969 | D18: 231.0368347 | E18: 203.8553467 | F18: 260.8335571 | G18: Lower | I18: 364.1583862 | J18: 27.181488 | K18: 29.7967224
A19: Fylde | B19: 205 | C19: 77322 | D19: 265.125061 | E19: 230.0721741 | F19: 304.008728 | G19: Lower | I19: 364.1583862 | J19: 35.0528869 | K19: 38.883667
A20: Hyndburn | B20: 224 | C20: 80228 | D20: 279.2042542 | E20: 243.8354034 | F20: 318.2615356 | G20: Lower | I20: 364.1583862 | J20: 35.3688508 | K20: 39.0572814
A21: Lancaster | B21: 748 | C21: 142283 | D21: 525.7128296 | E21: 488.7085266 | F21: 564.7764282 | G21: Higher | I21: 364.1583862 | J21: 37.004303 | K21: 39.0635986
A22: Pendle | B22: 184 | C22: 90111 | D22: 204.1926117 | E22: 175.7534637 | F22: 235.9229736 | G22: Lower | I22: 364.1583862 | J22: 28.439148 | K22: 31.7303619
A23: Preston | B23: 1080 | C23: 141302 | D23: 764.3203735 | E23: 719.4104614 | F23: 811.2996826 | G23: Higher | I23: 364.1583862 | J23: 44.9099121 | K23: 46.9793091
A24: Ribble Valley | B24: 122 | C24: 58480 | D24: 208.6183319 | E24: 173.2449188 | F24: 249.0905762 | G24: Lower | I24: 364.1583862 | J24: 35.3734131 | K24: 40.4722443
A25: Rossendale | B25: 203 | C25: 69487 | D25: 292.1409912 | E25: 253.3332672 | F25: 335.2118835 | G25: Lower | I25: 364.1583862 | J25: 38.807724 | K25: 43.0708923
A26: South Ribble | B26: 287 | C26: 109651 | D26: 261.7395325 | E26: 232.3309021 | F26: 293.8399963 | G26: Lower | I26: 364.1583862 | J26: 29.4086304 | K26: 32.1004638
A27: West Lancashire | B27: 374 | C27: 112742 | D27: 331.7308655 | E27: 298.9586487 | F27: 367.1148682 | G27: Same | I27: 364.1583862 | J27: 32.7722168 | K27: 35.3840027
A28: Wyre | B28: 308 | C28: 109745 | D28: 280.6506042 | E28: 250.1795044 | F28: 313.8094482 | G28: Lower | I28: 364.1583862 | J28: 30.4710998 | K28: 33.158844
B30: << Select area
A31: Rate of chlamydia diagnoses per 100,000 population
A32: Area Name | B32: 2012 | C32: 2013 | D32: 2014 | E32: 2015 | F32: 2016
A33: England | B33: =B37 -> 376.9189453 | C33: =C37 -> 382.4020691 | D33: 378.8214417 | E33: 362.0374146 | F33: 364.1583862
A34: Pendle | B34: =SUM(IF($A$38:$A$52=$A$34,IF($B$36:$F$36=B32,$B$38:$F$52))) -> 247.7319183 | C34: =SUM(IF($A$38:$A$52=$A$34,IF($B$36:$F$36=C32,$B$38:$F$52))) -> 224.1182251 | D34: =SUM(IF($A$38:$A$52=$A$34,IF($B$36:$F$36=D32,$B$38:$F$52))) -> 244.8797913 | E34: =SUM(IF($A$38:$A$52=$A$34,IF($B$36:$F$36=E32,$B$38:$F$52))) -> 217.5095215 | F34: =SUM(IF($A$38:$A$52=$A$34,IF($B$36:$F$36=F32,$B$38:$F$52))) -> 204.1926117
A36: Area Name | B36: 2012 | C36: 2013 | D36: 2014 | E36: 2015 | F36: 2016
A37: England | B37: 376.9189453 | C37: 382.4020691 | D37: 378.8214417 | E37: 362.0374146 | F37: 364.1583862
A38: Blackburn with Darwen | B38: 403.4851379 | C38: 253.1061554 | D38: 299.8439331 | E38: 533.2116699 | F38: 758.6178589
A39: Blackpool | B39: 829.7177124 | C39: 626.5912476 | D39: 602.1309204 | E39: 573.15625 | F39: 492.1979065
A40: Lancashire-12 | B40: 384.9558411 | C40: 388.364502 | D40: 402.7904968 | E40: 391.2088013 | F40: 373.5028687
A41: Burnley | B41: 412.0422058 | C41: 311.8742371 | D41: 408.9768677 | E41: 468.1187134 | F41: 520.7677612
A42: Chorley | B42: 243.8644257 | C42: 321.2524414 | D42: 347.6484375 | E42: 254.9371948 | F42: 231.0368347
A43: Fylde | B43: 242.0415649 | C43: 282.5671692 | D43: 307.6244202 | E43: 259.9519043 | F43: 265.125061
A44: Hyndburn | B44: 293.0539856 | C44: 259.8505859 | D44: 284.2609253 | E44: 356.4840088 | F44: 279.2042542
A45: Lancaster | B45: 762.5389404 | C45: 753.3345337 | D45: 764.4556274 | E45: 740.7771606 | F45: 525.7128296
A46: Pendle | B46: 247.7319183 | C46: 224.1182251 | D46: 244.8797913 | E46: 217.5095215 | F46: 204.1926117
A47: Preston | B47: 671.6948853 | C47: 592.5123901 | D47: 553.9259033 | E47: 537.1473999 | F47: 764.3203735
A48: Ribble Valley | B48: 251.7536011 | C48: 183.2071686 | D48: 194.5223846 | E48: 261.6278992 | F48: 208.6183319
A49: Rossendale | B49: 260.3633423 | C49: 312.7545776 | D49: 312.2831421 | E49: 307.971283 | F49: 292.1409912
A50: South Ribble | B50: 271.631897 | C50: 355.3294983 | D50: 320.8742371 | E50: 304.6027832 | F50: 261.7395325
A51: West Lancashire | B51: 292.0892639 | C51: 314.4258728 | D51: 414.507782 | E51: 377.8538513 | F51: 331.7308655
A52: Wyre | B52: 286.4054871 | C52: 352.9324951 | D52: 313.5862732 | E52: 311.6315002 | F52: 280.6506042

Sheet Chlamydia Screening
A1: Proportion of population aged 15 to 24 screened for chlamydia
A4: All chlamydia tests (asymptomatic screens and symptomatic tests) undertaken in 15 to 24 year olds attending specialist and non-specialist SHSs* who are residents in England.
A7: Sexual health services (SHS) include both specialist (level 3) and non-specialist (level 1 & 2) SHSs. Specialist SHSs refers to genitourinary medicine (GUM) and integrated GUM/sexual and reproductive health (SRH). Non-specialist SHSs refers to SRH services, young people’s services, online sexual health services, termination of pregnancy services, pharmacies, outreach, general practice, and other community-based settings
A11: 2016 Proportion of population aged 15 to 24 screened for chlamydia
A12: Area Name | B12: Count | C12: Denominator | D12: Value | E12: Lower CI 95.0 limit | F12: Upper CI 95.0 limit | G12: Significance | I12: England | J12: L CI | K12: U CI
A13: England | B13: 1407952 | C13: 6805546 | D13: 20.68830333 | E13: 20.65414457 | F13: 20.72250464 | G13: - | I13: =$D$13 -> 20.68830333 | J13: =D13-E13 -> 0.03415876 | K13: =F13-D13 -> 0.03420131
A14: Blackburn with Darwen | B14: 6415 | C14: 19028 | D14: 33.71347488 | E14: 32.89346403 | F14: 34.54876063 | G14: Better | I14: =$D$13 -> 20.68830333 | J14: =D14-E14 -> 0.82001085 | K14: =F14-D14 -> 0.83528575
A15: Blackpool | B15: 3512 | C15: 16490 | D15: 21.29775622 | E15: 20.59913964 | F15: 22.01402459 | G15: Same | I15: 20.68830333 | J15: 0.69861658 | K15: 0.71626837
A16: Lancashire-12 | B16: 30208 | C16: 151539 | D16: 19.93414237 | E16: 19.70997401 | F16: 20.16022438 | G16: Worse | I16: 20.68830333 | J16: 0.22416836 | K16: 0.22608201
A17: Burnley | B17: 2260 | C17: 10379 | D17: 21.77473745 | E17: 20.88616223 | F17: 22.69139654 | G17: Better | I17: 20.68830333 | J17: 0.88857522 | K17: 0.91665909
A18: Chorley | B18: 1707 | C18: 11813 | D18: 14.450182 | E18: 13.77273591 | F18: 15.15232885 | G18: Worse | I18: 20.68830333 | J18: 0.67744609 | K18: 0.70214685
A19: Fylde | B19: 1321 | C19: 7121 | D19: 18.55076534 | E19: 17.56376054 | F19: 19.57879115 | G19: Worse | I19: 20.68830333 | J19: 0.9870048 | K19: 1.02802581
A20: Hyndburn | B20: 1363 | C20: 9670 | D20: 14.09513961 | E20: 13.35668813 | F20: 14.86379472 | G20: Worse | I20: 20.68830333 | J20: 0.73845148 | K20: 0.76865511
A21: Lancaster | B21: 5436 | C21: 25414 | D21: 21.38978516 | E21: 20.82490995 | F21: 21.96610114 | G21: Better | I21: 20.68830333 | J21: 0.56487521 | K21: 0.57631598
A22: Pendle | B22: 1359 | C22: 9965 | D22: 13.63773206 | E22: 12.92220776 | F22: 14.38256626 | G22: Worse | I22: 20.68830333 | J22: 0.7155243 | K22: 0.7448342
A23: Preston | B23: 7882 | C23: 23905 | D23: 32.97218155 | E23: 32.24824125 | F23: 33.70827545 | G23: Better | I23: 20.68830333 | J23: 0.7239403 | K23: 0.7360939
A24: Ribble Valley | B24: 966 | C24: 6248 | D24: 15.4609475 | E24: 14.5012059 | F24: 16.4675139 | G24: Worse | I24: 20.68830333 | J24: 0.9597416 | K24: 1.0065664
A25: Rossendale | B25: 1182 | C25: 7556 | D25: 15.64319746 | E25: 14.76399701 | F25: 16.56107747 | G25: Worse | I25: 20.68830333 | J25: 0.87920045 | K25: 0.91788001
A26: South Ribble | B26: 1895 | C26: 11819 | D26: 16.03350537 | E26: 15.31965761 | F26: 16.77203124 | G26: Worse | I26: 20.68830333 | J26: 0.71384776 | K26: 0.73852587
A27: West Lancashire | B27: 3149 | C27: 16213 | D27: 19.4226855 | E27: 18.75016757 | F27: 20.11316248 | G27: Worse | I27: 20.68830333 | J27: 0.67251793 | K27: 0.69047698
A28: Wyre | B28: 1688 | C28: 11436 | D28: 14.76040574 | E28: 14.06457888 | F28: 15.48174878 | G28: Worse | I28: 20.68830333 | J28: 0.69582686 | K28: 0.72134304
B30: << Select area
A31: Proportion of population aged 15 to 24 screened for chlamydia
A32: Area Name | B32: 2012 | C32: 2013 | D32: 2014 | E32: 2015 | F32: 2016
A33: England | B33: =B37 -> 26.934634 | C33: =C37 -> 25.46089591 | D33: 24.48348934 | E33: 22.67183265 | F33: 20.68830333
A34: Ribble Valley | B34: =SUM(IF($A$38:$A$52=$A$34,IF($B$36:$F$36=B32,$B$38:$F$52))) -> 18.7599112 | C34: =SUM(IF($A$38:$A$52=$A$34,IF($B$36:$F$36=C32,$B$38:$F$52))) -> 15.74827802 | D34: =SUM(IF($A$38:$A$52=$A$34,IF($B$36:$F$36=D32,$B$38:$F$52))) -> 14.78177764 | E34: =SUM(IF($A$38:$A$52=$A$34,IF($B$36:$F$36=E32,$B$38:$F$52))) -> 20.05441741 | F34: =SUM(IF($A$38:$A$52=$A$34,IF($B$36:$F$36=F32,$B$38:$F$52))) -> 15.4609475
A36: Area Name | B36: 2012 | C36: 2013 | D36: 2014 | E36: 2015 | F36: 2016
A37: England | B37: 26.934634 | C37: 25.46089591 | D37: 24.48348934 | E37: 22.67183265 | F37: 20.68830333
A38: Blackburn with Darwen | B38: 27.33272413 | C38: 15.158558 | D38: 17.82556375 | E38: 28.86798402 | F38: 33.71347488
A39: Blackpool | B39: 47.00809882 | C39: 33.18247752 | D39: 28.82140103 | E39: 27.53790176 | F39: 21.29775622
A40: Lancashire-12 | B40: 27.7 | C40: 25.7 | D40: 24.5 | E40: 24.4 | F40: 19.9
A41: Burnley | B41: 22.58598492 | C41: 19.06589292 | D41: 21.74691416 | E41: 26.14895462 | F41: 21.77473745
A42: Chorley | B42: 18.72994982 | C42: 22.04074899 | D42: 21.75070727 | E42: 20.14729535 | F42: 14.450182
A43: Fylde | B43: 21.12086428 | C43: 25.48453608 | D43: 24.03540313 | E43: 24.139868 | F43: 18.55076534
A44: Hyndburn | B44: 18.01962533 | C44: 16.63157895 | D44: 16.29156529 | E44: 20.4860393 | F44: 14.09513961
A45: Lancaster | B45: 44.18292923 | C45: 40.95215723 | D45: 38.92898719 | E45: 33.23758558 | F45: 21.38978516
A46: Pendle | B46: 15.72659072 | C46: 14.5815522 | D46: 16.39877724 | E46: 17.13998996 | F46: 13.63773206
A47: Preston | B47: 42.64765128 | C47: 30.30290593 | D47: 25.89434276 | E47: 26.09495921 | F47: 32.97218155
A48: Ribble Valley | B48: 18.7599112 | C48: 15.74827802 | D48: 14.78177764 | E48: 20.05441741 | F48: 15.4609475
A49: Rossendale | B49: 19.51067282 | C49: 18.50825249 | D49: 19.93038546 | E49: 20.95023822 | F49: 15.64319746
A50: South Ribble | B50: 21.27406703 | C50: 24.78882391 | D50: 22.48618329 | E50: 21.00008461 | F50: 16.03350537
A51: West Lancashire | B51: 20.36820193 | C51: 17.47247184 | D51: 19.17935388 | E51: 21.56911121 | F51: 19.4226855
A52: Wyre | B52: 25.23058863 | C52: 32.57356693 | D52: 27.31636239 | E52: 25.5946135 | F52: 14.76040574

Sheet Genital herpes diagnosis rate
A1: Genital herpes diagnosis rate per 100,000 population
A4: The number of diagnoses of genital herpes (first episode) among people accessing sexual health services* in England who are also residents in England.
A7: Sexual health services (SHS) include both specialist (level 3) and non-specialist (level 1 & 2) SHSs. Specialist SHSs refers to genitourinary medicine (GUM) and integrated GUM/sexual and reproductive health (SRH). Non-specialist SHSs refers to SRH services, young people’s services, online sexual health services, termination of pregnancy services, pharmacies, outreach, general practice, and other community-based settings
A11: 2016 Genital herpes diagnosis rate per 100,000 population
A12: Area Name | B12: Count | C12: Denominator | D12: Value | E12: Lower CI 95.0 limit | F12: Upper CI 95.0 limit | G12: Significance | I12: England | J12: L CI | K12: U CI
A13: England | B13: 31345 | C13: 54786327 | D13: 57.21 | E13: 56.58 | F13: 57.85 | G13: - | I13: =$D$13 -> 57.21 | J13: =D13-E13 -> 0.63 | K13: =F13-D13 -> 0.64
A14: Blackburn with Darwen | B14: 42 | C14: 146846 | D14: 28.6 | E14: 20.61 | F14: 38.66 | G14: Better | I14: =$D$13 -> 57.21 | J14: =D14-E14 -> 7.99 | K14: =F14-D14 -> 10.06
A15: Blackpool | B15: 175 | C15: 139578 | D15: 125.38 | E15: 107.49 | F15: 145.39 | G15: Worse | I15: 57.21 | J15: 17.89 | K15: 20.01
A16: Lancashire-12 | B16: 732 | C16: 1191691 | D16: 61.43 | E16: 57.06 | F16: 66.04 | G16: Same | I16: 57.21 | J16: 4.37 | K16: 4.61
A17: Burnley | B17: 51 | C17: 87371 | D17: 58.37 | E17: 43.46 | F17: 76.75 | G17: Same | I17: 57.21 | J17: 14.91 | K17: 18.38
A18: Chorley | B18: 75 | C18: 112969 | D18: 66.39 | E18: 52.22 | F18: 83.22 | G18: Same | I18: 57.21 | J18: 14.17 | K18: 16.83
A19: Fylde | B19: 62 | C19: 77322 | D19: 80.18 | E19: 61.48 | F19: 102.79 | G19: Worse | I19: 57.21 | J19: 18.7 | K19: 22.61
A20: Hyndburn | B20: 33 | C20: 80228 | D20: 41.13 | E20: 28.31 | F20: 57.77 | G20: Same | I20: 57.21 | J20: 12.82 | K20: 16.64
A21: Lancaster | B21: 99 | C21: 142283 | D21: 69.58 | E21: 56.55 | F21: 84.71 | G21: Same | I21: 57.21 | J21: 13.03 | K21: 15.13
A22: Pendle | B22: 33 | C22: 90111 | D22: 36.62 | E22: 25.21 | F22: 51.43 | G22: Better | I22: 57.21 | J22: 11.41 | K22: 14.81
A23: Preston | B23: 117 | C23: 141302 | D23: 82.8 | E23: 68.48 | F23: 99.24 | G23: Worse | I23: 57.21 | J23: 14.32 | K23: 16.44
A24: Ribble Valley | B24: 18 | C24: 58480 | D24: 30.78 | E24: 18.24 | F24: 48.65 | G24: Better | I24: 57.21 | J24: 12.54 | K24: 17.87
A25: Rossendale | B25: 35 | C25: 69487 | D25: 50.37 | E25: 35.08 | F25: 70.05 | G25: Same | I25: 57.21 | J25: 15.29 | K25: 19.68
A26: South Ribble | B26: 77 | C26: 109651 | D26: 70.22 | E26: 55.42 | F26: 87.77 | G26: Same | I26: 57.21 | J26: 14.8 | K26: 17.55
A27: West Lancashire | B27: 45 | C27: 112742 | D27: 39.91 | E27: 29.11 | F27: 53.41 | G27: Better | I27: 57.21 | J27: 10.8 | K27: 13.5
A28: Wyre | B28: 87 | C28: 109745 | D28: 79.27 | E28: 63.5 | F28: 97.79 | G28: Worse | I28: 57.21 | J28: 15.77 | K28: 18.52
B30: << Select area
A31: Genital herpes diagnosis rate per 100,000 population
A32: Area Name | B32: 2012 | C32: 2013 | D32: 2014 | E32: 2015 | F32: 2016
A33: England | B33: =B37 -> 59.23 | C33: =C37 -> 60.8 | D33: 59.95 | E33: 59.18 | F33: 57.21
A34: Preston | B34: =SUM(IF($A$38:$A$52=$A$34,IF($B$36:$F$36=B32,$B$38:$F$52))) -> 73.29 | C34: =SUM(IF($A$38:$A$52=$A$34,IF($B$36:$F$36=C32,$B$38:$F$52))) -> 83.32 | D34: =SUM(IF($A$38:$A$52=$A$34,IF($B$36:$F$36=D32,$B$38:$F$52))) -> 65.5 | E34: =SUM(IF($A$38:$A$52=$A$34,IF($B$36:$F$36=E32,$B$38:$F$52))) -> 65.82 | F34: =SUM(IF($A$38:$A$52=$A$34,IF($B$36:$F$36=F32,$B$38:$F$52))) -> 82.8
A36: Area Name | B36: 2012 | C36: 2013 | D36: 2014 | E36: 2015 | F36: 2016
A37: England | B37: 59.23 | C37: 60.8 | D37: 59.95 | E37: 59.18 | F37: 57.21
A38: Blackburn with Darwen | B38: 40.62 | C38: 36.64 | D38: 38.84 | E38: 39.5 | F38: 28.6
A39: Blackpool | B39: 92.97 | C39: 85.57 | D39: 86.12 | E39: 100.3 | F39: 125.38
A40: Lancashire-12 | B40: 56.46 | C40: 65.42 | D40: 59 | E40: 62.85 | F40: 61.43
A41: Burnley | B41: 75.75 | C41: 78.26 | D41: 73.32 | E41: 66.38 | F41: 58.37
A42: Chorley | B42: 47.67 | C42: 54.3 | D42: 58.24 | E42: 54 | F42: 66.39
A43: Fylde | B43: 56.56 | C43: 56.25 | D43: 72.69 | E43: 108.64 | F43: 80.18
A44: Hyndburn | B44: 51.13 | C44: 74.96 | D44: 61.09 | E44: 43.63 | F44: 41.13
A45: Lancaster | B45: 55.13 | C45: 54.06 | D45: 58.04 | E45: 68.17 | F45: 69.58
A46: Pendle | B46: 54.68 | C46: 56.58 | D46: 57.88 | E46: 44.39 | F46: 36.62
A47: Preston | B47: 73.29 | C47: 83.32 | D47: 65.5 | E47: 65.82 | F47: 82.8
A48: Ribble Valley | B48: 39.93 | C48: 46.67 | D48: 36.15 | E48: 46.17 | F48: 30.78
A49: Rossendale | B49: 40.96 | C49: 74.19 | D49: 33.25 | E49: 56.13 | F49: 50.37
A50: South Ribble | B50: 61.48 | C50: 71.62 | D50: 53.17 | E50: 46.51 | F50: 70.22
A51: West Lancashire | B51: 47.78 | C51: 58.39 | D51: 57.17 | E51: 69.18 | F51: 39.91
A52: Wyre | B52: 57.47 | C52: 70.22 | D52: 67.13 | E52: 78.36 | F52: 79.27

Sheet Genital warts diagnosis rate
A1: Genital warts diagnosis rate per 100,000 of the population
A4: The number of diagnoses of first episode genital warts among people accessing sexual health services* in England who are also residents in England.
A7: Sexual health services (SHS) include both specialist (level 3) and non-specialist (level 1 & 2) SHSs. Specialist SHSs refers to genitourinary medicine (GUM) and integrated GUM/sexual and reproductive health (SRH). Non-specialist SHSs refers to SRH services, young people’s services, online sexual health services, termination of pregnancy services, pharmacies, outreach, general practice, and other community-based settings
A11: 2016 Genital warts diagnosis rate per 100,000 of the population
A12: Area Name | B12: Count | C12: Denominator | D12: Value | E12: Lower CI 95.0 limit | F12: Upper CI 95.0 limit | G12: Significance | I12: England | J12: L CI | K12: U CI
A13: England | B13: 61656 | C13: 54786327 | D13: 112.54 | E13: 111.65 | F13: 113.43 | G13: - | I13: =$D$13 -> 112.54 | J13: =D13-E13 -> 0.89 | K13: =F13-D13 -> 0.89
A14: Blackburn with Darwen | B14: 107 | C14: 146846 | D14: 72.87 | E14: 59.71 | F14: 88.05 | G14: Better | I14: =$D$13 -> 112.54 | J14: =D14-E14 -> 13.16 | K14: =F14-D14 -> 15.18
A15: Blackpool | B15: 223 | C15: 139578 | D15: 159.77 | E15: 139.48 | F15: 182.17 | G15: Worse | I15: 112.54 | J15: 20.29 | K15: 22.4
A16: Lancashire-12 | B16: 1321 | C16: 1191691 | D16: 110.85 | E16: 104.95 | F16: 116.99 | G16: Same | I16: 112.54 | J16: 5.9 | K16: 6.14
A17: Burnley | B17: 98 | C17: 87371 | D17: 112.17 | E17: 91.06 | F17: 136.69 | G17: Same | I17: 112.54 | J17: 21.11 | K17: 24.52
A18: Chorley | B18: 117 | C18: 112969 | D18: 103.57 | E18: 85.65 | F18: 124.12 | G18: Same | I18: 112.54 | J18: 17.92 | K18: 20.55
A19: Fylde | B19: 86 | C19: 77322 | D19: 111.22 | E19: 88.96 | F19: 137.36 | G19: Same | I19: 112.54 | J19: 22.26 | K19: 26.14
A20: Hyndburn | B20: 61 | C20: 80228 | D20: 76.03 | E20: 58.16 | F20: 97.67 | G20: Better | I20: 112.54 | J20: 17.87 | K20: 21.64
A21: Lancaster | B21: 170 | C21: 142283 | D21: 119.48 | E21: 102.19 | F21: 138.85 | G21: Same | I21: 112.54 | J21: 17.29 | K21: 19.37
A22: Pendle | B22: 102 | C22: 90111 | D22: 113.19 | E22: 92.3 | F22: 137.41 | G22: Same | I22: 112.54 | J22: 20.89 | K22: 24.22
A23: Preston | B23: 246 | C23: 141302 | D23: 174.1 | E23: 153.02 | F23: 197.26 | G23: Worse | I23: 112.54 | J23: 21.08 | K23: 23.16
A24: Ribble Valley | B24: 58 | C24: 58480 | D24: 99.18 | E24: 75.31 | F24: 128.21 | G24: Same | I24: 112.54 | J24: 23.87 | K24: 29.03
A25: Rossendale | B25: 71 | C25: 69487 | D25: 102.18 | E25: 79.8 | F25: 128.88 | G25: Same | I25: 112.54 | J25: 22.38 | K25: 26.7
A26: South Ribble | B26: 96 | C26: 109651 | D26: 87.55 | E26: 70.92 | F26: 106.91 | G26: Better | I26: 112.54 | J26: 16.63 | K26: 19.36
A27: West Lancashire | B27: 104 | C27: 112742 | D27: 92.25 | E27: 75.37 | F27: 111.77 | G27: Better | I27: 112.54 | J27: 16.88 | K27: 19.52
A28: Wyre | B28: 112 | C28: 109745 | D28: 102.05 | E28: 84.03 | F28: 122.8 | G28: Same | I28: 112.54 | J28: 18.02 | K28: 20.75
B30: << Select area
A31: Genital warts diagnosis rate per 100,000 of the population
A32: Area Name | B32: 2012 | C32: 2013 | D32: 2014 | E32: 2015 | F32: 2016
A33: England | B33: =B37 -> 137.01 | C33: =C37 -> 138.06 | D33: 131.56 | E33: 121.77 | F33: 112.54
A34: South Ribble | B34: =SUM(IF($A$38:$A$52=$A$34,IF($B$36:$F$36=B32,$B$38:$F$52))) -> 135.82 | C34: =SUM(IF($A$38:$A$52=$A$34,IF($B$36:$F$36=C32,$B$38:$F$52))) -> 124.87 | D34: =SUM(IF($A$38:$A$52=$A$34,IF($B$36:$F$36=D32,$B$38:$F$52))) -> 101.76 | E34: =SUM(IF($A$38:$A$52=$A$34,IF($B$36:$F$36=E32,$B$38:$F$52))) -> 113.09 | F34: =SUM(IF($A$38:$A$52=$A$34,IF($B$36:$F$36=F32,$B$38:$F$52))) -> 87.55
A36: Area Name | B36: 2012 | C36: 2013 | D36: 2014 | E36: 2015 | F36: 2016
A37: England | B37: 137.01 | C37: 138.06 | D37: 131.56 | E37: 121.77 | F37: 112.54
A38: Blackburn with Darwen | B38: 113.06 | C38: 122.82 | D38: 111.08 | E38: 109.64 | F38: 72.87
A39: Blackpool | B39: 172.56 | C39: 160.54 | D39: 169.39 | E39: 166.22 | F39: 159.77
A40: Lancashire-12 | B40: 142.77 | C40: 141.94 | D40: 129.56 | E40: 110.68 | F40: 110.85
A41: Burnley | B41: 149.21 | C41: 162.27 | D41: 158.09 | E41: 113.31 | F41: 112.17
A42: Chorley | B42: 103.6 | C42: 115.83 | D42: 95.87 | E42: 108.88 | F42: 103.57
A43: Fylde | B43: 119.71 | C43: 136.05 | D43: 119.42 | E43: 116.4 | F43: 111.22
A44: Hyndburn | B44: 140.92 | C44: 146.17 | D44: 113.46 | E44: 115.92 | F44: 76.03
A45: Lancaster | B45: 163.96 | C45: 163.61 | D45: 161.39 | E45: 138.46 | F45: 119.48
A46: Pendle | B46: 122.75 | C46: 105.4 | D46: 140.25 | E46: 63.26 | F46: 113.19
A47: Preston | B47: 196.39 | C47: 195.13 | D47: 152.37 | E47: 147.91 | F47: 174.1
A48: Ribble Valley | B48: 126.74 | C48: 100.25 | D48: 92.96 | E48: 100.89 | F48: 99.18
A49: Rossendale | B49: 163.82 | C49: 139.65 | D49: 170.6 | E49: 82.03 | F49: 102.18
A50: South Ribble | B50: 135.82 | C50: 124.87 | D50: 101.76 | E50: 113.09 | F50: 87.55
A51: West Lancashire | B51: 149.65 | C51: 140.14 | D51: 95.59 | E51: 94.02 | F51: 92.25
A52: Wyre | B52: 109.37 | C52: 129.35 | D52: 137.02 | E52: 95.68 | F52: 102.05

Sheet Gonorrhea diagnosis
A1: Gonorrhoea diagnosis rate per 100,000 of the population
A4: The number of gonorrhoea diagnoses among people accessing sexual health services* in England who are also residents in England.
A7: Sexual health services (SHS) include both specialist (level 3) and non-specialist (level 1 & 2) SHSs. Specialist SHSs refers to genitourinary medicine (GUM) and integrated GUM/sexual and reproductive health (SRH). Non-specialist SHSs refers to SRH services, young people’s services, online sexual health services, termination of pregnancy services, pharmacies, outreach, general practice, and other community-based settings
A11: 2016 Gonorrhoea diagnosis rate per 100,000 of the population
A12: Area Name | B12: Count | C12: Denominator | D12: Value | E12: Lower CI 95.0 limit | F12: Upper CI 95.0 limit | G12: Significance | I12: England | J12: L CI | K12: U CI
A13: England | B13: 35534 | C13: 54786327 | D13: 64.8592453 | E13: 64.18660736 | F13: 65.53717804 | G13: - | I13: =$D$13 -> 64.8592453 | J13: =D13-E13 -> 0.67263794 | K13: =F13-D13 -> 0.67793274
A14: Blackburn with Darwen | B14: 31 | C14: 146846 | D14: 21.11055183 | E14: 14.3435955 | F14: 29.96474266 | G14: Better | I14: =$D$13 -> 64.8592453 | J14: =D14-E14 -> 6.76695633 | K14: =F14-D14 -> 8.85419083
A15: Blackpool | B15: 117 | C15: 139578 | D15: 83.82409668 | E15: 69.32481384 | F15: 100.4609833 | G15: Worse | I15: 64.8592453 | J15: 14.49928284 | K15: 16.63688662
A16: Lancashire-12 | B16: 338 | C16: 1191691 | D16: 28.36305809 | E16: 25.41957664 | F16: 31.55385017 | G16: Better | I16: 64.8592453 | J16: 2.94348145 | K16: 3.19079208
A17: Burnley | B17: 38 | C17: 87371 | D17: 43.49269104 | E17: 30.77801704 | F17: 59.69711685 | G17: Better | I17: 64.8592453 | J17: 12.714674 | K17: 16.20442581
A18: Chorley | B18: 27 | C18: 112969 | D18: 23.90036201 | E18: 15.75048923 | F18: 34.77377319 | G18: Better | I18: 64.8592453 | J18: 8.14987278 | K18: 10.87341118
A19: Fylde | B19: 25 | C19: 77322 | D19: 32.33232498 | E19: 20.92377663 | F19: 47.72888947 | G19: Better | I19: 64.8592453 | J19: 11.40854835 | K19: 15.39656449
A20: Hyndburn | B20: 14 | C20: 80228 | D20: 17.45026588 | E20: 9.540223122 | F20: 29.27858162 | G20: Better | I20: 64.8592453 | J20: 7.910042758 | K20: 11.82831574
A21: Lancaster | B21: 39 | C21: 142283 | D21: 27.41016197 | E21: 19.4913044 | F21: 37.4705925 | G21: Better | I21: 64.8592453 | J21: 7.91885757 | K21: 10.06043053
A22: Pendle | B22: 16 | C22: 90111 | D22: 17.75587845 | E22: 10.14901924 | F22: 28.83443451 | G22: Better | I22: 64.8592453 | J22: 7.60685921 | K22: 11.07855606
A23: Preston | B23: 72 | C23: 141302 | D23: 50.95469284 | E23: 39.86890793 | F23: 64.16900635 | G23: Better | I23: 64.8592453 | J23: 11.08578491 | K23: 13.21431351
A24: Ribble Valley | B24: 9 | C24: 58480 | D24: 15.38987732 | E24: 7.037231922 | F24: 29.21478081 | G24: Better | I24: 64.8592453 | J24: 8.352645398 | K24: 13.82490349
A25: Rossendale | B25: 24 | C25: 69487 | D25: 34.53883362 | E25: 22.12968254 | F25: 51.39104843 | G25: Better | I25: 64.8592453 | J25: 12.40915108 | K25: 16.85221481
A26: South Ribble | B26: 29 | C26: 109651 | D26: 26.44754791 | E26: 17.71233749 | F26: 37.98308945 | G26: Better | I26: 64.8592453 | J26: 8.73521042 | K26: 11.53554154
A27: West Lancashire | B27: 8 | C27: 112742 | D27: 7.09584713 | E27: 3.063483238 | F27: 13.98164749 | G27: Better | I27: 64.8592453 | J27: 4.032363892 | K27: 6.88580036
A28: Wyre | B28: 37 | C28: 109745 | D28: 33.7145195 | E28: 23.73813438 | F28: 46.47102356 | G28: Better | I28: 64.8592453 | J28: 9.97638512 | K28: 12.75650406
B30: << Select area
A31: 2016 Gonorrhoea diagnosis rate per 100,000 of the population
A32: Area Name | B32: 2012 | C32: 2013 | D32: 2014 | E32: 2015 | F32: 2016
A33: England | B33: =B37 -> 48.54587555 | C33: =C37 -> 56.10237122 | D33: 66.42718506 | E33: 72.9561615 | F33: 64.8592453
A34: Wyre | B34: =SUM(IF($A$38:$A$52=$A$34,IF($B$36:$F$36=B32,$B$38:$F$52))) -> 18.53757095 | C34: =SUM(IF($A$38:$A$52=$A$34,IF($B$36:$F$36=C32,$B$38:$F$52))) -> 23.09767532 | D34: =SUM(IF($A$38:$A$52=$A$34,IF($B$36:$F$36=D32,$B$38:$F$52))) -> 31.26666832 | E34: =SUM(IF($A$38:$A$52=$A$34,IF($B$36:$F$36=E32,$B$38:$F$52))) -> 48.29377365 | F34: =SUM(IF($A$38:$A$52=$A$34,IF($B$36:$F$36=F32,$B$38:$F$52))) -> 33.7145195
A36: Area Name | B36: 2012 | C36: 2013 | D36: 2014 | E36: 2015 | F36: 2016
A37: England | B37: 48.54587555 | C37: 56.10237122 | D37: 66.42718506 | E37: 72.9561615 | F37: 64.8592453
A38: Blackburn with Darwen | B38: 18.95567703 | C38: 19.6784935 | D38: 25.21414948 | E38: 11.57675362 | F38: 21.11055183
A39: Blackpool | B39: 47.19107437 | C39: 79.91513062 | D39: 79.71473694 | E39: 90.27210236 | F39: 83.82409668
A40: Lancashire-12 | B40: 26.61612129 | C40: 28.89641953 | D40: 30.21772766 | E40: 27.52391434 | F40: 28.36305809
A41: Burnley | B41: 10.32974815 | C41: 26.46903038 | D41: 24.05746269 | E41: 20.60180092 | F41: 43.49269104
A42: Chorley | B42: 30.25385666 | C42: 28.05303001 | D42: 23.29603004 | E42: 25.6707592 | F42: 23.90036201
A43: Fylde | B43: 19.7316494 | C43: 22.23908234 | D43: 28.55585289 | E43: 18.10610199 | F43: 32.33232498
A44: Hyndburn | B44: 32.42299652 | C44: 22.48707008 | D44: 27.42868614 | E44: 24.92895317 | F44: 17.45026588
A45: Lancaster | B45: 21.47996902 | C45: 29.16592598 | D45: 37.51495361 | E45: 35.14123154 | F45: 27.41016197
A46: Pendle | B46: 31.24546623 | C46: 23.2994194 | D46: 24.48797798 | E46: 8.877939224 | F46: 17.75587845
A47: Preston | B47: 59.05791855 | C47: 59.82096481 | D47: 56.95896149 | E47: 35.38520432 | F47: 50.95469284
A48: Ribble Valley | B48: 12.15362167 | C48: 10.37021637 | D48: 12.05005932 | E48: 17.09986305 | F48: 15.38987732
A49: Rossendale | B49: 19.01530075 | C49: 13.09205151 | D49: 27.46935081 | E49: 20.14765358 | F49: 34.53883362
A50: South Ribble | B50: 21.10653305 | C50: 42.23554611 | D50: 28.42028999 | E50: 33.74342346 | F50: 26.44754791
A51: West Lancashire | B51: 23.43926048 | C51: 17.9671917 | D51: 18.76004982 | E51: 22.1745224 | F51: 7.09584713
A52: Wyre | B52: 18.53757095 | C52: 23.09767532 | D52: 31.26666832 | E52: 48.29377365 | F52: 33.7145195

Sheet Syphilis diagnosis rate
A1: Syphilis diagnosis rate per 100,000 population
A4: The number of syphilis diagnoses among people accessing sexual health services* in England who are also residents in England.
A7: Sexual health services (SHS) include both specialist (level 3) and non-specialist (level 1 & 2) SHSs. Specialist SHSs refers to genitourinary medicine (GUM) and integrated GUM/sexual and reproductive health (SRH). Non-specialist SHSs refers to SRH services, young people’s services, online sexual health services, termination of pregnancy services, pharmacies, outreach, general practice, and other community-based settings
A11: 2016 Syphilis diagnosis rate per 100,000 population
A12: Area Name | B12: Count | C12: Denominator | D12: Value | E12: Lower CI 95.0 limit | F12: Upper CI 95.0 limit | G12: Significance | I12: England | J12: L CI | K12: U CI
A13: England | B13: 5795 | C13: 54786327 | D13: 10.57745647 | E13: 10.3068552 | F13: 10.85336494 | G13: - | I13: =$D$13 -> 10.57745647 | J13: =D13-E13 -> 0.27060127 | K13: =F13-D13 -> 0.27590847
A14: Blackburn with Darwen | B14: 9 | C14: 146846 | D14: 6.128869534 | E14: 2.802509546 | F14: 11.63450336 | G14: Same | I14: =$D$13 -> 10.57745647 | J14: =D14-E14 -> 3.326359988 | K14: =F14-D14 -> 5.505633826
A15: Blackpool | B15: 13 | C15: 139578 | D15: 9.313788414 | E15: 4.959200382 | F15: 15.92686272 | G15: Same | I15: 10.57745647 | J15: 4.354588032 | K15: 6.613074306
A16: Lancashire-12 | B16: 52 | C16: 1191691 | D16: 4.363547325 | E16: 3.258905888 | F16: 5.722211838 | G16: Better | I16: 10.57745647 | J16: 1.104641437 | K16: 1.358664513
A17: Burnley | B17: 6 | C17: 87371 | D17: 6.867267132 | E17: 2.52016592 | F17: 14.94714928 | G17: Same | I17: 10.57745647 | J17: 4.347101212 | K17: 8.079882148
A18: Chorley | B18: 1 | C18: 112969 | D18: 0.885198593 | E18: 0.022411289 | F18: 4.932011127 | G18: Better | I18: 10.57745647 | J18: 0.862787304 | K18: 4.046812534
A19: Fylde | B19: 4 | C19: 77322 | D19: 5.173171997 | E19: 1.409515262 | F19: 13.24537468 | G19: Same | I19: 10.57745647 | J19: 3.763656735 | K19: 8.072202683
A20: Hyndburn | B20: 1 | C20: 80228 | D20: 1.246447682 | E20: 0.031557322 | F20: 6.944761753 | G20: Better | I20: 10.57745647 | J20: 1.21489036 | K20: 5.698314071
A21: Lancaster | B21: 2 | C21: 142283 | D21: 1.405649304 | E21: 0.170230657 | F21: 5.077688694 | G21: Better | I21: 10.57745647 | J21: 1.235418647 | K21: 3.67203939
A22: Pendle | B22: 3 | C22: 90111 | D22: 3.329227209 | E22: 0.68656671 | F22: 9.72941494 | G22: Better | I22: 10.57745647 | J22: 2.642660499 | K22: 6.400187731
A23: Preston | B23: 14 | C23: 141302 | D23: 9.907856941 | E23: 5.416717529 | F23: 16.6237011 | G23: Same | I23: 10.57745647 | J23: 4.491139412 | K23: 6.715844159
A24: Ribble Valley | B24: 1 | C24: 58480 | D24: 1.709986329 | E24: 0.043293104 | F24: 9.527434349 | G24: Better | I24: 10.57745647 | J24: 1.666693225 | K24: 7.81744802
A25: Rossendale | B25: 3 | C25: 69487 | D25: 4.317354202 | E25: 0.890342236 | F25: 12.61714172 | G25: Same | I25: 10.57745647 | J25: 3.427011966 | K25: 8.299787518
A26: South Ribble | B26: 9 | C26: 109651 | D26: 8.207859039 | E26: 3.753155947 | F26: 15.58107376 | G26: Same | I26: 10.57745647 | J26: 4.454703092 | K26: 7.373214721
A27: West Lancashire | B27: 2 | C27: 112742 | D27: 1.773961782 | E27: 0.214835003 | F27: 6.408159733 | G27: Better | I27: 10.57745647 | J27: 1.559126779 | K27: 4.634197951
A28: Wyre | B28: 6 | C28: 109745 | D28: 5.467219353 | E28: 2.006373167 | F28: 11.89983463 | G28: Same | I28: 10.57745647 | J28: 3.460846186 | K28: 6.432615277
B30: << Select area
A31: Syphilis diagnosis rate per 100,000 population
A32: Area Name | B32: 2012 | C32: 2013 | D32: 2014 | E32: 2015 | F32: 2016
A33: England | B33: =B37 -> 5.443628788 | C33: =C37 -> 5.961108685 | D33: 7.870519638 | E33: 9.31801796 | F33: 10.57745647
A34: West Lancashire | B34: =SUM(IF($A$38:$A$52=$A$34,IF($B$36:$F$36=B32,$B$38:$F$52))) -> 1.80302 | C34: =SUM(IF($A$38:$A$52=$A$34,IF($B$36:$F$36=C32,$B$38:$F$52))) -> 0 | D34: =SUM(IF($A$38:$A$52=$A$34,IF($B$36:$F$36=D32,$B$38:$F$52))) -> 2.680007219 | E34: =SUM(IF($A$38:$A$52=$A$34,IF($B$36:$F$36=E32,$B$38:$F$52))) -> 2.660942793 | F34: =SUM(IF($A$38:$A$52=$A$34,IF($B$36:$F$36=F32,$B$38:$F$52))) -> 1.773961782
A36: Area Name | B36: 2012 | C36: 2013 | D36: 2014 | E36: 2015 | F36: 2016
A37: England | B37: 5.443628788 | C37: 5.961108685 | D37: 7.870519638 | E37: 9.31801796 | F37: 10.57745647
A38: Blackburn with Darwen | B38: 4.738919258 | C38: 3.392843723 | D38: 2.725854158 | E38: 1.361971021 | F38: 6.128869534
A39: Blackpool | B39: 20.42598724 | C39: 21.92362022 | D39: 14.23477459 | E39: 15.04535103 | F39: 9.313788414
A40: Lancashire-12 | B40: 3.911634445 | C40: 2.542207003 | D40: 3.798317671 | E40: 3.104831696 | F40: 4.363547325
A41: Burnley | B41: 4.590999126 | C41: 2.301654816 | D41: 3.436780453 | E41: 1.144544482 | F41: 6.867267132
A42: Chorley | B42: 4.583917618 | C42: 0.904936433 | D42: 1.79200232 | E42: 4.425992966 | F42: 0.885198593
A43: Fylde | B43: 5.261773109 | C43: 2.61636281 | D43: 0 | E43: 0 | F43: 5.173171997
A44: Hyndburn | B44: 3.741114855 | C44: 3.747844934 | D44: 4.987033844 | E44: 1.246447682 | F44: 1.246447682
A45: Lancaster | B45: 2.147996902 | C45: 0 | D45: 2.831317186 | E45: 7.028246403 | F45: 1.405649304
A46: Pendle | B46: 5.579547405 | C46: 4.437984943 | D46: 7.791629791 | E46: 2.219484806 | F46: 3.329227209
A47: Preston | B47: 4.269247055 | C47: 3.560771704 | D47: 4.271922112 | E47: 2.123112202 | F47: 9.907856941
A48: Ribble Valley | B48: 5.208694935 | C48: 3.456738949 | D48: 1.721437097 | E48: 1.709986329 | F48: 1.709986329
A49: Rossendale | B49: 4.388145924 | C49: 5.818689823 | D49: 0 | E49: 1.439118147 | F49: 4.317354202
A50: South Ribble | B50: 2.753026009 | C50: 3.672656059 | D50: 10.08461952 | E50: 1.823968768 | F50: 8.207859039
A51: West Lancashire | B51: 1.80302 | C51: 0 | D51: 2.680007219 | E51: 2.660942793 | F51: 1.773961782
A52: Wyre | B52: 4.634392738 | C52: 2.771721125 | D52: 3.678431511 | E52: 7.289626122 | F52: 5.467219353

Sheet RAW data
A1: Indicator ID | B1: Indicator Name | C1: Parent Code | D1: Parent Name | E1: Area Code | F1: Area Name | G1: Area Type | H1: Sex | I1: Age | J1: Category Type | K1: Category | L1: Time period | M1: Value | N1: Lower CI 95.0 limit | O1: Upper CI 95.0 limit | P1: Lower CI 99.8 limit | Q1: Upper CI 99.8 limit | R1: Count | S1: Denominator | T1: Value note | U1: Recent Trend | V1: Compared to England value or percentiles | W1: Compared to subnational parent value or percentiles
A2: 90742 | B2: Syphilis diagnostic rate / 100,000 | E2: E92000001 | F2: England | G2: Country | H2: Persons | I2: All ages | L2: 2012 | M2: 5.443628788 | N2: 5.247689724 | O2: 5.645012379 | R2: 2912 | S2: 53493729 | V2: Not compared | W2: Not compared
A3: 90742 | B3: Syphilis diagnostic rate / 100,000 | E3: E92000001 | F3: England | G3: Country | H3: Persons | I3: All ages | J3: County & UA deprivation deciles in England (IMD2010) | K3: Most deprived decile (IMD2010) | L3: 2012 | M3: 11.49523972 | R3: 561 | S3: 4880281 | T3: Aggregated from all known lower geography values | V3: Not compared | W3: Not compared
A4: 90742 | B4: Syphilis diagnostic rate / 100,000 | E4: E92000001 | F4: England | G4: Country | H4: Persons | I4: All ages | J4: County & UA deprivation deciles in England (IMD2010) | K4: Second most deprived decile (IMD2010) | L4: 2012 | M4: 12.36184921 | R4: 477 | S4: 3858646 | T4: Aggregated from all known lower geography values | V4: Not compared | W4: Not compared
A5: 90742 | B5: Syphilis diagnostic rate / 100,000 | E5: E92000001 | F5: England | G5: Country | H5: Persons | I5: All ages | J5: County & UA deprivation deciles in England (IMD2010) | K5: Third more deprived decile (IMD2010) | L5: 2012 | M5: 9.020727469 | R5: 317 | S5: 3514129 | T5: Aggregated from all known lower geography values | V5: Not compared | W5: Not compared
A6: 90742 | B6: Syphilis diagnostic rate / 100,000 | E6: E92000001 | F6: England | G6: Country | H6: Persons | I6: All ages | J6: County & UA deprivation deciles in England (IMD2010) | K6: Fourth more deprived decile (IMD2010) | L6: 2012 | M6: 7.562885715 | R6: 354 | S6: 4680753 | T6: Aggregated from all known lower geography values | V6: Not compared | W6: Not compared
A7: 90742 | B7: Syphilis diagnostic rate / 100,000 | E7: E92000001 | F7: England | G7: Country | H7: Persons | I7: All ages | J7: County & UA deprivation deciles in England (IMD2010) | K7: Fifth more deprived decile (IMD2010) | L7: 2012 | M7: 7.533592368 | R7: 283 | S7: 3756508 | T7: Aggregated from all known lower geography values | V7: Not compared | W7: Not compared
A8: 90742 | B8: Syphilis diagnostic rate / 100,000 | E8: E92000001 | F8: England | G8: Country | H8: Persons | I8: All ages | J8: County & UA deprivation deciles in England (IMD2010) | K8: Fifth less deprived decile (IMD2010) | L8: 2012 | M8: 4.467682307 | R8: 235 | S8: 5259998 | T8: Aggregated from all known lower geography values | V8: Not compared | W8: Not compared
A9: 90742 | B9: Syphilis diagnostic rate / 100,000 | E9: E92000001 | F9: England | G9: Country | H9: Persons | I9: All ages | J9: County & UA deprivation deciles in England (IMD2010) | K9: Fourth less deprived decile (IMD2010) | L9: 2012 | M9: 2.872851515 | R9: 227 | S9: 7901557 | T9: Aggregated from all known lower geography values | V9: Not compared | W9: Not compared
A10: 90742 | B10: Syphilis diagnostic rate / 100,000 | E10: E92000001 | F10: England | G10: Country | H10: Persons | I10: All ages | J10: County & UA deprivation deciles in England (IMD2010) | K10: Third less deprived decile (IMD2010) | L10: 2012 | M10: 2.232020155 | R10: 121 | S10: 5421098 | T10: Aggregated from all known lower geography values | V10: Not compared | W10: Not compared
A11: 90742 | B11: Syphilis diagnostic rate / 100,000 | E11: E92000001 | F11: England | G11: Country | H11: Persons | I11: All ages | J11: County & UA deprivation deciles in England (IMD2010) | K11: Second least deprived decile (IMD2010) | L11: 2012 | M11: 2.479457438 | R11: 193 | S11: 7783961 | T11: Aggregated from all known lower geography values | V11: Not compared | W11: Not compared
A12: 90742 | B12: Syphilis diagnostic rate / 100,000 | E12: E92000001 | F12: England | G12: Country | H12: Persons | I12: All ages | J12: County & UA deprivation deciles in England (IMD2010) | K12: Least deprived decile (IMD2010) | L12: 2012 | M12: 2.23713716 | R12: 144 | S12: 6436798 | T12: Aggregated from all known lower geography values | V12: Not compared | W12: Not compared
A13: 90742 | B13: Syphilis diagnostic rate / 100,000 | E13: E92000001 | F13: England | G13: Country | H13: Persons | I13: All ages | J13: District & UA deprivation deciles in England (IMD2010) | K13: Most deprived decile (IMD2010) | L13: 2012 | M13: 11.4728673 | R13: 1005 | S13: 8759798 | T13: Aggregated from all known lower geography values | V13: Not compared | W13: Not compared
A14: 90742 | B14: Syphilis diagnostic rate / 100,000 | E14: E92000001 | F14: England | G14: Country | H14: Persons | I14: All ages | J14: District & UA deprivation deciles in England (IMD2010) | K14: Second most deprived decile (IMD2010) | L14: 2012 | M14: 7.829548553 | R14: 576 | S14: 7356746 | T14: Aggregated from all known lower geography values | V14: Not compared | W14: Not compared
A15: 90742 | B15: Syphilis diagnostic rate / 100,000 | E15: E92000001 | F15: England | G15: Country | H15: Persons | I15: All ages | J15: District & UA deprivation deciles in England (IMD2010) | K15: Third more deprived decile (IMD2010) | L15: 2012 | M15: 6.241993921 | R15: 389 | S15: 6231983 | T15: Aggregated from all known lower geography values | V15: Not compared | W15: Not compared
A16: 90742 | B16: Syphilis diagnostic rate / 100,000 | E16: E92000001 | F16: England | G16: Country | H16: Persons | I16: All ages | J16: District & UA deprivation deciles in England (IMD2010) | K16: Fourth more deprived decile (IMD2010) | L16: 2012 | M16: 5.374747322 | R16: 310 | S16: 5767713 | T16: Aggregated from all known lower geography values | V16: Not compared | W16: Not compared
A17: 90742 | B17: Syphilis diagnostic rate / 100,000 | E17: E92000001 | F17: England | G17: Country | H17: Persons | I17: All ages | J17: District & UA deprivation deciles in England (IMD2010) | K17: Fifth more deprived decile (IMD2010) | L17: 2012 | M17: 3.271626693 | R17: 145 | S17: 4432046 | T17: Aggregated from all known lower geography values | V17: Not compared | W17: Not compared
A18: 90742 | B18: Syphilis diagnostic rate / 100,000 | E18: E92000001 | F18: England | G18: Country | H18: Persons | I18: All ages | J18: District & UA deprivation deciles in England (IMD2010) | K18: Fifth less deprived decile (IMD2010) | L18: 2012 | M18: 2.720620648 | R18: 138 | S18: 5072372 | T18: Aggregated from all known lower geography values | V18: Not compared | W18: Not compared
A19: 90742 | B19: Syphilis diagnostic rate / 100,000 | E19: E92000001 | F19: England | G19: Country | H19: Persons | I19: All ages | J19: District & UA deprivation deciles in England (IMD2010) | K19: Fourth less deprived decile (IMD2010) | L19: 2012 | M19: 2.521145238 | R19: 109 | S19: 4323432 | T19: Aggregated from all known lower geography values | V19: Not compared | W19: Not compared
A20: 90742 | B20: Syphilis diagnostic rate / 100,000 | E20: E92000001 | F20: England | G20: Country | H20: Persons | I20: All ages | J20: District & UA deprivation deciles in England (IMD2010) | K20: Third less deprived decile (IMD2010) | L20: 2012 | M20: 2.112293062 | R20: 83 | S20: 3929379 | T20: Aggregated from all known lower geography values | V20: Not compared | W20: Not compared
A21: 90742 | B21: Syphilis diagnostic rate / 100,000 | E21: E92000001 | F21: England | G21: Country | H21: Persons | I21: All ages | J21: District & UA deprivation deciles in England (IMD2010) | K21: Second least deprived decile (IMD2010) | L21: 2012 | M21: 1.998854977 | R21: 81 | S21: 4052320 | T21: Aggregated from all known lower geography values | V21: Not compared | W21: Not compared
A22: 90742 | B22: Syphilis diagnostic rate / 100,000 | E22: E92000001 | F22: England | G22: Country | H22: Persons | I22: All ages | J22: District & UA deprivation deciles in England (IMD2010) | K22: Least deprived decile (IMD2010) | L22: 2012 | M22: 2.130080663 | R22: 76 | S22: 3567940 | T22: Aggregated from all known lower geography values | V22: Not compared | W22: Not compared
A23: 90742 | B23: Syphilis diagnostic rate / 100,000 | E23: E92000001 | F23: England | G23: Country | H23: Persons | I23: All ages | J23: County & UA deprivation deciles in England (IMD2015) | K23: Most deprived decile (IMD2015) | L23: 2012 | M23: 8.212522276 | R23: 406 | S23: 4943670 | T23: Aggregated from all known lower geography values | V23: Not compared | W23: Not compared
A24: 90742 | B24: Syphilis diagnostic rate / 100,000 | E24: E92000001 | F24: England | G24: Country | H24: Persons | I24: All ages | J24: County & UA deprivation deciles in England (IMD2015) | K24: Second most deprived decile (IMD2015) | L24: 2012 | M24: 8.991163761 | R24: 325 | S24: 3614660 | T24: Aggregated from all known lower geography values | V24: Not compared | W24: Not compared
A25: 90742 | B25: Syphilis diagnostic rate / 100,000 | E25: E92000001 | F25: England | G25: Country | H25: Persons | I25: All ages | J25: County & UA deprivation deciles in England (IMD2015) | K25: Third more deprived decile (IMD2015) | L25: 2012 | M25: 17.53707772 | R25: 651 | S25: 3712135 | T25: Aggregated from all known lower geography values | V25: Not compared | W25: Not compared
A26: 90742 | B26: Syphilis diagnostic rate / 100,000 | E26: E92000001 | F26: England | G26: Country | H26: Persons | I26: All ages | J26: County & UA deprivation deciles in England (IMD2015) | K26: Fourth more deprived decile (IMD2015) | L26: 2012 | M26: 5.090932933 | R26: 264 | S26: 5185690 | T26: Aggregated from all known lower geography values | V26: Not compared | W26: Not compared
A27: 90742 | B27: Syphilis diagnostic rate / 100,000 | E27: E92000001 | F27: England | G27: Country | H27: Persons | I27: All ages | J27: County & UA deprivation deciles in England (IMD2015) | K27: Fifth more deprived decile (IMD2015) | L27: 2012 | M27: 9.469157956 | R27: 361 | S27: 3812377 | T27: Aggregated from all known lower geography values | V27: Not compared | W27: Not compared
A28: 90742 | B28: Syphilis diagnostic rate / 100,000 | E28: E92000001 | F28: England | G28: Country | H28: Persons | I28: All ages | J28: County & UA deprivation deciles in England (IMD2015) | K28: Fifth less deprived decile (IMD2015) | L28: 2012 | M28: 3.533539996 | R28: 203 | S28: 5744947 | T28: Aggregated from all known lower geography values | V28: Not compared | W28: Not compared
A29: 90742 | B29: Syphilis diagnostic rate / 100,000 | E29: E92000001 | F29: England | G29: Country | H29: Persons | I29: All ages | J29: County & UA deprivation deciles in England (IMD2015) | K29: Fourth less deprived decile (IMD2015) | L29: 2012 | M29: 3.361510509 | R29: 241 | S29: 7169396 | T29: Aggregated from all known lower geography values | V29: Not compared | W29: Not compared
A30: 90742 | B30: Syphilis diagnostic rate / 100,000 | E30: E92000001 | F30: England | G30: Country | H30: Persons | I30: All ages | J30: County & UA deprivation deciles in England (IMD2015) | K30: Third less deprived decile (IMD2015) | L30: 2012 | M30: 2.28835969 | R30: 151 | S30: 6598613 | T30: Aggregated from all known lower geography values | V30: Not compared | W30: Not compared
A31: 90742 | B31: Syphilis diagnostic rate / 100,000 | E31: E92000001 | F31: England | G31: Country | H31: Persons | I31: All ages | J31: County & UA deprivation deciles in England (IMD2015) | K31: Second least deprived decile (IMD2015) | L31: 2012 | M31: 2.647905881 | R31: 166 | S31: 6269105 | T31: Aggregated from all known lower geography values | V31: Not compared | W31: Not compared
A32: 90742 | B32: Syphilis diagnostic rate / 100,000 | E32: E92000001 | F32: England | G32: Country | H32: Persons | I32: All ages | J32: County & UA deprivation deciles in England (IMD2015) | K32: Least deprived decile (IMD2015) | L32: 2012 | M32: 2.234936528 | R32: 144 | S32: 6443136 | T32: Aggregated from all known lower geography values | V32: Not compared | W32: Not compared
A33: 90742 | B33: Syphilis diagnostic rate / 100,000 | E33: E92000001 | F33: England | G33: Country | H33: Persons | I33: All ages | J33: District & UA deprivation deciles in England (IMD2015) | K33: Most deprived decile (IMD2015) | L33: 2012 | M33: 8.425690849 | R33: 689 | S33: 8177371 | T33: Aggregated from all known lower geography values | V33: Not compared | W33: Not compared
A34: 90742 | B34: Syphilis diagnostic rate / 100,000 | E34: E92000001 | F34: England | G34: Country | H34: Persons | I34: All ages | J34: District & UA deprivation deciles in England (IMD2015) | K34: Second most deprived decile (IMD2015) | L34: 2012 | M34: 10.28158435 | R34: 808 | S34: 7858711 | T34: Aggregated from all known lower geography values | V34: Not compared | W34: Not compared
A35: 90742 | B35: Syphilis diagnostic rate / 100,000 | E35: E92000001 | F35: England | G35: Country | H35: Persons | I35: All ages | J35: District & UA deprivation deciles in England (IMD2015) | K35: Third more deprived decile (IMD2015) | L35: 2012 | M35: 6.290504671 | R35: 453 | S35: 7201330 | T35: Aggregated from all known lower geography values | V35: Not compared | W35: Not compared
A36: 90742 | B36: Syphilis diagnostic rate / 100,000 | E36: E92000001 | F36: England | G36: Country | H36: Persons | I36: All ages | J36: District & UA deprivation deciles in England (IMD2015) | K36: Fourth more deprived decile (IMD2015) | L36: 2012 | M36: 5.726230197 | R36: 272 | S36: 4750071 | T36: Aggregated from all known lower geography values | V36: Not compared | W36: Not compared
A37: 90742 | B37: Syphilis diagnostic rate / 100,000 | E37: E92000001 | F37: England | G37: Country | H37: Persons | I37: All ages | J37: District & UA deprivation deciles in England (IMD2015) | K37: Fifth more deprived decile (IMD2015) | L37: 2012 | M37: 4.046033378 | R37: 193 | S37: 4770104 | T37: Aggregated from all known lower geography values | V37: Not compared | W37: Not compared
A38: 90742 | B38: Syphilis diagnostic rate / 100,000 | E38: E92000001 | F38: England | G38: Country | H38: Persons | I38: All ages | J38: District & UA deprivation deciles in England (IMD2015) | K38: Fifth less deprived decile (IMD2015) | L38: 2012 | M38: 2.547238642 | R38: 126 | S38: 4946533 | T38: Aggregated from all known lower geography values | V38: Not compared | W38: Not compared
A39: 90742 | B39: Syphilis diagnostic rate / 100,000 | E39: E92000001 | F39: England | G39: Country | H39: Persons | I39: All ages | J39: District & UA deprivation deciles in England (IMD2015) | K39: Fourth less deprived decile (IMD2015) | L39: 2012 | M39: 3.243787047 | R39: 140 | S39: 4315943 | T39: Aggregated from all known lower geography values | V39: Not compared | W39: Not compared
A40: 90742 | B40: Syphilis diagnostic rate / 100,000 | E40: E92000001 | F40: England | G40: Country | H40: Persons | I40: All ages | J40: District & UA deprivation deciles in England (IMD2015) | K40: Third less deprived decile (IMD2015) | L40: 2012 | M40: 1.939921166 | R40: 74 | S40: 3814588 | T40: Aggregated from all known lower geography values | V40: Not compared | W40: Not compared
A41: 90742 | B41: Syphilis diagnostic rate / 100,000 | E41: E92000001 | F41: England | G41: Country | H41: Persons | I41: All ages | J41: District & UA deprivation deciles in England (IMD2015) | K41: Second least deprived decile (IMD2015) | L41: 2012 | M41: 2.184857688 | R41: 91 | S41: 4165031 | T41: Aggregated from all known lower geography values | V41: Not compared | W41: Not compared
A42: 90742 | B42: Syphilis diagnostic rate / 100,000 | E42: E92000001 | F42: England | G42: Country | H42: Persons | I42: All ages | J42: District & UA deprivation deciles in England (IMD2015) | K42: Least deprived decile (IMD2015) | L42: 2012 | M42: 1.888927081 | R42: 66 | S42: 3494047 | T42: Aggregated from all known lower geography values | V42: Not compared | W42: Not compared
A43: 90742 | B43: Syphilis diagnostic rate / 100,000 | C43: E92000001 | D43: England | E43: E92000001 | F43: England | G43: Country | H43: Persons | I43: All ages | L43: 2012 | M43: 5.443628788 | N43: 5.247689724 | O43: 5.645012379 | R43: 2912 | S43: 53493729 | V43: Same | W43: Not compared
A44: 90742 | B44: Syphilis diagnostic rate / 100,000 | C44: E92000001 | D44: England | E44: E92000001 | F44: England | G44: Country | H44: Persons | I44: All ages | J44: County & UA deprivation deciles in England (IMD2010) | K44: Most deprived decile (IMD2010) | L44: 2012 | M44: 11.49523972 | R44: 561 | S44: 4880281 | T44: Aggregated from all known lower geography values | V44: Not compared | W44: Not compared
A45: 90742 | B45: Syphilis diagnostic rate / 100,000 | C45: E92000001 | D45: England | E45: E92000001 | F45: England | G45: Country | H45: Persons | I45: All ages | J45: County & UA deprivation deciles in England (IMD2010) | K45: Second most deprived decile (IMD2010) | L45: 2012 | M45: 12.36184921 | R45: 477 | S45: 3858646 | T45: Aggregated from all known lower geography values | V45: Not compared | W45: Not compared
A46: 90742 | B46: Syphilis diagnostic rate / 100,000 | C46: E92000001 | D46: England | E46: E92000001 | F46: England | G46: Country | H46: Persons | I46: All ages | J46: County & UA deprivation deciles in England (IMD2010) | K46: Third more deprived decile (IMD2010) | L46: 2012 | M46: 9.020727469 | R46: 317 | S46: 3514129 | T46: Aggregated from all known lower geography values | V46: Not compared | W46: Not compared
A47: 90742 | B47: Syphilis diagnostic rate / 100,000 | C47: E92000001 | D47: England | E47: E92000001 | F47: England | G47: Country | H47: Persons | I47: All ages | J47: County & UA deprivation deciles in England (IMD2010) | K47: Fourth more deprived decile (IMD2010) | L47: 2012 | M47: 7.562885715 | R47: 354 | S47: 4680753 | T47: Aggregated from all known lower geography values | V47: Not compared | W47: Not compared
A48: 90742 | B48: Syphilis diagnostic rate / 100,000 | C48: E92000001 | D48: England | E48: E92000001 | F48: England | G48: Country | H48: Persons | I48: All ages | J48: County & UA deprivation deciles in England (IMD2010) | K48: Fifth more deprived decile (IMD2010) | L48: 2012 | M48: 7.533592368 | R48: 283 | S48: 3756508 | T48: Aggregated from all known lower geography values | V48: Not compared | W48: Not compared
A49: 90742 | B49: Syphilis diagnostic rate / 100,000 | C49: E92000001 | D49: England | E49: E92000001 | F49: England | G49: Country | H49: Persons | I49: All ages | J49: County & UA deprivation deciles in England (IMD2010) | K49: Fifth less deprived decile (IMD2010) | L49: 2012 | M49: 4.467682307 | R49: 235 | S49: 5259998 | T49: Aggregated from all known lower geography values | V49: Not compared | W49: Not compared
A50: 90742 | B50: Syphilis diagnostic rate / 100,000 | C50: E92000001 | D50: England | E50: E92000001 | F50: England | G50: Country | H50: Persons | I50: All ages | J50: County & UA deprivation deciles in England (IMD2010) | K50: Fourth less deprived decile (IMD2010) | L50: 2012 | M50: 2.872851515 | R50: 227 | S50: 7901557 | T50: Aggregated from all known lower geography values | V50: Not compared | W50: Not compared
A51: 90742 | B51: Syphilis diagnostic rate / 100,000 | C51: E92000001 | D51: England | E51: E92000001 | F51: England | G51: Country | H51: Persons | I51: All ages | J51: County & UA deprivation deciles in England (IMD2010) | K51: Third less deprived decile (IMD2010) | L51: 2012 | M51: 2.232020155 | R51: 121 | S51: 5421098 | T51: Aggregated from all known lower geography values | V51: Not compared | W51: Not compared
A52: 90742 | B52: Syphilis diagnostic rate / 100,000 | C52: E92000001 | D52: England | E52: E92000001 | F52: England | G52: Country | H52: Persons | I52: All ages | J52: County & UA deprivation deciles in England (IMD2010) | K52: Second least deprived decile (IMD2010) | L52: 2012 | M52: 2.479457438 | R52: 193 | S52: 7783961 | T52: Aggregated from all known lower geography values | V52: Not compared | W52: Not compared
A53: 90742 | B53: Syphilis diagnostic rate / 100,000 | C53: E92000001 | D53: England | E53: E92000001 | F53: England | G53: Country | H53: Persons | I53: All ages | J53: County & UA deprivation deciles in England (IMD2010) | K53: Least deprived decile (IMD2010) | L53: 2012 | M53: 2.23713716 | R53: 144 | S53: 6436798 | T53: Aggregated from all known lower geography values | V53: Not compared | W53: Not compared
A54: 90742 | B54: Syphilis diagnostic rate / 100,000 | C54: E92000001 | D54: England | E54: E92000001 | F54: England | G54: Country | H54: Persons | I54: All ages | J54: District & UA deprivation deciles in England (IMD2010) | K54: Most deprived decile (IMD2010) | L54: 2012 | M54: 11.4728673 | R54: 1005 | S54: 8759798 | T54: Aggregated from all known lower geography values | V54: Not compared | W54: Not compared
A55: 90742 | B55: Syphilis diagnostic rate / 100,000 | C55: E92000001 | D55: England | E55: E92000001 | F55: England | G55: Country | H55: Persons | I55: All ages | J55: District & UA deprivation deciles in England (IMD2010) | K55: Second most deprived decile (IMD2010) | L55: 2012 | M55: 7.829548553 | R55: 576 | S55: 7356746 | T55: Aggregated from all known lower geography values | V55: Not compared | W55: Not compared
A56: 90742 | B56: Syphilis diagnostic rate / 100,000 | C56: E92000001 | D56: England | E56: E92000001 | F56: England | G56: Country | H56: Persons | I56: All ages | J56: District & UA deprivation deciles in England (IMD2010) | K56: Third more deprived decile (IMD2010) | L56: 2012 | M56: 6.241993921 | R56: 389 | S56: 6231983 | T56: Aggregated from all known lower geography values | V56: Not compared | W56: Not compared
A57: 90742 | B57: Syphilis diagnostic rate / 100,000 | C57: E92000001 | D57: England | E57: E92000001 | F57: England | G57: Country | H57: Persons | I57: All ages | J57: District & UA deprivation deciles in England (IMD2010) | K57: Fourth more deprived decile (IMD2010) | L57: 2012 | M57: 5.374747322 | R57: 310 | S57: 5767713 | T57: Aggregated from all known lower geography values | V57: Not compared | W57: Not compared
A58: 90742 | B58: Syphilis diagnostic rate / 100,000 | C58: E92000001 | D58: England | E58: E92000001 | F58: England | G58: Country | H58: Persons | I58: All ages | J58: District & UA deprivation deciles in England (IMD2010) | K58: Fifth more deprived decile (IMD2010) | L58: 2012 | M58: 3.271626693 | R58: 145 | S58: 4432046 | T58: Aggregated from all known lower geography values | V58: Not compared | W58: Not compared
A59: 90742 | B59: Syphilis diagnostic rate / 100,000 | C59: E92000001 | D59: England | E59: E92000001 | F59: England | G59: Country | H59: Persons | I59: All ages | J59: District & UA deprivation deciles in England (IMD2010) | K59: Fifth less deprived decile (IMD2010) | L59: 2012 | M59: 2.720620648 | R59: 138 | S59: 5072372 | T59: Aggregated from all known lower geography values | V59: Not compared | W59: Not compared
A60: 90742 | B60: Syphilis diagnostic rate / 100,000 | C60: E92000001 | D60: England | E60: E92000001 | F60: England | G60: Country | H60: Persons | I60: All ages | J60: District & UA deprivation deciles in England (IMD2010) | K60: Fourth less deprived decile (IMD2010) | L60: 2012 | M60: 2.521145238 | R60: 109 | S60: 4323432 | T60: Aggregated from all known lower geography values | V60: Not compared | W60: Not compared
A61: 90742 | B61: Syphilis diagnostic rate / 100,000 | C61: E92000001 | D61: England | E61: E92000001 | F61: England | G61: Country | H61: Persons | I61: All ages | J61: District & UA deprivation deciles in England (IMD2010) | K61: Third less deprived decile (IMD2010) | L61: 2012 | M61: 2.112293062 | R61: 83 | S61: 3929379 | T61: Aggregated from all known lower geography values | V61: Not compared | W61: Not compared
A62: 90742 | B62: Syphilis diagnostic rate / 100,000 | C62: E92000001 | D62: England | E62: E92000001 | F62: England | G62: Country | H62: Persons | I62: All ages | J62: District & UA deprivation deciles in England (IMD2010) | K62: Second least deprived decile (IMD2010) | L62: 2012 | M62: 1.998854977 | R62: 81 | S62: 4052320 | T62: Aggregated from all known lower geography values | V62: Not compared | W62: Not compared
A63: 90742 | B63: Syphilis diagnostic rate / 100,000 | C63: E92000001 | D63: England | E63: E92000001 | F63: England | G63: Country | H63: Persons | I63: All ages | J63: District & UA deprivation deciles in England (IMD2010) | K63: Least deprived decile (IMD2010) | L63: 2012 | M63: 2.130080663 | R63: 76 | S63: 3567940 | T63: Aggregated from all known lower geography values | V63: Not compared | W63: Not compared
A64: 90742 | B64: Syphilis diagnostic rate / 100,000 | C64: E92000001 | D64: England | E64: E92000001 | F64: England | G64: Country | H64: Persons | I64: All ages | J64: County & UA deprivation deciles in England (IMD2015) | K64: Most deprived decile (IMD2015) | L64: 2012 | M64: 8.212522276 | R64: 406 | S64: 4943670 | T64: Aggregated from all known lower geography values | V64: Not compared | W64: Not compared
A65: 90742 | B65: Syphilis diagnostic rate / 100,000 | C65: E92000001 | D65: England | E65: E92000001 | F65: England | G65: Country | H65: Persons | I65: All ages | J65: County & UA deprivation deciles in England (IMD2015) | K65: Second most deprived decile (IMD2015) | L65: 2012 | M65: 8.991163761 | R65: 325 | S65: 3614660 | T65: Aggregated from all known lower geography values | V65: Not compared | W65: Not compared
A66: 90742 | B66: Syphilis diagnostic rate / 100,000 | C66: E92000001 | D66: England | E66: E92000001 | F66: England | G66: Country | H66: Persons | I66: All ages | J66: County & UA deprivation deciles in England (IMD2015) | K66: Third more deprived decile (IMD2015) | L66: 2012 | M66: 17.53707772 | R66: 651 | S66: 3712135 | T66: Aggregated from all known lower geography values | V66: Not compared | W66: Not compared
A67: 90742 | B67: Syphilis diagnostic rate / 100,000 | C67: E92000001 | D67: England | E67: E92000001 | F67: England | G67: Country | H67: Persons | I67: All ages | J67: County & UA deprivation deciles in England (IMD2015) | K67: Fourth more deprived decile (IMD2015) | L67: 2012 | M67: 5.090932933 | R67: 264 | S67: 5185690 | T67: Aggregated from all known lower geography values | V67: Not compared | W67: Not compared
A68: 90742 | B68: Syphilis diagnostic rate / 100,000 | C68: E92000001 | D68: England | E68: E92000001 | F68: England | G68: Country | H68: Persons | I68: All ages | J68: County & UA deprivation deciles in England (IMD2015) | K68: Fifth more deprived decile (IMD2015) | L68: 2012 | M68: 9.469157956 | R68: 361 | S68: 3812377 | T68: Aggregated from all known lower geography values | V68: Not compared | W68: Not compared
A69: 90742 | B69: Syphilis diagnostic rate / 100,000 | C69: E92000001 | D69: England | E69: E92000001 | F69: England | G69: Country | H69: Persons | I69: All ages | J69: County & UA deprivation deciles in England (IMD2015) | K69: Fifth less deprived decile (IMD2015) | L69: 2012 | M69: 3.533539996 | R69: 203 | S69: 5744947 | T69: Aggregated from all known lower geography values | V69: Not compared | W69: Not compared
A70: 90742 | B70: Syphilis diagnostic rate / 100,000 | C70: E92000001 | D70: England | E70: E92000001 | F70: England | G70: Country | H70: Persons | I70: All ages | J70: County & UA deprivation deciles in England (IMD2015) | K70: Fourth less deprived decile (IMD2015) | L70: 2012 | M70: 3.361510509 | R70: 241 | S70: 7169396 | T70: Aggregated from all known lower geography values | V70: Not compared | W70: Not compared
A71: 90742 | B71: Syphilis diagnostic rate / 100,000 | C71: E92000001 | D71: England | E71: E92000001 | F71: England | G71: Country | H71: Persons | I71: All ages | J71: County & UA deprivation deciles in England (IMD2015) | K71: Third less deprived decile (IMD2015) | L71: 2012 | M71: 2.28835969 | R71: 151 | S71: 6598613 | T71: Aggregated from all known lower geography values | V71: Not compared | W71: Not compared
A72: 90742 | B72: Syphilis diagnostic rate / 100,000 | C72: E92000001 | D72: England | E72: E92000001 | F72: England | G72: Country | H72: Persons | I72: All ages | J72: County & UA deprivation deciles in England (IMD2015) | K72: Second least deprived decile (IMD2015) | L72: 2012 | M72: 2.647905881 | R72: 166 | S72: 6269105 | T72: Aggregated from all known lower geography values | V72: Not compared | W72: Not compared
A73: 90742 | B73: Syphilis diagnostic rate / 100,000 | C73: E92000001 | D73: England | E73: E92000001 | F73: England | G73: Country | H73: Persons | I73: All ages | J73: County & UA deprivation deciles in England (IMD2015) | K73: Least deprived decile (IMD2015) | L73: 2012 | M73: 2.234936528 | R73: 144 | S73: 6443136 | T73: Aggregated from all known lower geography values | V73: Not compared | W73: Not compared
A74: 90742 | B74: Syphilis diagnostic rate / 100,000 | C74: E92000001 | D74: England | E74: E92000001 | F74: England | G74: Country | H74: Persons | I74: All ages | J74: District & UA deprivation deciles in England (IMD2015) | K74: Most deprived decile (IMD2015) | L74: 2012 | M74: 8.425690849 | R74: 689 | S74: 8177371 | T74: Aggregated from all known lower geography values | V74: Not compared | W74: Not compared
A75: 90742 | B75: Syphilis diagnostic rate / 100,000 | C75: E92000001 | D75: England | E75: E92000001 | F75: England | G75: Country | H75: Persons | I75: All ages | J75: District & UA deprivation deciles in England (IMD2015) | K75: Second most deprived decile (IMD2015) | L75: 2012 | M75: 10.28158435 | R75: 808 | S75: 7858711 | T75: Aggregated from all known lower geography values | V75: Not compared | W75: Not compared
A76: 90742 | B76: Syphilis diagnostic rate / 100,000 | C76: E92000001 | D76: England | E76: E92000001 | F76: England | G76: Country | H76: Persons | I76: All ages | J76: District & UA deprivation deciles in England (IMD2015) | K76: Third more deprived decile (IMD2015) | L76: 2012 | M76: 6.290504671 | R76: 453 | S76: 7201330 | T76: Aggregated from all known lower geography values | V76: Not compared | W76: Not compared
A77: 90742 | B77: Syphilis diagnostic rate / 100,000 | C77: E92000001 | D77: England | E77: E92000001 | F77: England | G77: Country | H77: Persons | I77: All ages | J77: District & UA deprivation deciles in England (IMD2015) | K77: Fourth more deprived decile (IMD2015) | L77: 2012 | M77: 5.726230197 | R77: 272 | S77: 4750071 | T77: Aggregated from all known lower geography values | V77: Not compared | W77: Not compared
A78: 90742 | B78: Syphilis diagnostic rate / 100,000 | C78: E92000001 | D78: England | E78: E92000001 | F78: England | G78: Country | H78: Persons | I78: All ages | J78: District & UA deprivation deciles in England (IMD2015) | K78: Fifth more deprived decile (IMD2015) | L78: 2012 | M78: 4.046033378 | R78: 193 | S78: 4770104 | T78: Aggregated from all known lower geography values | V78: Not compared | W78: Not compared
A79: 90742 | B79: Syphilis diagnostic rate / 100,000 | C79: E92000001 | D79: England | E79: E92000001 | F79: England | G79: Country | H79: Persons | I79: All ages | J79: District & UA deprivation deciles in England (IMD2015) | K79: Fifth less deprived decile (IMD2015) | L79: 2012 | M79: 2.547238642 | R79: 126 | S79: 4946533 | T79: Aggregated from all known lower geography values | V79: Not compared | W79: Not compared
A80: 90742 | B80: Syphilis diagnostic rate / 100,000 | C80: E92000001 | D80: England | E80: E92000001 | F80: England | G80: Country | H80: Persons | I80: All ages | J80: District & UA deprivation deciles in England (IMD2015) | K80: Fourth less deprived decile (IMD2015) | L80: 2012 | M80: 3.243787047 | R80: 140 | S80: 4315943 | T80: Aggregated from all known lower geography values | V80: Not compared | W80: Not compared
A81: 90742 | B81: Syphilis diagnostic rate / 100,000 | C81: E92000001 | D81: England | E81: E92000001 | F81: England | G81: Country | H81: Persons | I81: All ages | J81: District & UA deprivation deciles in England (IMD2015) | K81: Third less deprived decile (IMD2015) | L81: 2012 | M81: 1.939921166 | R81: 74 | S81: 3814588 | T81: Aggregated from all known lower geography values | V81: Not compared | W81: Not compared
A82: 90742 | B82: Syphilis diagnostic rate / 100,000 | C82: E92000001 | D82: England | E82: E92000001 | F82: England | G82: Country | H82: Persons | I82: All ages | J82: District & UA deprivation deciles in England (IMD2015) | K82: Second least deprived decile (IMD2015) | L82: 2012 | M82: 2.184857688 | R82: 91 | S82: 4165031 | T82: Aggregated from all known lower geography values | V82: Not compared | W82: Not compared
A83: 90742 | B83: Syphilis diagnostic rate / 100,000 | C83: E92000001 | D83: England | E83: E92000001 | F83: England | G83: Country | H83: Persons | I83: All ages | J83: District & UA deprivation deciles in England (IMD2015) | K83: Least deprived decile (IMD2015) | L83: 2012 | M83: 1.888927081 | R83: 66 | S83: 3494047 | T83: Aggregated from all known lower geography values | V83: Not compared | W83: Not compared
A84: 90742 | B84: Syphilis diagnostic rate / 100,000 | C84: E06000008 | D84: Blackburn with Darwen | E84: E06000008 | F84: Blackburn with Darwen | G84: County & UA | H84: Persons | I84: All ages | L84: 2012 | M84: 4.738919258 | N84: 1.905291319 | O84: 9.76398468 | R84: 7 | S84: 147713 | V84: Same | W84: Not compared
A85: 90742 | B85: Syphilis diagnostic rate / 100,000 | C85: E06000009 | D85: Blackpool | E85: E06000009 | F85: Blackpool | G85: County & UA | H85: Persons | I85: All ages | L85: 2012 | M85: 20.42598724 | N85: 13.67960453 | O85: 29.33512497 | R85: 29 | S85: 141976 | V85: Worse | W85: Not compared
A86: 90742 | B86: Syphilis diagnostic rate / 100,000 | C86: E10000017 | D86: Lancashire | E86: E07000117 | F86: Burnley | G86: District & UA | H86: Persons | I86: All ages | L86: 2012 | M86: 4.590999126 | N86: 1.250892758 | O86: 11.75478172 | R86: 4 | S86: 87127 | V86: Same | W86: Not compared
A87: 90742 | B87: Syphilis diagnostic rate / 100,000 | C87: E10000017 | D87: Lancashire | E87: E07000118 | F87: Chorley | G87: District & UA | H87: Persons | I87: All ages | L87: 2012 | M87: 4.583917618 | N87: 1.488385677 | O87: 10.69733524 | R87: 5 | S87: 109077 | V87: Same | W87: Not compared
A88: 90742 | B88: Syphilis diagnostic rate / 100,000 | C88: E10000017 | D88: Lancashire | E88: E07000119 | F88: Fylde | G88: District & UA | H88: Persons | I88: All ages | L88: 2012 | M88: 5.261773109 | N88: 1.433656096 | O88: 13.472229 | R88: 4 | S88: 76020 | V88: Same | W88: Not compared
A89: 90742 | B89: Syphilis diagnostic rate / 100,000 | C89: E10000017 | D89: Lancashire | E89: E07000120 | F89: Hyndburn | G89: District & UA | H89: Persons | I89: All ages | L89: 2012 | M89: 3.741114855 | N89: 0.7715078 | O89: 10.9331255 | R89: 3 | S89: 80190 | V89: Same | W89: Not compared
A90: 90742 | B90: Syphilis diagnostic rate / 100,000 | C90: E10000017 | D90: Lancashire | E90: E07000121 | F90: Lancaster | G90: District & UA | H90: Persons | I90: All ages | L90: 2012 | M90: 2.147996902 | N90: 0.442968607 | O90: 6.277358532 | R90: 3 | S90: 139665 | V90: Same | W90: Not compared
A91: 90742 | B91: Syphilis diagnostic rate / 100,000 | C91: E10000017 | D91: Lancashire | E91: E07000122 | F91: Pendle | G91: District & UA | H91: Persons | I91: All ages | L91: 2012 | M91: 5.579547405 | N91: 1.811663866 | O91: 13.0208025 | R91: 5 | S91: 89613 | V91: Same | W91: Not compared
A92: 90742 | B92: Syphilis diagnostic rate / 100,000 | C92: E10000017 | D92: Lancashire | E92: E07000123 | F92: Preston | G92: District & UA | H92: Persons | I92: All ages | L92: 2012 | M92: 4.269247055 | N92: 1.566738486 | O92: 9.29235363 | R92: 6 | S92: 140540 | V92: Same | W92: Not compared
A93: 90742 | B93: Syphilis diagnostic rate / 100,000 | C93: E10000017 | D93: Lancashire | E93: E07000124 | F93: Ribble Valley | G93: District & UA | H93: Persons | I93: All ages | L93: 2012 | M93: 5.208694935 | N93: 1.074158192 | O93: 15.22201729 | R93: 3 | S93: 57596 | V93: Same | W93: Not compared
A94: 90742 | B94: Syphilis diagnostic rate / 100,000 | C94: E10000017 | D94: Lancashire | E94: E07000125 | F94: Rossendale | G94: District & UA | H94: Persons | I94: All ages | L94: 2012 | M94: 4.388145924 | N94: 0.904941261 | O94: 12.82402515 | R94: 3 | S94: 68366 | V94: Same | W94: Not compared
A95: 90742 | B95: Syphilis diagnostic rate / 100,000 | C95: E10000017 | D95: Lancashire | E95: E07000126 | F95: South Ribble | G95: District & UA | H95: Persons | I95: All ages | L95: 2012 | M95: 2.753026009 | N95: 0.567740142 | O95: 8.045510292 | R95: 3 | S95: 108971 | V95: Same | W95: Not compared
A96: 90742 | B96: Syphilis diagnostic rate / 100,000 | C96: E10000017 | D96: Lancashire | E96: E07000127 | F96: West Lancashire | G96: District & UA | H96: Persons | I96: All ages | L96: 2012 | M96: 1.80302 | N96: 0.218354091 | O96: 6.513128281 | R96: 2 | S96: 110925 | V96: Same | W96: Not compared
A97: 90742 | B97: Syphilis diagnostic rate / 100,000 | C97: E10000017 | D97: Lancashire | E97: E07000128 | F97: Wyre | G97: District & UA | H97: Persons | I97: All ages | L97: 2012 | M97: 4.634392738 | N97: 1.50477469 | O97: 10.81512642 | R97: 5 | S97: 107889 | V97: Same | W97: Not compared
A98: 90742 | B98: Syphilis diagnostic rate / 100,000 | E98: E92000001 | F98: England | G98: Country | H98: Persons | I98: All ages | L98: 2013 | M98: 5.961108685 | N98: 5.756688595 | O98: 6.1709342 | R98: 3211 | S98: 53865817 | V98: Not compared | W98: Not compared
A99: 90742 | B99: Syphilis diagnostic rate / 100,000 | E99: E92000001 | F99: England | G99: Country | H99: Persons | I99: All ages | J99: County & UA deprivation deciles in England (IMD2010) | K99: Most deprived decile (IMD2010) | L99: 2013 | M99: 11.9948976 | R99: 591 | S99: 4927095 | T99: Aggregated from all known lower geography values | V99: Not compared | W99: Not compared
A100: 90742 | B100: Syphilis diagnostic rate / 100,000 | E100: E92000001 | F100: England | G100: Country | H100: Persons | I100: All ages | J100: County & UA deprivation deciles in England (IMD2010) | K100: Second most deprived decile (IMD2010) | L100: 2013 | M100: 15.02088907 | R100: 584 | S100: 3887919 | T100: Aggregated from all known lower geography values | V100: Not compared | W100: Not compared
A101: 90742 | B101: Syphilis diagnostic rate / 100,000 | E101: E92000001 | F101: England | G101: Country | H101: Persons | I101: All ages | J101: County & UA deprivation deciles in England (IMD2010) | K101: Third more deprived decile (IMD2010) | L101: 2013 | M101: 10.43337526 | R101: 369 | S101: 3536727 | T101: Aggregated from all known lower geography values | V101: Not compared | W101: Not compared
A102: 90742 | B102: Syphilis diagnostic rate / 100,000 | E102: E92000001 | F102: England | G102: Country | H102: Persons | I102: All ages | J102: County & UA deprivation deciles in England (IMD2010) | K102: Fourth more deprived decile (IMD2010) | L102: 2013 | M102: 8.030086056 | R102: 378 | S102: 4707297 | T102: Aggregated from all known lower geography values | V102: Not compared | W102: Not compared
A103: 90742 | B103: Syphilis diagnostic rate / 100,000 | E103: E92000001 | F103: England | G103: Country | H103: Persons | I103: All ages | J103: County & UA deprivation deciles in England (IMD2010) | K103: Fifth more deprived decile (IMD2010) | L103: 2013 | M103: 8.388200633 | R103: 317 | S103: 3779118 | T103: Aggregated from all known lower geography values | V103: Not compared | W103: Not compared
A104: 90742 | B104: Syphilis diagnostic rate / 100,000 | E104: E92000001 | F104: England | G104: Country | H104: Persons | I104: All ages | J104: County & UA deprivation deciles in England (IMD2010) | K104: Fifth less deprived decile (IMD2010) | L104: 2013 | M104: 5.179782891 | R104: 274 | S104: 5289797 | T104: Aggregated from all known lower geography values | V104: Not compared | W104: Not compared
A105: 90742 | B105: Syphilis diagnostic rate / 100,000 | E105: E92000001 | F105: England | G105: Country | H105: Persons | I105: All ages | J105: County & UA deprivation deciles in England (IMD2010) | K105: Fourth less deprived decile (IMD2010) | L105: 2013 | M105: 2.55048003 | R105: 203 | S105: 7959286 | T105: Aggregated from all known lower geography values | V105: Not compared | W105: Not compared
A106: 90742 | B106: Syphilis diagnostic rate / 100,000 | E106: E92000001 | F106: England | G106: Country | H106: Persons | I106: All ages | J106: County & UA deprivation deciles in England (IMD2010) | K106: Third less deprived decile (IMD2010) | L106: 2013 | M106: 2.510955648 | R106: 137 | S106: 5456090 | T106: Aggregated from all known lower geography values | V106: Not compared | W106: Not compared
A107: 90742 | B107: Syphilis diagnostic rate / 100,000 | E107: E92000001 | F107: England | G107: Country | H107: Persons | I107: All ages | J107: County & UA deprivation deciles in England (IMD2010) | K107: Second least deprived decile (IMD2010) | L107: 2013 | M107: 2.54196185 | R107: 199 | S107: 7828599 | T107: Aggregated from all known lower geography values | V107: Not compared | W107: Not compared
A108: 90742 | B108: Syphilis diagnostic rate / 100,000 | E108: E92000001 | F108: England | G108: Country | H108: Persons | I108: All ages | J108: County & UA deprivation deciles in England (IMD2010) | K108: Least deprived decile (IMD2010) | L108: 2013 | M108: 2.448455771 | R108: 159 | S108: 6493889 | T108: Aggregated from all known lower geography values | V108: Not compared | W108: Not compared
A109: 90742 | B109: Syphilis diagnostic rate / 100,000 | E109: E92000001 | F109: England | G109: Country | H109: Persons | I109: All ages | J109: District & UA deprivation deciles in England (IMD2010) | K109: Most deprived decile (IMD2010) | L109: 2013 | M109: 13.05279078 | R109: 1153 | S109: 8833360 | T109: Aggregated from all known lower geography values | V109: Not compared | W109: Not compared
A110: 90742 | B110: Syphilis diagnostic rate / 100,000 | E110: E92000001 | F110: England | G110: Country | H110: Persons | I110: All ages | J110: District & UA deprivation deciles in England (IMD2010) | K110: Second most deprived decile (IMD2010) | L110: 2013 | M110: 8.543001849 | R110: 632 | S110: 7397868 | T110: Aggregated from all known lower geography values | V110: Not compared | W110: Not compared
A111: 90742 | B111: Syphilis diagnostic rate / 100,000 | E111: E92000001 | F111: England | G111: Country | H111: Persons | I111: All ages | J111: District & UA deprivation deciles in England (IMD2010) | K111: Third more deprived decile (IMD2010) | L111: 2013 | M111: 7.09564208 | R111: 445 | S111: 6271455 | T111: Aggregated from all known lower geography values | V111: Not compared | W111: Not compared
A112: 90742 | B112: Syphilis diagnostic rate / 100,000 | E112: E92000001 | F112: England | G112: Country | H112: Persons | I112: All ages | J112: District & UA deprivation deciles in England (IMD2010) | K112: Fourth more deprived decile (IMD2010) | L112: 2013 | M112: 5.962912066 | R112: 346 | S112: 5802534 | T112: Aggregated from all known lower geography values | V112: Not compared | W112: Not compared
A113: 90742 | B113: Syphilis diagnostic rate / 100,000 | E113: E92000001 | F113: England | G113: Country | H113: Persons | I113: All ages | J113: District & UA deprivation deciles in England (IMD2010) | K113: Fifth more deprived decile (IMD2010) | L113: 2013 | M113: 2.440877578 | R113: 109 | S113: 4465607 | T113: Aggregated from all known lower geography values | V113: Not compared | W113: Not compared
A114: 90742 | B114: Syphilis diagnostic rate / 100,000 | E114: E92000001 | F114: England | G114: Country | H114: Persons | I114: All ages | J114: District & UA deprivation deciles in England (IMD2010) | K114: Fifth less deprived decile (IMD2010) | L114: 2013 | M114: 2.897069282 | R114: 148 | S114: 5108611 | T114: Aggregated from all known lower geography values | V114: Not compared | W114: Not compared
A115: 90742 | B115: Syphilis diagnostic rate / 100,000 | E115: E92000001 | F115: England | G115: Country | H115: Persons | I115: All ages | J115: District & UA deprivation deciles in England (IMD2010) | K115: Fourth less deprived decile (IMD2010) | L115: 2013 | M115: 3.033799282 | R115: 132 | S115: 4350980 | T115: Aggregated from all known lower geography values | V115: Not compared | W115: Not compared
A116: 90742 | B116: Syphilis diagnostic rate / 100,000 | E116: E92000001 | F116: England | G116: Country | H116: Persons | I116: All ages | J116: District & UA deprivation deciles in England (IMD2010) | K116: Third less deprived decile (IMD2010) | L116: 2013 | M116: 2.097541227 | R116: 83 | S116: 3957014 | T116: Aggregated from all known lower geography values | V116: Not compared | W116: Not compared
A117: 90742 | B117: Syphilis diagnostic rate / 100,000 | E117: E92000001 | F117: England | G117: Country | H117: Persons | I117: All ages | J117: District & UA deprivation deciles in England (IMD2010) | K117: Second least deprived decile (IMD2010) | L117: 2013 | M117: 2.252200424 | R117: 92 | S117: 4084894 | T117: Aggregated from all known lower geography values | V117: Not compared | W117: Not compared
A118: 90742 | B118: Syphilis diagnostic rate / 100,000 | E118: E92000001 | F118: England | G118: Country | H118: Persons | I118: All ages | J118: District & UA deprivation deciles in England (IMD2010) | K118: Least deprived decile (IMD2010) | L118: 2013 | M118: 1.975792919 | R118: 71 | S118: 3593494 | T118: Aggregated from all known lower geography values | V118: Not compared | W118: Not compared
A119: 90742 | B119: Syphilis diagnostic rate / 100,000 | E119: E92000001 | F119: England | G119: Country | H119: Persons | I119: All ages | J119: County & UA deprivation deciles in England (IMD2015) | K119: Most deprived decile (IMD2015) | L119: 2013 | M119: 8.734503034 | R119: 435 | S119: 4980249 | T119: Aggregated from all known lower geography values | V119: Not compared | W119: Not compared
A120: 90742 | B120: Syphilis diagnostic rate / 100,000 | E120: E92000001 | F120: England | G120: Country | H120: Persons | I120: All ages | J120: County & UA deprivation deciles in England (IMD2015) | K120: Second most deprived decile (IMD2015) | L120: 2013 | M120: 8.431663836 | R120: 307 | S120: 3641037 | T120: Aggregated from all known lower geography values | V120: Not compared | W120: Not compared
A121: 90742 | B121: Syphilis diagnostic rate / 100,000 | E121: E92000001 | F121: England | G121: Country | H121: Persons | I121: All ages | J121: County & UA deprivation deciles in England (IMD2015) | K121: Third more deprived decile (IMD2015) | L121: 2013 | M121: 22.33236915 | R121: 837 | S121: 3747923 | T121: Aggregated from all known lower geography values | V121: Not compared | W121: Not compared
A122: 90742 | B122: Syphilis diagnostic rate / 100,000 | E122: E92000001 | F122: England | G122: Country | H122: Persons | I122: All ages | J122: County & UA deprivation deciles in England (IMD2015) | K122: Fourth more deprived decile (IMD2015) | L122: 2013 | M122: 5.999857 | R122: 313 | S122: 5216791 | T122: Aggregated from all known lower geography values | V122: Not compared | W122: Not compared
A123: 90742 | B123: Syphilis diagnostic rate / 100,000 | E123: E92000001 | F123: England | G123: Country | H123: Persons | I123: All ages | J123: County & UA deprivation deciles in England (IMD2015) | K123: Fifth more deprived decile (IMD2015) | L123: 2013 | M123: 10.14544235 | R123: 389 | S123: 3834234 | T123: Aggregated from all known lower geography values | V123: Not compared | W123: Not compared
A124: 90742 | B124: Syphilis diagnostic rate / 100,000 | E124: E92000001 | F124: England | G124: Country | H124: Persons | I124: All ages | J124: County & UA deprivation deciles in England (IMD2015) | K124: Fifth less deprived decile (IMD2015) | L124: 2013 | M124: 3.272377086 | R124: 189 | S124: 5775618 | T124: Aggregated from all known lower geography values | V124: Not compared | W124: Not compared
A125: 90742 | B125: Syphilis diagnostic rate / 100,000 | E125: E92000001 | F125: England | G125: Country | H125: Persons | I125: All ages | J125: County & UA deprivation deciles in England (IMD2015) | K125: Fourth less deprived decile (IMD2015) | L125: 2013 | M125: 3.641600593 | R125: 263 | S125: 7222099 | T125: Aggregated from all known lower geography values | V125: Not compared | W125: Not compared
A126: 90742 | B126: Syphilis diagnostic rate / 100,000 | E126: E92000001 | F126: England | G126: Country | H126: Persons | I126: All ages | J126: County & UA deprivation deciles in England (IMD2015) | K126: Third less deprived decile (IMD2015) | L126: 2013 | M126: 2.408772629 | R126: 160 | S126: 6642387 | T126: Aggregated from all known lower geography values | V126: Not compared | W126: Not compared
A127: 90742 | B127: Syphilis diagnostic rate / 100,000 | E127: E92000001 | F127: England | G127: Country | H127: Persons | I127: All ages | J127: County & UA deprivation deciles in England (IMD2015) | K127: Second least deprived decile (IMD2015) | L127: 2013 | M127: 2.331587603 | R127: 147 | S127: 6304717 | T127: Aggregated from all known lower geography values | V127: Not compared | W127: Not compared
A128: 90742 | B128: Syphilis diagnostic rate / 100,000 | E128: E92000001 | F128: England | G128: Country | H128: Persons | I128: All ages | J128: County & UA deprivation deciles in England (IMD2015) | K128: Least deprived decile (IMD2015) | L128: 2013 | M128: 2.63046086 | R128: 171 | S128: 6500762 | T128: Aggregated from all known lower geography values | V128: Not compared | W128: Not compared
A129: 90742 | B129: Syphilis diagnostic rate / 100,000 | E129: E92000001 | F129: England | G129: Country | H129: Persons | I129: All ages | J129: District & UA deprivation deciles in England (IMD2015) | K129: Most deprived decile (IMD2015) | L129: 2013 | M129: 8.523586171 | R129: 702 | S129: 8235970 | T129: Aggregated from all known lower geography values | V129: Not compared | W129: Not compared
A130: 90742 | B130: Syphilis diagnostic rate / 100,000 | E130: E92000001 | F130: England | G130: Country | H130: Persons | I130: All ages | J130: District & UA deprivation deciles in England (IMD2015) | K130: Second most deprived decile (IMD2015) | L130: 2013 | M130: 12.86666036 | R130: 1019 | S130: 7919693 | T130: Aggregated from all known lower geography values | V130: Not compared | W130: Not compared
A131: 90742 | B131: Syphilis diagnostic rate / 100,000 | E131: E92000001 | F131: England | G131: Country | H131: Persons | I131: All ages | J131: District & UA deprivation deciles in England (IMD2015) | K131: Third more deprived decile (IMD2015) | L131: 2013 | M131: 6.583678275 | R131: 477 | S131: 7245190 | T131: Aggregated from all known lower geography values | V131: Not compared | W131: Not compared
A132: 90742 | B132: Syphilis diagnostic rate / 100,000 | E132: E92000001 | F132: England | G132: Country | H132: Persons | I132: All ages | J132: District & UA deprivation deciles in England (IMD2015) | K132: Fourth more deprived decile (IMD2015) | L132: 2013 | M132: 6.535591743 | R132: 312 | S132: 4773860 | T132: Aggregated from all known lower geography values | V132: Not compared | W132: Not compared
A133: 90742 | B133: Syphilis diagnostic rate / 100,000 | E133: E92000001 | F133: England | G133: Country | H133: Persons | I133: All ages | J133: District & UA deprivation deciles in England (IMD2015) | K133: Fifth more deprived decile (IMD2015) | L133: 2013 | M133: 3.746807408 | R133: 180 | S133: 4804090 | T133: Aggregated from all known lower geography values | V133: Not compared | W133: Not compared
A134: 90742 | B134: Syphilis diagnostic rate / 100,000 | E134: E92000001 | F134: England | G134: Country | H134: Persons | I134: All ages | J134: District & UA deprivation deciles in England (IMD2015) | K134: Fifth less deprived decile (IMD2015) | L134: 2013 | M134: 2.928943823 | R134: 146 | S134: 4984732 | T134: Aggregated from all known lower geography values | V134: Not compared | W134: Not compared
A135: 90742 | B135: Syphilis diagnostic rate / 100,000 | E135: E92000001 | F135: England | G135: Country | H135: Persons | I135: All ages | J135: District & UA deprivation deciles in England (IMD2015) | K135: Fourth less deprived decile (IMD2015) | L135: 2013 | M135: 2.969879209 | R135: 129 | S135: 4343611 | T135: Aggregated from all known lower geography values | V135: Not compared | W135: Not compared
A136: 90742 | B136: Syphilis diagnostic rate / 100,000 | E136: E92000001 | F136: England | G136: Country | H136: Persons | I136: All ages | J136: District & UA deprivation deciles in England (IMD2015) | K136: Third less deprived decile (IMD2015) | L136: 2013 | M136: 2.082382162 | R136: 80 | S136: 3841754 | T136: Aggregated from all known lower geography values | V136: Not compared | W136: Not compared
A137: 90742 | B137: Syphilis diagnostic rate / 100,000 | E137: E92000001 | F137: England | G137: Country | H137: Persons | I137: All ages | J137: District & UA deprivation deciles in England (IMD2015) | K137: Second least deprived decile (IMD2015) | L137: 2013 | M137: 2.262977521 | R137: 95 | S137: 4198009 | T137: Aggregated from all known lower geography values | V137: Not compared | W137: Not compared
A138: 90742 | B138: Syphilis diagnostic rate / 100,000 | E138: E92000001 | F138: England | G138: Country | H138: Persons | I138: All ages | J138: District & UA deprivation deciles in England (IMD2015) | K138: Least deprived decile (IMD2015) | L138: 2013 | M138: 2.017671391 | R138: 71 | S138: 3518908 | T138: Aggregated from all known lower geography values | V138: Not compared | W138: Not compared
A139: 90742 | B139: Syphilis diagnostic rate / 100,000 | C139: E92000001 | D139: England | E139: E92000001 | F139: England | G139: Country | H139: Persons | I139: All ages | L139: 2013 | M139: 5.961108685 | N139: 5.756688595 | O139: 6.1709342 | R139: 3211 | S139: 53865817 | V139: Same | W139: Not compared
A140: 90742 | B140: Syphilis diagnostic rate / 100,000 | C140: E92000001 | D140: England | E140: E92000001 | F140: England | G140: Country | H140: Persons | I140: All ages | J140: County & UA deprivation deciles in England (IMD2010) | K140: Most deprived decile (IMD2010) | L140: 2013 | M140: 11.9948976 | R140: 591 | S140: 4927095 | T140: Aggregated from all known lower geography values | V140: Not compared | W140: Not compared
A141: 90742 | B141: Syphilis diagnostic rate / 100,000 | C141: E92000001 | D141: England | E141: E92000001 | F141: England | G141: Country | H141: Persons | I141: All ages | J141: County & UA deprivation deciles in England (IMD2010) | K141: Second most deprived decile (IMD2010) | L141: 2013 | M141: 15.02088907 | R141: 584 | S141: 3887919 | T141: Aggregated from all known lower geography values | V141: Not compared | W141: Not compared
A142: 90742 | B142: Syphilis diagnostic rate / 100,000 | C142: E92000001 | D142: England | E142: E92000001 | F142: England | G142: Country | H142: Persons | I142: All ages | J142: County & UA deprivation deciles in England (IMD2010) | K142: Third more deprived decile (IMD2010) | L142: 2013 | M142: 10.43337526 | R142: 369 | S142: 3536727 | T142: Aggregated from all known lower geography values | V142: Not compared | W142: Not compared
A143: 90742 | B143: Syphilis diagnostic rate / 100,000 | C143: E92000001 | D143: England | E143: E92000001 | F143: England | G143: Country | H143: Persons | I143: All ages | J143: County & UA deprivation deciles in England (IMD2010) | K143: Fourth more deprived decile (IMD2010) | L143: 2013 | M143: 8.030086056 | R143: 378 | S143: 4707297 | T143: Aggregated from all known lower geography values | V143: Not compared | W143: Not compared
A144: 90742 | B144: Syphilis diagnostic rate / 100,000 | C144: E92000001 | D144: England | E144: E92000001 | F144: England | G144: Country | H144: Persons | I144: All ages | J144: County & UA deprivation deciles in England (IMD2010) | K144: Fifth more deprived decile (IMD2010) | L144: 2013 | M144: 8.388200633 | R144: 317 | S144: 3779118 | T144: Aggregated from all known lower geography values | V144: Not compared | W144: Not compared
A145: 90742 | B145: Syphilis diagnostic rate / 100,000 | C145: E92000001 | D145: England | E145: E92000001 | F145: England | G145: Country | H145: Persons | I145: All ages | J145: County & UA deprivation deciles in England (IMD2010) | K145: Fifth less deprived decile (IMD2010) | L145: 2013 | M145: 5.179782891 | R145: 274 | S145: 5289797 | T145: Aggregated from all known lower geography values | V145: Not compared | W145: Not compared
A146: 90742 | B146: Syphilis diagnostic rate / 100,000 | C146: E92000001 | D146: England | E146: E92000001 | F146: England | G146: Country | H146: Persons | I146: All ages | J146: County & UA deprivation deciles in England (IMD2010) | K146: Fourth less deprived decile (IMD2010) | L146: 2013 | M146: 2.55048003 | R146: 203 | S146: 7959286 | T146: Aggregated from all known lower geography values | V146: Not compared | W146: Not compared
A147: 90742 | B147: Syphilis diagnostic rate / 100,000 | C147: E92000001 | D147: England | E147: E92000001 | F147: England | G147: Country | H147: Persons | I147: All ages | J147: County & UA deprivation deciles in England (IMD2010) | K147: Third less deprived decile (IMD2010) | L147: 2013 | M147: 2.510955648 | R147: 137 | S147: 5456090 | T147: Aggregated from all known lower geography values | V147: Not compared | W147: Not compared
A148: 90742 | B148: Syphilis diagnostic rate / 100,000 | C148: E92000001 | D148: England | E148: E92000001 | F148: England | G148: Country | H148: Persons | I148: All ages | J148: County & UA deprivation deciles in England (IMD2010) | K148: Second least deprived decile (IMD2010) | L148: 2013 | M148: 2.54196185 | R148: 199 | S148: 7828599 | T148: Aggregated from all known lower geography values | V148: Not compared | W148: Not compared
A149: 90742 | B149: Syphilis diagnostic rate / 100,000 | C149: E92000001 | D149: England | E149: E92000001 | F149: England | G149: Country | H149: Persons | I149: All ages | J149: County & UA deprivation deciles in England (IMD2010) | K149: Least deprived decile (IMD2010) | L149: 2013 | M149: 2.448455771 | R149: 159 | S149: 6493889 | T149: Aggregated from all known lower geography values | V149: Not compared | W149: Not compared
A150: 90742 | B150: Syphilis diagnostic rate / 100,000 | C150: E92000001 | D150: England | E150: E92000001 | F150: England | G150: Country | H150: Persons | I150: All ages | J150: District & UA deprivation deciles in England (IMD2010) | K150: Most deprived decile (IMD2010) | L150: 2013 | M150: 13.05279078 | R150: 1153 | S150: 8833360 | T150: Aggregated from all known lower geography values | V150: Not compared | W150: Not compared
A151: 90742 | B151: Syphilis diagnostic rate / 100,000 | C151: E92000001 | D151: England | E151: E92000001 | F151: England | G151: Country | H151: Persons | I151: All ages | J151: District & UA deprivation deciles in England (IMD2010) | K151: Second most deprived decile (IMD2010) | L151: 2013 | M151: 8.543001849 | R151: 632 | S151: 7397868 | T151: Aggregated from all known lower geography values | V151: Not compared | W151: Not compared
A152: 90742 | B152: Syphilis diagnostic rate / 100,000 | C152: E92000001 | D152: England | E152: E92000001 | F152: England | G152: Country | H152: Persons | I152: All ages | J152: District & UA deprivation deciles in England (IMD2010) | K152: Third more deprived decile (IMD2010) | L152: 2013 | M152: 7.09564208 | R152: 445 | S152: 6271455 | T152: Aggregated from all known lower geography values | V152: Not compared | W152: Not compared
A153: 90742 | B153: Syphilis diagnostic rate / 100,000 | C153: E92000001 | D153: England | E153: E92000001 | F153: England | G153: Country | H153: Persons | I153: All ages | J153: District & UA deprivation deciles in England (IMD2010) | K153: Fourth more deprived decile (IMD2010) | L153: 2013 | M153: 5.962912066 | R153: 346 | S153: 5802534 | T153: Aggregated from all known lower geography values | V153: Not compared | W153: Not compared
A154: 90742 | B154: Syphilis diagnostic rate / 100,000 | C154: E92000001 | D154: England | E154: E92000001 | F154: England | G154: Country | H154: Persons | I154: All ages | J154: District & UA deprivation deciles in England (IMD2010) | K154: Fifth more deprived decile (IMD2010) | L154: 2013 | M154: 2.440877578 | R154: 109 | S154: 4465607 | T154: Aggregated from all known lower geography values | V154: Not compared | W154: Not compared
A155: 90742 | B155: Syphilis diagnostic rate / 100,000 | C155: E92000001 | D155: England | E155: E92000001 | F155: England | G155: Country | H155: Persons | I155: All ages | J155: District & UA deprivation deciles in England (IMD2010) | K155: Fifth less deprived decile (IMD2010) | L155: 2013 | M155: 2.897069282 | R155: 148 | S155: 5108611 | T155: Aggregated from all known lower geography values | V155: Not compared | W155: Not compared
A156: 90742 | B156: Syphilis diagnostic rate / 100,000 | C156: E92000001 | D156: England | E156: E92000001 | F156: England | G156: Country | H156: Persons | I156: All ages | J156: District & UA deprivation deciles in England (IMD2010) | K156: Fourth less deprived decile (IMD2010) | L156: 2013 | M156: 3.033799282 | R156: 132 | S156: 4350980 | T156: Aggregated from all known lower geography values | V156: Not compared | W156: Not compared
A157: 90742 | B157: Syphilis diagnostic rate / 100,000 | C157: E92000001 | D157: England | E157: E92000001 | F157: England | G157: Country | H157: Persons | I157: All ages | J157: District & UA deprivation deciles in England (IMD2010) | K157: Third less deprived decile (IMD2010) | L157: 2013 | M157: 2.097541227 | R157: 83 | S157: 3957014 | T157: Aggregated from all known lower geography values | V157: Not compared | W157: Not compared
A158: 90742 | B158: Syphilis diagnostic rate / 100,000 | C158: E92000001 | D158: England | E158: E92000001 | F158: England | G158: Country | H158: Persons | I158: All ages | J158: District & UA deprivation deciles in England (IMD2010) | K158: Second least deprived decile (IMD2010) | L158: 2013 | M158: 2.252200424 | R158: 92 | S158: 4084894 | T158: Aggregated from all known lower geography values | V158: Not compared | W158: Not compared
A159: 90742 | B159: Syphilis diagnostic rate / 100,000 | C159: E92000001 | D159: England | E159: E92000001 | F159: England | G159: Country | H159: Persons | I159: All ages | J159: District & UA deprivation deciles in England (IMD2010) | K159: Least deprived decile (IMD2010) | L159: 2013 | M159: 1.975792919 | R159: 71 | S159: 3593494 | T159: Aggregated from all known lower geography values | V159: Not compared | W159: Not compared
A160: 90742 | B160: Syphilis diagnostic rate / 100,000 | C160: E92000001 | D160: England | E160: E92000001 | F160: England | G160: Country | H160: Persons | I160: All ages | J160: County & UA deprivation deciles in England (IMD2015) | K160: Most deprived decile (IMD2015) | L160: 2013 | M160: 8.734503034 | R160: 435 | S160: 4980249 | T160: Aggregated from all known lower geography values | V160: Not compared | W160: Not compared
A161: 90742 | B161: Syphilis diagnostic rate / 100,000 | C161: E92000001 | D161: England | E161: E92000001 | F161: England | G161: Country | H161: Persons | I161: All ages | J161: County & UA deprivation deciles in England (IMD2015) | K161: Second most deprived decile (IMD2015) | L161: 2013 | M161: 8.431663836 | R161: 307 | S161: 3641037 | T161: Aggregated from all known lower geography values | V161: Not compared | W161: Not compared
A162: 90742 | B162: Syphilis diagnostic rate / 100,000 | C162: E92000001 | D162: England | E162: E92000001 | F162: England | G162: Country | H162: Persons | I162: All ages | J162: County & UA deprivation deciles in England (IMD2015) | K162: Third more deprived decile (IMD2015) | L162: 2013 | M162: 22.33236915 | R162: 837 | S162: 3747923 | T162: Aggregated from all known lower geography values | V162: Not compared | W162: Not compared
A163: 90742 | B163: Syphilis diagnostic rate / 100,000 | C163: E92000001 | D163: England | E163: E92000001 | F163: England | G163: Country | H163: Persons | I163: All ages | J163: County & UA deprivation deciles in England (IMD2015) | K163: Fourth more deprived decile (IMD2015) | L163: 2013 | M163: 5.999857 | R163: 313 | S163: 5216791 | T163: Aggregated from all known lower geography values | V163: Not compared | W163: Not compared
A164: 90742 | B164: Syphilis diagnostic rate / 100,000 | C164: E92000001 | D164: England | E164: E92000001 | F164: England | G164: Country | H164: Persons | I164: All ages | J164: County & UA deprivation deciles in England (IMD2015) | K164: Fifth more deprived decile (IMD2015) | L164: 2013 | M164: 10.14544235 | R164: 389 | S164: 3834234 | T164: Aggregated from all known lower geography values | V164: Not compared | W164: Not compared
A165: 90742 | B165: Syphilis diagnostic rate / 100,000 | C165: E92000001 | D165: England | E165: E92000001 | F165: England | G165: Country | H165: Persons | I165: All ages | J165: County & UA deprivation deciles in England (IMD2015) | K165: Fifth less deprived decile (IMD2015) | L165: 2013 | M165: 3.272377086 | R165: 189 | S165: 5775618 | T165: Aggregated from all known lower geography values | V165: Not compared | W165: Not compared
A166: 90742 | B166: Syphilis diagnostic rate / 100,000 | C166: E92000001 | D166: England | E166: E92000001 | F166: England | G166: Country | H166: Persons | I166: All ages | J166: County & UA deprivation deciles in England (IMD2015) | K166: Fourth less deprived decile (IMD2015) | L166: 2013 | M166: 3.641600593 | R166: 263 | S166: 7222099 | T166: Aggregated from all known lower geography values | V166: Not compared | W166: Not compared
A167: 90742 | B167: Syphilis diagnostic rate / 100,000 | C167: E92000001 | D167: England | E167: E92000001 | F167: England | G167: Country | H167: Persons | I167: All ages | J167: County & UA deprivation deciles in England (IMD2015) | K167: Third less deprived decile (IMD2015) | L167: 2013 | M167: 2.408772629 | R167: 160 | S167: 6642387 | T167: Aggregated from all known lower geography values | V167: Not compared | W167: Not compared
A168: 90742 | B168: Syphilis diagnostic rate / 100,000 | C168: E92000001 | D168: England | E168: E92000001 | F168: England | G168: Country | H168: Persons | I168: All ages | J168: County & UA deprivation deciles in England (IMD2015) | K168: Second least deprived decile (IMD2015) | L168: 2013 | M168: 2.331587603 | R168: 147 | S168: 6304717 | T168: Aggregated from all known lower geography values | V168: Not compared | W168: Not compared
A169: 90742 | B169: Syphilis diagnostic rate / 100,000 | C169: E92000001 | D169: England | E169: E92000001 | F169: England | G169: Country | H169: Persons | I169: All ages | J169: County & UA deprivation deciles in England (IMD2015) | K169: Least deprived decile (IMD2015) | L169: 2013 | M169: 2.63046086 | R169: 171 | S169: 6500762 | T169: Aggregated from all known lower geography values | V169: Not compared | W169: Not compared
A170: 90742 | B170: Syphilis diagnostic rate / 100,000 | C170: E92000001 | D170: England | E170: E92000001 | F170: England | G170: Country | H170: Persons | I170: All ages | J170: District & UA deprivation deciles in England (IMD2015) | K170: Most deprived decile (IMD2015) | L170: 2013 | M170: 8.523586171 | R170: 702 | S170: 8235970 | T170: Aggregated from all known lower geography values | V170: Not compared | W170: Not compared
A171: 90742 | B171: Syphilis diagnostic rate / 100,000 | C171: E92000001 | D171: England | E171: E92000001 | F171: England | G171: Country | H171: Persons | I171: All ages | J171: District & UA deprivation deciles in England (IMD2015) | K171: Second most deprived decile (IMD2015) | L171: 2013 | M171: 12.86666036 | R171: 1019 | S171: 7919693 | T171: Aggregated from all known lower geography values | V171: Not compared | W171: Not compared
A172: 90742 | B172: Syphilis diagnostic rate / 100,000 | C172: E92000001 | D172: England | E172: E92000001 | F172: England | G172: Country | H172: Persons | I172: All ages | J172: District & UA deprivation deciles in England (IMD2015) | K172: Third more deprived decile (IMD2015) | L172: 2013 | M172: 6.583678275 | R172: 477 | S172: 7245190 | T172: Aggregated from all known lower geography values | V172: Not compared | W172: Not compared
A173: 90742 | B173: Syphilis diagnostic rate / 100,000 | C173: E92000001 | D173: England | E173: E92000001 | F173: England | G173: Country | H173: Persons | I173: All ages | J173: District & UA deprivation deciles in England (IMD2015) | K173: Fourth more deprived decile (IMD2015) | L173: 2013 | M173: 6.535591743 | R173: 312 | S173: 4773860 | T173: Aggregated from all known lower geography values | V173: Not compared | W173: Not compared
A174: 90742 | B174: Syphilis diagnostic rate / 100,000 | C174: E92000001 | D174: England | E174: E92000001 | F174: England | G174: Country | H174: Persons | I174: All ages | J174: District & UA deprivation deciles in England (IMD2015) | K174: Fifth more deprived decile (IMD2015) | L174: 2013 | M174: 3.746807408 | R174: 180 | S174: 4804090 | T174: Aggregated from all known lower geography values | V174: Not compared | W174: Not compared
A175: 90742 | B175: Syphilis diagnostic rate / 100,000 | C175: E92000001 | D175: England | E175: E92000001 | F175: England | G175: Country | H175: Persons | I175: All ages | J175: District & UA deprivation deciles in England (IMD2015) | K175: Fifth less deprived decile (IMD2015) | L175: 2013 | M175: 2.928943823 | R175: 146 | S175: 4984732 | T175: Aggregated from all known lower geography values | V175: Not compared | W175: Not compared
A176: 90742 | B176: Syphilis diagnostic rate / 100,000 | C176: E92000001 | D176: England | E176: E92000001 | F176: England | G176: Country | H176: Persons | I176: All ages | J176: District & UA deprivation deciles in England (IMD2015) | K176: Fourth less deprived decile (IMD2015) | L176: 2013 | M176: 2.969879209 | R176: 129 | S176: 4343611 | T176: Aggregated from all known lower geography values | V176: Not compared | W176: Not compared
A177: 90742 | B177: Syphilis diagnostic rate / 100,000 | C177: E92000001 | D177: England | E177: E92000001 | F177: England | G177: Country | H177: Persons | I177: All ages | J177: District & UA deprivation deciles in England (IMD2015) | K177: Third less deprived decile (IMD2015) | L177: 2013 | M177: 2.082382162 | R177: 80 | S177: 3841754 | T177: Aggregated from all known lower geography values | V177: Not compared | W177: Not compared
A178: 90742 | B178: Syphilis diagnostic rate / 100,000 | C178: E92000001 | D178: England | E178: E92000001 | F178: England | G178: Country | H178: Persons | I178: All ages | J178: District & UA deprivation deciles in England (IMD2015) | K178: Second least deprived decile (IMD2015) | L178: 2013 | M178: 2.262977521 | R178: 95 | S178: 4198009 | T178: Aggregated from all known lower geography values | V178: Not compared | W178: Not compared
A179: 90742 | B179: Syphilis diagnostic rate / 100,000 | C179: E92000001 | D179: England | E179: E92000001 | F179: England | G179: Country | H179: Persons | I179: All ages | J179: District & UA deprivation deciles in England (IMD2015) | K179: Least deprived decile (IMD2015) | L179: 2013 | M179: 2.017671391 | R179: 71 | S179: 3518908 | T179: Aggregated from all known lower geography values | V179: Not compared | W179: Not compared
A180: 90742 | B180: Syphilis diagnostic rate / 100,000 | C180: E06000008 | D180: Blackburn with Darwen | E180: E06000008 | F180: Blackburn with Darwen | G180: County & UA | H180: Persons | I180: All ages | L180: 2013 | M180: 3.392843723 | N180: 1.101647139 | O180: 7.917765617 | R180: 5 | S180: 147369 | V180: Same | W180: Not compared
A181: 90742 | B181: Syphilis diagnostic rate / 100,000 | C181: E06000009 | D181: Blackpool | E181: E06000009 | F181: Blackpool | G181: County & UA | H181: Persons | I181: All ages | L181: 2013 | M181: 21.92362022 | N181: 14.8960371 | O181: 31.11882973 | R181: 31 | S181: 141400 | V181: Worse | W181: Not compared
A182: 90742 | B182: Syphilis diagnostic rate / 100,000 | C182: E10000017 | D182: Lancashire | E182: E07000117 | F182: Burnley | G182: District & UA | H182: Persons | I182: All ages | L182: 2013 | M182: 2.301654816 | N182: 0.278741091 | O182: 8.314369202 | R182: 2 | S182: 86894 | V182: Same | W182: Not compared
A183: 90742 | B183: Syphilis diagnostic rate / 100,000 | C183: E10000017 | D183: Lancashire | E183: E07000118 | F183: Chorley | G183: District & UA | H183: Persons | I183: All ages | L183: 2013 | M183: 0.904936433 | N183: 0.022911007 | O183: 5.041983128 | R183: 1 | S183: 110505 | V183: Better | W183: Not compared
A184: 90742 | B184: Syphilis diagnostic rate / 100,000 | C184: E10000017 | D184: Lancashire | E184: E07000119 | F184: Fylde | G184: District & UA | H184: Persons | I184: All ages | L184: 2013 | M184: 2.61636281 | N184: 0.316853672 | O184: 9.451201439 | R184: 2 | S184: 76442 | V184: Same | W184: Not compared
A185: 90742 | B185: Syphilis diagnostic rate / 100,000 | C185: E10000017 | D185: Lancashire | E185: E07000120 | F185: Hyndburn | G185: District & UA | H185: Persons | I185: All ages | L185: 2013 | M185: 3.747844934 | N185: 0.772895753 | O185: 10.95279312 | R185: 3 | S185: 80046 | V185: Same | W185: Not compared
A186: 90742 | B186: Syphilis diagnostic rate / 100,000 | C186: E10000017 | D186: Lancashire | E186: E07000121 | F186: Lancaster | G186: District & UA | H186: Persons | I186: All ages | L186: 2013 | M186: 0 | N186: 0 | O186: 2.624136209 | R186: 0 | S186: 140575 | V186: Better | W186: Not compared
A187: 90742 | B187: Syphilis diagnostic rate / 100,000 | C187: E10000017 | D187: Lancashire | E187: E07000122 | F187: Pendle | G187: District & UA | H187: Persons | I187: All ages | L187: 2013 | M187: 4.437984943 | N187: 1.209201455 | O187: 11.36300373 | R187: 4 | S187: 90131 | V187: Same | W187: Not compared
A188: 90742 | B188: Syphilis diagnostic rate / 100,000 | C188: E10000017 | D188: Lancashire | E188: E07000123 | F188: Preston | G188: District & UA | H188: Persons | I188: All ages | L188: 2013 | M188: 3.560771704 | N188: 1.156172872 | O188: 8.309653282 | R188: 5 | S188: 140419 | V188: Same | W188: Not compared
A189: 90742 | B189: Syphilis diagnostic rate / 100,000 | C189: E10000017 | D189: Lancashire | E189: E07000124 | F189: Ribble Valley | G189: District & UA | H189: Persons | I189: All ages | L189: 2013 | M189: 3.456738949 | N189: 0.418627113 | O189: 12.48692989 | R189: 2 | S189: 57858 | V189: Same | W189: Not compared
A190: 90742 | B190: Syphilis diagnostic rate / 100,000 | C190: E10000017 | D190: Lancashire | E190: E07000125 | F190: Rossendale | G190: District & UA | H190: Persons | I190: All ages | L190: 2013 | M190: 5.818689823 | N190: 1.585397124 | O190: 14.89815617 | R190: 4 | S190: 68744 | V190: Same | W190: Not compared
A191: 90742 | B191: Syphilis diagnostic rate / 100,000 | C191: E10000017 | D191: Lancashire | E191: E07000126 | F191: South Ribble | G191: District & UA | H191: Persons | I191: All ages | L191: 2013 | M191: 3.672656059 | N191: 1.000675201 | O191: 9.403458595 | R191: 4 | S191: 108913 | V191: Same | W191: Not compared
A192: 90742 | B192: Syphilis diagnostic rate / 100,000 | C192: E10000017 | D192: Lancashire | E192: E07000127 | F192: West Lancashire | G192: District & UA | H192: Persons | I192: All ages | L192: 2013 | M192: 0 | N192: 0 | O192: 3.313940287 | R192: 0 | S192: 111314 | V192: Better | W192: Not compared
A193: 90742 | B193: Syphilis diagnostic rate / 100,000 | C193: E10000017 | D193: Lancashire | E193: E07000128 | F193: Wyre | G193: District & UA | H193: Persons | I193: All ages | L193: 2013 | M193: 2.771721125 | N193: 0.57159549 | O193: 8.10014534 | R193: 3 | S193: 108236 | V193: Same | W193: Not compared
A194: 90742 | B194: Syphilis diagnostic rate / 100,000 | E194: E92000001 | F194: England | G194: Country | H194: Persons | I194: All ages | L194: 2014 | M194: 7.870519638 | N194: 7.636337757 | O194: 8.110056877 | R194: 4275 | S194: 54316618 | V194: Not compared | W194: Not compared
A195: 90742 | B195: Syphilis diagnostic rate / 100,000 | E195: E92000001 | F195: England | G195: Country | H195: Persons | I195: All ages | J195: County & UA deprivation deciles in England (IMD2010) | K195: Most deprived decile (IMD2010) | L195: 2014 | M195: 15.56026295 | R195: 774 | S195: 4974209 | T195: Aggregated from all known lower geography values | V195: Not compared | W195: Not compared
A196: 90742 | B196: Syphilis diagnostic rate / 100,000 | E196: E92000001 | F196: England | G196: Country | H196: Persons | I196: All ages | J196: County & UA deprivation deciles in England (IMD2010) | K196: Second most deprived decile (IMD2010) | L196: 2014 | M196: 19.76663148 | R196: 776 | S196: 3925808 | T196: Aggregated from all known lower geography values | V196: Not compared | W196: Not compared
A197: 90742 | B197: Syphilis diagnostic rate / 100,000 | E197: E92000001 | F197: England | G197: Country | H197: Persons | I197: All ages | J197: County & UA deprivation deciles in England (IMD2010) | K197: Third more deprived decile (IMD2010) | L197: 2014 | M197: 13.2863601 | R197: 473 | S197: 3560042 | T197: Aggregated from all known lower geography values | V197: Not compared | W197: Not compared
A198: 90742 | B198: Syphilis diagnostic rate / 100,000 | E198: E92000001 | F198: England | G198: Country | H198: Persons | I198: All ages | J198: County & UA deprivation deciles in England (IMD2010) | K198: Fourth more deprived decile (IMD2010) | L198: 2014 | M198: 12.00075084 | R198: 569 | S198: 4741370 | T198: Aggregated from all known lower geography values | V198: Not compared | W198: Not compared
A199: 90742 | B199: Syphilis diagnostic rate / 100,000 | E199: E92000001 | F199: England | G199: Country | H199: Persons | I199: All ages | J199: County & UA deprivation deciles in England (IMD2010) | K199: Fifth more deprived decile (IMD2010) | L199: 2014 | M199: 10.89764564 | R199: 415 | S199: 3808162 | T199: Aggregated from all known lower geography values | V199: Not compared | W199: Not compared
A200: 90742 | B200: Syphilis diagnostic rate / 100,000 | E200: E92000001 | F200: England | G200: Country | H200: Persons | I200: All ages | J200: County & UA deprivation deciles in England (IMD2010) | K200: Fifth less deprived decile (IMD2010) | L200: 2014 | M200: 6.590486154 | R200: 351 | S200: 5325859 | T200: Aggregated from all known lower geography values | V200: Not compared | W200: Not compared
... 2050 more rows

Sheet Lookup (hidden)
A4: Blackburn with Darwen
A5: Blackpool
A6: Lancashire-12
A7: Burnley
A8: Chorley
A9: Fylde
A10: Hyndburn
A11: Lancaster
A12: Pendle
A13: Preston
A14: Ribble Valley
A15: Rossendale
A16: South Ribble
A17: West Lancashire
A18: Wyre
A23: Persons
A24: Females
A25: Males
C26: =MAX(B32:P47) -> 5715.3
A28: Chl detections
B30: Persons | C30: Persons | D30: Persons | E30: Persons | F30: Persons | G30: Females | H30: Females | I30: Females | J30: Females | K30: Females | L30: Males | M30: Males | N30: Males | O30: Males | P30: Males
A31: Area | B31: 2012 | C31: 2013 | D31: 2014 | E31: 2015 | F31: 2016 | G31: 2012 | H31: 2013 | I31: 2014 | J31: 2015 | K31: 2016 | L31: 2012 | M31: 2013 | N31: 2014 | O31: 2015 | P31: 2016
A32: England | B32: 2094.6 | C32: 2087.6 | D32: 2035.3 | E32: 1913.58636 | F32: 1882.258969 | G32: 2723.3 | H32: 2737.1 | I32: 2701.4 | J32: 2528.649561 | K32: 2479.139604 | L32: 1446.5 | M32: 1436 | N32: 1367.8 | O32: 1293.977402 | P32: 1268.883962
A33: Blackburn with Darwen | B33: 2381 | C33: 1513.3 | D33: 1721.3 | E33: 2848.433887 | F33: 4172.797982 | G33: 3184.1 | H33: 1928.2 | I33: 2306 | J33: 4567.466432 | K33: 5469.953775 | L33: 1596 | M33: 1082.7 | N33: 1164.3 | O33: 1247.233957 | P33: 2937.034802
A34: Blackpool | B34: 5109.8 | C34: 3893.2 | D34: 3849.6 | E34: 3499.090358 | F34: 2825.955124 | G34: 5715.3 | H34: 4970.4 | I34: 4981.6 | J34: 4704.886309 | K34: 3592.162554 | L34: 4351.4 | M34: 2782.9 | N34: 2717.1 | O34: 2286.548285 | P34: 2055.460958
A35: Lancashire-12 | B35: 2263.3 | C35: 2313.7 | D35: 2389 | E35: 2280.601033 | F35: 2101.109285 | G35: 2904.1 | H35: 2962.1 | I35: 3091.9 | J35: 3117.463758 | K35: 2853.271914 | L35: 1613.8 | M35: 1672.5 | N35: 1702.4 | O35: 1457.628427 | P35: 1353.420216
A36: Burnley | B36: 2519.8 | C36: 1815.8 | D36: 2553.5 | E36: 2755.56412 | F36: 2553.232489 | G36: 3198.7 | H36: 2145.3 | I36: 3242.4 | J36: 3799.482793 | K36: 3461.308932 | L36: 1832.3 | M36: 1489.8 | N36: 1862.2 | O36: 1756.352765 | P36: 1700.298954
A37: Chorley | B37: 1546.4 | C37: 2227.2 | D37: 2454.7 | E37: 1887.750783 | F37: 1439.092525 | G37: 2105.6 | H37: 2968.1 | I37: 3065.6 | J37: 2661.332406 | K37: 1826.404592 | L37: 1021.1 | M37: 1509.6 | N37: 1861.1 | O37: 1121.372032 | P37: 1038.918206
A38: Fylde | B38: 2039.2 | C38: 2103.1 | D38: 2503.1 | E38: 2022.187895 | F38: 2148.574638 | G38: 2608.9 | H38: 2818.9 | I38: 3575.6 | J38: 3007.290401 | K38: 3189.550425 | L38: 1499.2 | M38: 1435 | N38: 1529.9 | O38: 1175.241577 | P38: 1227.474536
A39: Hyndburn | B39: 1655.3 | C39: 1614 | D39: 1693 | E39: 2192.347466 | F39: 1385.729059 | G39: 2169.1 | H39: 1995.5 | I39: 2256.4 | J39: 3072.684891 | K39: 1801.229074 | L39: 1144.3 | M39: 1224.3 | N39: 1142.5 | O39: 1353.261967 | P39: 989.6990507
A40: Lancaster | B40: 3418.1 | C40: 3410.1 | D40: 3282.9 | E40: 3084.913827 | F40: 2187.77052 | G40: 3975.6 | H40: 4097 | I40: 3928.9 | J40: 4062.751408 | K40: 2872.083669 | L40: 2802.1 | M40: 2736.7 | N40: 2652 | O40: 2133.394948 | P40: 1401.7252
A41: Pendle | B41: 1426.3 | C41: 1510.4 | D41: 1587.6 | E41: 1314.601104 | F41: 1164.07426 | G41: 2010.4 | H41: 1943.4 | I41: 2130.7 | J41: 1767.728674 | K41: 1644.398767 | L41: 829.5 | M41: 1088.2 | N41: 1074.2 | O41: 882.3529412 | P41: 705.8823529
A42: Preston | B42: 3090 | C42: 2626.8 | D42: 2541.6 | E42: 2447.186781 | F42: 3660.322108 | G42: 4075 | H42: 3311.1 | I42: 3188.6 | J42: 3151.494391 | K42: 4907.082299 | L42: 2103 | M42: 1952.4 | N42: 1910.5 | O42: 1684.658162 | P42: 2445.20772
A43: Ribble Valley | B43: 1633.4 | C43: 1361.9 | D43: 1369.9 | E43: 1920.614597 | F43: 1456.466069 | G43: 2326.4 | H43: 1892.4 | I43: 1895.7 | J43: 2763.561924 | K43: 2115.319004 | L43: 1018 | M43: 859 | N43: 902.5 | O43: 1145.613506 | P43: 844.1362677
A44: Rossendale | B44: 1760.1 | C44: 2116.7 | D44: 1959.5 | E44: 1971.942827 | F44: 1720.48703 | G44: 2309.4 | H44: 2567.9 | I44: 2434 | J44: 2935.631565 | K44: 2693.239968 | L44: 1204.8 | M44: 1655.6 | N44: 1479 | O44: 1040.8535 | P44: 780.6401249
A45: South Ribble | B45: 1822.4 | C45: 2412.3 | D45: 2218.9 | E45: 2072.933412 | F45: 1742.956257 | G45: 2452.4 | H45: 3467.2 | I45: 3051.9 | J45: 3061.581526 | K45: 2326.801959 | L45: 1214.4 | M45: 1384.5 | N45: 1429.7 | O45: 1130.591512 | P45: 1196.133049
A46: West Lancashire | B46: 1652.4 | C46: 1721.3 | D46: 2277.5 | E46: 2016.900019 | F46: 1696.16974 | G46: 2136.8 | H46: 2339.2 | I46: 3191.8 | J46: 2762.297068 | K46: 2277.683547 | L46: 1071.9 | M46: 1043.1 | N46: 1298.1 | O46: 1231.310466 | P46: 1067.973363
A47: Wyre | B47: 1920.2 | C47: 2611 | D47: 2262.8 | E47: 2186.079049 | F47: 1862.539349 | G47: 2447.6 | H47: 3536.5 | I47: 3170 | J47: 2961.191834 | K47: 2648.519404 | L47: 1434.1 | M47: 1745.2 | N47: 1406.4 | O47: 1433.572262 | P47: 1150.191699

Sheet Metadata
A1: Indicator ID | B1: Indicator | C1: Indicator full name | D1: Definition | E1: Rationale | F1: Policy | G1: Data source | H1: Indicator production | I1: Indicator source | J1: Methodology | K1: Standard population/values | L1: Confidence interval details | M1: Source of numerator | N1: Definition of numerator | O1: Source of denominator | P1: Definition of denominator | Q1: Disclosure control | R1: Caveats | S1: Copyright | T1: Data re-use | U1: Links | V1: Indicator number | W1: Notes | X1: Frequency | Y1: Rounding | Z1: Data quality | AA1: Indicator Content | AB1: Unit | AC1: Value type | AD1: Year type | AE1: Polarity
A2: 90742 | B2: Syphilis diagnostic rate / 100,000 | C2: Rate of syphilis diagnoses per 100,000 population | D2: All syphilis diagnoses among people accessing specialist and non-specialist sexual health services in England who are also residents in England, expressed as a rate per 100,000 population. Data exclude people accessing services located in England who are residents in Wales, Scotland, Northern Ireland or abroad. | E2: Syphilis is an important public health issue in men who have sex with men (MSM) among whom incidence has increased over the past decade. | F2: Sexual health is a key public health issue. The Department of Health has outlined its ambition for good sexual health in A Framework for Sexual Health Improvement in England. This is available at: https://www.gov.uk/government/publications/a-framework-for-sexual-health-improvement-in-england | G2: Public Health England | H2: Data are reported via Genitourinary Medicine Clinic Activity Dataset (GUMCADv2), the mandatory STI surveillance system for commissioned sexual health services in England. GUMCADv2 returns are collected and collated by the HIV & STI Department, National Infections Service, PHE, Colindale. | J2: Rate per 100,000 population. The numerator is divided by the denominator and multiplied by 100,000. | L2: Confidence interval method: Exact PoissonA confidence interval is a range of values that is used to quantify the imprecision in the estimate of a particular indicator. Specifically it quantifies the imprecision that results from random variation in the measurement of the indicator. A wider confidence interval shows that the indicator value presented is likely to be a less precise estimate of the true underlying value.Confidence intervals have been calculated by the Public Health England using the Stata software package and are based on the exact Poisson method. | M2: The SHHAPT codes for infectious syphilis are: A1 (primary), A2 (secondary), and A3 (early latent). The clinical criteria used to diagnose the conditions are given at: http://www.bashh.org/guidelines .Data were de-duplicated to ensure that a patient received a diagnostic code only once for each episode. Patients cannot be tracked between clinics and therefore de-duplication relies on patient attendances at a single service. | N2: The number of syphilis diagnoses among people accessing sexual health services* in England who are also residents in England.*Sexual health services (SHS) include both specialist (level 3) and non-specialist (level 1 & 2) SHSs. Specialist SHSs refers to genitourinary medicine (GUM) and integrated GUM/sexual and reproductive health (SRH). Non-specialist SHSs refers to SRH services, young peopleâ€™s services, online sexual health services, termination of pregnancy services, pharmacies, outreach, general practice, and other community-based settings. | O2: The denominators for 2012-2015 are taken from the respective 2012-2015 Office for National Statistics (ONS) population estimates from the 2011 Census (revised on 23 June 2016). The denominator for 2016 is also taken from the 2015 ONS population estimate, as the ONS population estimate for 2016 will have been released after this data was processed. | P2: Total population. | Q2: Numbers between 1 & 4 with a population <10,000 are suppressed. Where counts for Isles of Scilly or City of London are between 1 and 4, these are combined with Cornwall or Hackney respectively.Please follow this link for further details on data sharing and confidentiality: https://www.gov.uk/government/publications/hiv-and-sti-data-sharing-policy | R2: Every effort is made to ensure accuracy and completeness of GUMCADv2 data, including web-based reporting with integrated checks on data quality. However, responsibility for the accuracy and completeness of data lies with the reporting service.Data are updated on an annual basis due to clinic/laboratory resubmissions and improvements to data cleaning. Data may differ from previous publications.Data reported through GUMCADv2 are not representative of the general population because they only represent patients accessing sexual health services. | S2: The data shown in the Sexual and Reproductive Health Profiles are publicly available and there are no restrictions on their re-use.The polygon shape files used in the mapping function contain Ordnance Survey data (Â© Crown copyright and database rights 2017). | U2: National & regional level data are updated annually on the STI annual data page: <a href="https://www.gov.uk/government/statistics/sexually-transmitted-infections-stis-annual-data-tables">https://www.gov.uk/government/statistics/sexually-transmitted-infections-stis-annual-data-tablesPlease note that data published on the STI annual data page are based on location of reporting service thus will differ from figures presented here, which are based on area of residence.Related local level indicators such as STI testing rate and STI testing positivity, which can influence local diagnoses rates and can help in their interpretation are also available within the http://fingertips.phe.org.uk/profile/sexualhealth tool.Information for chlamydia diagnoses in 15 to 24 year olds is published on the NCSP page: <a href="https://www.gov.uk/government/collections/national-chlamydia-screening-programme-ncsp">https://www.gov.uk/government/collections/national-chlamydia-screening-programme-ncspLocal health services and commissioners can access more detailed local data through the HIV/STI Web Portal. These reports are generated quarterly using GUMCADv2 data. Access is restricted to authorised users:<a href="https://hivstiwebportal.phe.org.uk/login.aspx">https://hivstiwebportal.phe.org.uk/login.aspxFurther information can be found at https://www.gov.uk/genitourinary-medicine-clinic-activity-dataset-gumcadv2 or please contact mailto:gumcad@phe.gov.uk . | W2: Office of National Statistics 2011 Area Classification (ONS 2011group), further details can be found at: <a href="http://webarchive.nationalarchives.gov.uk/20160105160709/http://www.ons.gov.uk/ons/guide-method/geography/products/area-classifications/ns-area-classifications/ns-2011-area-classifications/index.html">http://webarchive.nationalarchives.gov.uk/20160105160709/http://www.ons.gov.uk/ons/guide-method/geography/products/area-classifications/ns-area-classifications/ns-2011-area-classifications/index.htmlOverall values for each of the thirteen ONS 2011 Groups and the deprivation deciles were calculated automatically by the Fingertips software used in the Sexual and Reproductive Health Profiles.Values for the Combined Authorities (CAs) in England defined by 6th June 2017 have been provided directly. New CAs defined after 6 June 2017 and before the 2018 data refresh will be calculated automatically by the Fingertips software in the Sexual and Reproductive Health Profiles. | X2: Annual | AB2: per 100,000 | AC2: Crude rate | AD2: Calendar | AE2: RAG - Low is good
A3: 90759 | B3: Gonorrhoea diagnostic rate / 100,000 | C3: Rate of gonorrhoea diagnoses per 100,000 population | D3: All gonorrhoea diagnoses among people accessing sexual health services in England who are also residents in England, expressed as a rate per 100,000 population. Data exclude people accessing sexual health services located in England who are residents in Wales, Scotland, Northern Ireland or abroad. | E3: Gonorrhoea causes avoidable sexual and reproductive ill-health. Gonorrhoea is used as a marker for rates of unsafe sexual activity. This is because the majority of cases are diagnosed in sexual health clinics, and consequently the number of cases may be a measure of access to sexually transmitted infection (STI) treatment. Infections with gonorrhoea are also more likely than chlamydia to result in symptoms. | F3: Sexual health is a key public health issue. The Department of Health has outlined its ambition for good sexual health in A Framework for Sexual Health Improvement in England. This is available at: <a href="https://www.gov.uk/government/publications/a-framework-for-sexual-health-improvement-in-england">https://www.gov.uk/government/publications/a-framework-for-sexual-health-improvement-in-england | G3: Public Health England | H3: Data are reported via Genitourinary Medicine Clinic Activity Dataset (GUMCADv2), the mandatory STI surveillance system for all commissioned sexual health services in England. GUMCADv2 returns are collected and collated by the HIV & STI Department, National Infections Service, PHE, Colindale. | J3: Rate per 100,000 population. The numerator is divided by the denominator and multiplied by 100,000. | L3: Confidence interval method: Exact PoissonA confidence interval is a range of values that is used to quantify the imprecision in the estimate of a particular indicator. Specifically it quantifies the imprecision that results from random variation in the measurement of the indicator. A wider confidence interval shows that the indicator value presented is likely to be a less precise estimate of the true underlying value.Confidence intervals have been calculated by the Public Health England using the Stata software package and are based on the exact Poisson method. | M3: The SHHAPT code used for gonorrhoea is B. The clinical criteria used to diagnose the conditions are given at: http://www.bashh.org/guidelines .Data were de-duplicated to ensure that a patient received a diagnostic code only once for each episode. Patients cannot be tracked between services and therefore de-duplication relies on patient attendances at a single service. | N3: The number of gonorrhoea diagnoses among people accessing sexual health services* in England who are also residents in England.*Sexual health services (SHS) include both specialist (level 3) and non-specialist (level 1 & 2) SHSs. Specialist SHSs refers to genitourinary medicine (GUM) and integrated GUM/sexual and reproductive health (SRH). Non-specialist SHSs refers to SRH services, young peopleâ€™s services, online sexual health services, termination of pregnancy services, pharmacies, outreach, general practice, and other community-based settings. | O3: The denominators for 2012-2015 are taken from the respective 2012-2015 Office for National Statistics (ONS) population estimates from the 2011 Census (revised on 23 June 2016). The denominator for 2016 is also taken from the 2015 ONS population estimate, as the ONS population estimate for 2016 will have been released after this data was processed. | P3: Total population. | Q3: Numbers between 1 & 4 with a population <10,000 are suppressed. Where counts for Isles of Scilly or City of London are between 1 and 4, these are combined with Cornwall or Hackney respectively.Please follow this link for further details on data sharing and confidentiality: <a href="https://www.gov.uk/government/publications/hiv-and-sti-data-sharing-policy">https://www.gov.uk/government/publications/hiv-and-sti-data-sharing-policy | R3: Every effort is made to ensure accuracy and completeness of GUMCADv2 data, including web-based reporting with integrated checks on data quality. However, responsibility for the accuracy and completeness of data lies with the reporting service.Data are updated on an annual basis due to clinic/laboratory resubmissions and improvements to data cleaning. Data may differ from previous publications.Data reported through GUMCADv2 are not representative of the general population because they only represent patients accessing sexual health services. | S3: The data shown in the Sexual and Reproductive Health Profiles are publicly available and there are no restrictions on their re-use.The polygon shape files used in the mapping function contain Ordnance Survey data (Â© Crown copyright and database rights 2017). | U3: National & regional level data are updated annually on the STI annual data page: <a href="https://www.gov.uk/government/statistics/sexually-transmitted-infections-stis-annual-data-tables">https://www.gov.uk/government/statistics/sexually-transmitted-infections-stis-annual-data-tables<a href="https://www.gov.uk/government/statistics/sexually-transmitted-infections-stis-annual-data-tables">Please note that data published on the STI annual data page are based on location of reporting service thus will differ from figures presented here, which are based on area of residence.Related local level indicators such as STI testing rate and STI testing positivity, which can influence local diagnoses rates and can help in their interpretation are also available within the http://fingertips.phe.org.uk/profile/sexualhealth tool.Information for chlamydia diagnoses in 15 to 24 year olds is published on the NCSP page: <a href="https://www.gov.uk/government/collections/national-chlamydia-screening-programme-ncsp">https://www.gov.uk/government/collections/national-chlamydia-screening-programme-ncspLocal health services and commissioners can access more detailed local data through the HIV/STI Web Portal. These reports are generated quarterly using GUMCADv2 data. Access is restricted to authorised users:<a href="https://hivstiwebportal.phe.org.uk/login.aspx">https://hivstiwebportal.phe.org.uk/login.aspxFurther information can be found at https://www.gov.uk/genitourinary-medicine-clinic-activity-dataset-gumcadv2 or please contact mailto:gumcad@phe.gov.uk . | W3: Office of National Statistics 2011 Area Classification (ONS 2011group), further details can be found at: <a href="http://webarchive.nationalarchives.gov.uk/20160105160709/http://www.ons.gov.uk/ons/guide-method/geography/products/area-classifications/ns-area-classifications/ns-2011-area-classifications/index.html">http://webarchive.nationalarchives.gov.uk/20160105160709/http://www.ons.gov.uk/ons/guide-method/geography/products/area-classifications/ns-area-classifications/ns-2011-area-classifications/index.htmlOverall values for each of the thirteen ONS 2011 Groups and the deprivation deciles were calculated automatically by the Fingertips software used in the Sexual and Reproductive Health Profiles.Values for the Combined Authorities (CAs) in England defined by 6th June 2017 have been provided directly. New CAs defined after 6 June 2017 and before the 2018 data refresh will be calculated automatically by the Fingertips software in the Sexual and Reproductive Health Profiles. | X3: Annual | AB3: per 100,000 | AC3: Crude rate | AD3: Calendar | AE3: RAG - Low is good
A4: 90776 | B4: Chlamydia detection rate / 100,000 aged 15-24 (PHOF indicator 3.02) | C4: Rate of chlamydia detection per 100,000 young people aged 15 to 24 | D4: All chlamydia diagnoses in 15 to 24 year olds attending specialist and non-specialist sexual health services (SHSs)*, who are residents in England, expressed as a rate per 100,000 population.Data excludes people accessing services located in England who are residents in Wales, Scotland, Northern Ireland or abroad. The England total includes tests which did not have sufficient location information to be attributed to a local authority of residence.*Sexual health services (SHS) include both specialist (level 3) and non-specialist (level 1 & 2) SHSs. Specialist SHSs refers to genitourinary medicine (GUM) and integrated GUM/sexual and reproductive health (SRH) services. Non-specialist SHSs refers to SRH services, young peopleâ€™s services, online sexual health services, termination of pregnancy services, pharmacies, outreach, general practice, and other community-based settings. | E4: Chlamydia is the most commonly diagnosed bacterial sexually transmitted infection in England, with rates substantially higher in young adults than any other age group. It causes avoidable sexual and reproductive ill-health, including symptomatic acute infections and complications such as pelvic inflammatory disease (PID), ectopic pregnancy and tubal-factor infertility. The National Chlamydia Screening Programme (NCSP) recommends screening for all sexually active young people under 25 annually or on change of partner (whichever is more frequent).The chlamydia detection rate amongst under 25 year olds is a measure of chlamydia control activity, aimed at reducing the incidence of reproductive sequelae of chlamydia infection and interrupting transmission onto others. An increased detection rate is indicative of increased control activity: detection rate is not a measure of morbidity.Inclusion of this indicator in the Public Health Outcomes Framework (PHOF) allows monitoring of progress to control chlamydia and the delivery of accessible, high-volume chlamydia screening.Public Health England (PHE) recommends that local authorities should be working towards achieving a detection rate of at least 2,300 per 100,000 population aged 15-24. The recommendation was set as a level that would encourage high volume screening and diagnoses, be ambitious but achievable, high enough to encourage community screening, rather than specialist sexual health clinic only diagnoses, and would be likely to result in a continued chlamydia prevalence reduction, according to mathematical modelling. | F4: The Department of Health Public Health Outcomes Framework recommends that local areas aim to achieve a chlamydia detection rate among 15 to 24 year olds of at least 2,300 per 100,000 population.The Department of Health has also outlined its ambition for good sexual health in A Framework for Sexual Health Improvement in England. This is available at: https://www.gov.uk/government/publications/a-framework-for-sexual-health-improvement-in-england | G4: Public Health England | H4: Data are reported via Chlamydia Testing Activity Dataset (CTAD), a mandatory laboratory based surveillance system for chlamydia tests in non-specialist SHSs, and Genitourinary Medicine Clinic Activity Dataset (GUMCADv2), the mandatory STI surveillance system for all specialist SHSs in England. Data are collected and collated by the HIV & STI Department, National Infections Service, PHE, Colindale. | I4: Public Health Englandâ€™s NCSP data tables:<a href="https://www.gov.uk/government/statistics/national-chlamydia-screening-programme-ncsp-data-tables">https://www.gov.uk/government/statistics/national-chlamydia-screening-programme-ncsp-data-tables | J4: Rate per 100,000 population aged 15 to 24. The numerator is divided by the denominator and multiplied by 100,000. | L4: Confidence interval method: Exact PoissonA confidence interval is a range of values that is used to quantify the imprecision in the estimate of a particular indicator. Specifically it quantifies the imprecision that results from random variation in the measurement of the indicator. A wider confidence interval shows that the indicator value presented is likely to be a less precise estimate of the true underlying value.Confidence intervals have been calculated by the Public Health England using the Stata software package and are based on the exact Poisson method. | M4: The Chlamydia Testing Activity Dataset (CTAD) for activity in non-specialist sexual health services. Details of the CTAD methodology are available at: https://www.gov.uk/government/collections/chlamydia-surveillance-data-screening-and-management .The Genitourinary Medicine Clinic Activity Dataset (GUMCADv2) for activity in specialist SHSs. The SHHAPT code used for chlamydia is C4. From 2012, all chlamydia diagnoses at specialist SHSs that were previously diagnosed at another service (C4X) have been removed from diagnosis totals. Details of the GUMCADv2 methodology are available at: https://www.gov.uk/guidance/genitourinary-medicine-clinic-activity-dataset-gumcadv2 .Includes those diagnosed through NHS and local authority commissioned testing and excludes those diagnosed through private testing.A maximum of one chlamydia test or diagnosis per individual is counted within a six week period. Any further tests or diagnoses within the six week period are not counted. Diagnoses are kept in preference over negative results during this process. | N4: The number of diagnoses of chlamydia among 15-24 year olds in England. | O4: The denominators for 2012-2015 are taken from the respective 2012-2015 Office for National Statistics (ONS) population estimates from the 2011 Census (revised on 23 June 2016). The denominator for 2016 is also taken from the 2015 ONS population estimate, as the ONS population estimate for 2016 was released after this data was processed. | P4: Resident population aged 15-24. | Q4: Numbers between 1 & 4 with a population <10,000 are suppressed. Where counts for Isles of Scilly or City of London are between 1 and 4, these are combined with Cornwall or Hackney respectively. Where required, the counts for the relevant deprivation decile groups and/or ONS groups are also adjusted to reflect the suppressed or combined counts.Please follow this link for further details on data sharing and confidentiality: https://www.gov.uk/government/publications/hiv-and-sti-data-sharing-policy | R4: Every effort is made to ensure accuracy and completeness of the data, including web-based reporting with integrated checks on data quality. However, responsibility for the accuracy and completeness of data lies with the data submitter and service providers.Data are updated on an annual basis due to clinic/laboratory resubmissions and improvements to data cleaning. Data may differ from previous publications.Chlamydia diagnoses are recorded in both GUMCADv2 and CTAD datasets. Records are de-duplicated within the two data sets as part of data cleaning in order to prevent overestimation prior to publication.Missing data in CTAD: Leeds General Infirmary Laboratory did not submit data for Q3 (July - September) 2016 and Q4 (October - December) 2016.This will affect the data for the areas where this laboratory is commissioned for chlamydia testing.Data reported through GUMCADv2 are representative of the patients accessing specialist SHSs. The coverage of NCSP screening services varies between health service areas. The number of diagnoses detected depends on the coverage of testing, and is likely to be an underestimate of the true number of infections in the population.CTAD data are based on tests with confirmed positive and negative results only. Tests with equivocal, inhibitory and insufficient results have been excluded as most people with these results are retested.It is possible that the number of diagnoses used to calculate the detection rate indicator for persons has a different value than the total of male and female diagnoses together as the total number of diagnoses include tests where sex was reported as indeterminate or unspecified. | S4: The data shown in the Sexual and Reproductive Health Profiles are publicly available and there are no restrictions on their re-use.The polygon shape files used in the mapping function contain Ordnance Survey data (Â© Crown copyright and database rights 2017). | U4: National & regional level data are available on the NCSP data tables page:<a href="https://www.gov.uk/government/statistics/national-chlamydia-screening-programme-ncsp-data-tables">https://www.gov.uk/government/statistics/national-chlamydia-screening-programme-ncsp-data-tablesRelated local level indicators are available in the http://fingertips.phe.org.uk/profile/sexualhealth tool.Information on the surveillance and epidemiology of sexually transmitted infections (STIs) is published on <a href="https://www.gov.uk/government/collections/sexually-transmitted-infections-stis-surveillance-data-screening-and-management">https://www.gov.uk/government/collections/sexually-transmitted-infections-stis-surveillance-data-screening-and-managementLocal health services and commissioners can access more detailed local data through the HIV/STI Web Portal. These reports are generated quarterly using CTAD and GUMCADv2 data. Access is restricted to authorised users:<a href="https://hivstiwebportal.phe.org.uk/login.aspx">https://hivstiwebportal.phe.org.uk/login.aspxFor access please contact mailto:CTAD@phe.gov.uk and further information can be found at <a href="https://www.gov.uk/guidance/chlamydia-testing-activity-dataset-ctad">https://www.gov.uk/guidance/chlamydia-testing-activity-dataset-ctad | W4: In 2012, several changes were made to the collection and reporting of chlamydia activity data, to deliver a simpler and more representative national surveillance system. It is important to note that as a result of the revisions, chlamydia data for 2012 onwards are not directly comparable with data reported in earlier years. For more information please see: <a href="https://www.gov.uk/guidance/chlamydia-testing-activity-dataset-ctad">https://www.gov.uk/guidance/chlamydia-testing-activity-dataset-ctadOffice of National Statistics Area Classification 2011 (ONS 2011 group), further details can be found at: <a href="http://webarchive.nationalarchives.gov.uk/20160105160709/http://www.ons.gov.uk/ons/guide-method/geography/products/area-classifications/national-statistics-area-classifications/national-statistics-2011-area-classifications/index.html">http://webarchive.nationalarchives.gov.uk/20160105160709/http://www.ons.gov.uk/ons/guide-method/geography/products/area-classifications/national-statistics-area-classifications/national-statistics-2011-area-classifications/index.htmlValues for the Combined Authorities (CAs) in England defined as at 6th June 2017, have been provided directly. New CAs defined after 6 June 2017 and before the 2018 data refresh will be calculated automatically by the Fingertips software in the Sexual and Reproductive Health Profiles.This indicator appears in both the http://www.phoutcomes.info/ and PHEâ€™s http://fingertips.phe.org.uk/profile/sexualhealth . | X4: Annual | AB4: per 100,000 | AC4: Crude rate | AD4: Calendar | AE4: RAG - High is good
A5: 90777 | B5: Chlamydia proportion aged 15-24 screened | C5: Proportion of population aged 15 to 24 screened for chlamydia in specialist, non-specialist sexual health services (SHSs) | D5: All chlamydia tests (asymptomatic screens and symptomatic tests) undertaken in 15 to 24 year olds attending specialist and non-specialist SHSs* who are residents in England.Data excludes people accessing services located in England who are residents in Wales, Scotland, Northern Ireland or abroad. The England total Includes tests that did not have sufficient location information to be attributed to a local authority of residence.*Sexual health services (SHS) include both specialist (level 3) and non-specialist (level 1 & 2) SHSs. Specialist SHSs refers to genitourinary medicine (GUM) and integrated GUM/sexual and reproductive health (SRH) services. Non-specialist SHSs refers to SRH services, young peopleâ€™s services, online sexual health services, termination of pregnancy services, pharmacies, outreach, general practice, and other community-based settings. | E5: Chlamydia test coverage data represent the number of tests reported, and not the number of people tested.Chlamydia is the most common bacterial sexually transmitted infection in England, with rates substantially higher in young adults than any other age group.By diagnosing and treating asymptomatic chlamydia infections, chlamydia screening can reduce the duration of infection, which will reduce an individualâ€™s chance of developing complications, and also reduce the time when someone is at risk of passing the infection on, which in turn will reduce the spread of chlamydia in the population.The National Chlamydia Screening Programme (NCSP) recommends that all sexually active under 25 year old men and women be tested for chlamydia annually or on change of sexual partner (whichever is more frequent). | F5: The Department of Health Public Health Outcomes Framework recommends that local areas aim to achieve a chlamydia detection rate among 15 to 24 year olds of at least 2,300 per 100,000 population.The Department of Health has also outlined its ambition for good sexual health in A Framework for Sexual Health Improvement in England. This is available at: https://www.gov.uk/government/publications/a-framework-for-sexual-health-improvement-in-england | G5: Public Health England | H5: Data are reported via Chlamydia Testing Activity Dataset (CTAD), a mandatory laboratory based surveillance system for chlamydia tests in non-specialist SHSs, and via Genitourinary Medicine Clinic Activity Dataset (GUMCADv2), the mandatory STI surveillance system for all specialist SHSs in England. Data are collected and collated by the HIV & STI Department, National Infections Service, PHE, Colindale. | J5: Proportion of population aged 15 to 24 screened for chlamydia. The numerator is divided by the denominator and multiplied by 100. | L5: Confidence interval method: Exact PoissonA confidence interval is a range of values that is used to quantify the imprecision in the estimate of a particular indicator. Specifically it quantifies the imprecision that results from random variation in the measurement of the indicator. A wider confidence interval shows that the indicator value presented is likely to be a less precise estimate of the true underlying value.Confidence intervals have been calculated by the Public Health England using the Stata software package and are based on the exact Poisson method. | M5: The Chlamydia Testing Activity Dataset (CTAD) for activity in non-specialist sexual health services. Details of the CTAD methodology are available at: https://www.gov.uk/government/collections/chlamydia-surveillance-data-screening-and-management .The Genitourinary Medicine Clinic Activity Dataset (GUMCADv2) for activity in specialist SHSs. The SHHAPT code used for chlamydia is C4. From 2012, all chlamydia diagnoses at specialist SHSs that were previously diagnosed at another service (C4X) have been removed from diagnosis totals. Details of the GUMCADv2 methodology are available at: https://www.gov.uk/guidance/genitourinary-medicine-clinic-activity-dataset-gumcadv2 .Includes those diagnosed through NHS and local authority commissioned testing and excludes those diagnosed through private testing.A maximum of one chlamydia test or diagnosis per individual is counted within a six week period. Any further tests or diagnoses within the six week period are not counted. Diagnoses are kept in preference over negatives results during this process.The clinical criteria used to define a sexual health screen, which includes chlamydia, are given at: https://www.bashh.org/guidelines . | N5: All publicly funded tests (does not include tests paid for privately) among 15 to 24 year olds with a positive or negative chlamydia result in specialist and non-specialist SHSs. | O5: The denominators for 2012-2015 are taken from the respective 2012-2015 Office for National Statistics (ONS) population estimates from the 2011 Census (revised on 23 June 2016). The denominator for 2016 is also taken from the 2015 ONS population estimate, as the ONS population estimate for 2016 was released after this data was processed. | P5: Resident population aged 15-24. | Q5: Numbers between 1 & 4 with a population <10,000 are suppressed. Where counts for Isles of Scilly or City of London are between 1 and 4, these are combined with Cornwall or Hackney respectively. Where required, the counts for the relevant deprivation decile groups and/or ONS groups are also adjusted to reflect the suppressed or combined counts.Please follow this link for further details on data sharing and confidentiality: https://www.gov.uk/government/publications/hiv-and-sti-data-sharing-policy | R5: Every effort is made to ensure accuracy and completeness of the data, including web-based reporting with integrated checks on data quality. However, responsibility for the accuracy and completeness of data lies with the data submitter and service providers.Data are updated on an annual basis due to clinic/laboratory resubmissions and improvements to data cleaning. Data may differ from previous publications.Chlamydia diagnoses are recorded in both GUMCADv2 and CTAD datasets. Records are de-duplicated within the two data sets as part of data cleaning in order to prevent overestimation, prior to publication.Missing data in CTAD: Leeds General Infirmary Laboratory did not submit data for Q3 (July - September) 2016 and Q4 (October - December) 2016.This will affect the data for the areas where this laboratory is commissioned for chlamydia testing.Data reported through GUMCADv2 are representative of the patients accessing specialist SHSs. The coverage of NCSP screening services varies between health service areas. The number of diagnoses detected depends on the coverage of testing, and is likely to be an underestimate of the true number of infections in the population.CTAD data are based on tests with confirmed positive and negative results only. Tests with equivocal, inhibitory and insufficient results have been excluded as most people with these results are retested. | S5: The data shown in the Sexual and Reproductive Health Profiles are publicly available and there are no restrictions on their re-use.The polygon shape files used in the mapping function contain Ordnance Survey data (Â© Crown copyright and database rights 2017). | U5: National & regional level data are available on the NCSP data tables page: <a href="https://www.gov.uk/government/statistics/national-chlamydia-screening-programme-ncsp-data-tables">https://www.gov.uk/government/statistics/national-chlamydia-screening-programme-ncsp-data-tablesRelated local level indicators are available in the http://fingertips.phe.org.uk/profile/sexualhealth tool.Information on the surveillance and epidemiology of sexually transmitted infections (STIs) is published on <a href="https://www.gov.uk/government/collections/sexually-transmitted-infections-stis-surveillance-data-screening-and-management">https://www.gov.uk/government/collections/sexually-transmitted-infections-stis-surveillance-data-screening-and-managementLocal health services and commissioners can access more detailed local data through the HIV/STI Web Portal. These reports are generated quarterly using CTAD and GUMCADv2 data. Access is restricted to authorised users:<a href="https://hivstiwebportal.phe.org.uk/login.aspx">https://hivstiwebportal.phe.org.uk/login.aspxFor access please contact mailto:CTAD@phe.gov.uk and further information can be found at <a href="https://www.gov.uk/guidance/chlamydia-testing-activity-dataset-ctad">https://www.gov.uk/guidance/chlamydia-testing-activity-dataset-ctad | W5: In 2012, several changes were made to the collection and reporting of chlamydia activity data, to deliver a simpler and more representative national surveillance system. It is important to note that as a result of the revisions, chlamydia data for 2012 onwards are not directly comparable with data reported in earlier years. For more information please see <a href="https://www.gov.uk/guidance/chlamydia-testing-activity-dataset-ctad">https://www.gov.uk/guidance/chlamydia-testing-activity-dataset-ctadOffice of National Statistics 2011 Area Classification (ONS 2011group), further details can be found at: <a href="http://webarchive.nationalarchives.gov.uk/20160105160709/http://www.ons.gov.uk/ons/guide-method/geography/products/area-classifications/ns-area-classifications/ns-2011-area-classifications/index.html">http://webarchive.nationalarchives.gov.uk/20160105160709/http://www.ons.gov.uk/ons/guide-method/geography/products/area-classifications/ns-area-classifications/ns-2011-area-classifications/index.htmlValues for the Combined Authorities (CAs) in England defined by 6th June 2017, have been provided directly. New CAs defined after 6 June 2017 and before the 2018 data refresh will be calculated automatically by the Fingertips software in the Sexual and Reproductive Health Profiles.This indicator appears in both the http://www.phoutcomes.info/ and PHE http://fingertips.phe.org.uk/profile/sexualhealth . | X5: Annual | AB5: % | AC5: Proportion | AD5: Calendar | AE5: RAG - High is good
A6: 91306 | B6: New STI diagnoses (exc chlamydia aged <25) / 100,000 | C6: New sexually transmitted infection (STI) diagnoses (excluding chlamydia in under 25 year olds) per 100,000 population aged 15 to 64 | D6: STI diagnoses (excluding chlamydia in under 25 year olds) among people accessing specialist and non-specialist sexual health services in England. Data represent STI diagnoses among people who are resident in England. Data exclude people accessing services located in England who are resident in Wales, Scotland, Northern Ireland or abroad. Data are expressed as a rate per 100,000 population aged 15-64 years. | E6: A summary figure of all new STI diagnoses, excluding diagnoses of chlamydia in the age group targeted by the National Chlamydia Screening Programme (NCSP).Diagnosis rates of STIs should be interpreted alongside the corresponding testing rate and positivity which can influence local diagnoses rates and are also available within the http://fingertips.phe.org.uk/profile/sexualhealth tool. A high diagnosis rate is indicative of a high burden of infection however, a low diagnosis rate may be explained by other factors as well. To help interpret the data, please refer to the latest Health Protection Report on Sexually Transmitted Infections and Chlamydia Screening in England, available at: <a href="https://www.gov.uk/government/statistics/sexually-transmitted-infections-stis-annual-data-tables">https://www.gov.uk/government/statistics/sexually-transmitted-infections-stis-annual-data-tables | F6: Sexual health is a key public health issue. The Department of Health has outlined its ambition for good sexual health in A Framework for Sexual Health Improvement in England. This is available at: https://www.gov.uk/government/publications/a-framework-for-sexual-health-improvement-in-england | G6: Public Health England | H6: Data from sexual health services are reported via Genitourinary Medicine Clinic Activity Dataset (GUMCADv2), the mandatory STI surveillance system for all commissioned sexual health services in England. For chlamydia, data from non-specialist sexual health services are reported via Chlamydia Testing Activity Dataset (CTAD), a mandatory laboratory based surveillance system for chlamydia tests. Data are collected and collated by the HIV & STI Department, National Infections Service, PHE, Colindale. | J6: Rate per 100,000 population (aged 15 to 64). The numerator is divided by the denominator and multiplied by 100,000. | L6: Confidence interval method: Exact PoissonA confidence interval is a range of values that is used to quantify the imprecision in the estimate of a particular indicator. Specifically it quantifies the imprecision that results from random variation in the measurement of the indicator. A wider confidence interval shows that the indicator value presented is likely to be a less precise estimate of the true underlying value.Confidence intervals have been calculated by the Public Health England using the Stata software package and are based on the exact Poisson method. | M6: The SHHAPT codes for new STI diagnoses excluding chlamydia in under 25 year olds are: chancroid / LGV / donovanosis (C1, C2+, C3); chlamydia in ages 25 and over (C4+); gonorrhoea (B*+); first episode anogenital herpes (C10A); new HIV diagnosis (H1*, H1A*, H1B*); molluscum contagiosum (C12); non-specific genital infection (NSGI+) (C4N); pelvic inflammatory disease (PID) & epididymitis: non-specific (C5A); scabies / pediculosis pubis (C8, C9); syphilis: primary, secondary & early latent (A1*, A2*, A3*); Trichomoniasis (C6A*); first episode anogenital warts (C11A).In 2015, the new STI diagnoses group was expanded to include new codes that were not previously reported via GUMCADv2. The new codes include: Mycoplasma genitalium (C16); Shigella: flexneri, sonnei and unspecified (SG1, SG2, SG3).*Including diagnoses reported as â€˜previously diagnosed at another serviceâ€™+Including extra-genital diagnoses | N6: The number of new STI diagnoses (excluding chlamydia in those aged under 25 years) among people accessing sexual health services* in England who are also residents in England.*Sexual health services (SHS) include both specialist (level 3) and non-specialist (level 1 & 2) SHSs. Specialist SHSs refers to genitourinary medicine (GUM) and integrated GUM/sexual and reproductive health (SRH). Non-specialist SHSs refers to SRH services, young peopleâ€™s services, online sexual health services, termination of pregnancy services, pharmacies, outreach, general practice, and other community-based settings. | O6: The denominators for 2012-2015 are taken from the respective 2012-2015 Office for National Statistics (ONS) population estimates from the 2011 Census (revised on 23 June 2016). The denominator for 2016 is also taken from the 2015 ONS population estimate, as the ONS population estimate for 2016 will have been released after this data was processed. | P6: Population aged 15 to 64. | Q6: Numbers between 1 & 4 with a population <10,000 are suppressed. Where counts for Isles of Scilly or City of London are between 1 and 4, these are combined with Cornwall or Hackney respectively Where required, the counts for the relevant deprivation decile groups and/or ONS groups are also adjusted to reflect the suppressed or combined counts.Please follow this link for further details on data sharing and confidentiality: https://www.gov.uk/government/publications/hiv-and-sti-data-sharing-policy | R6: Diagnosis rates of STIs should be interpreted alongside the corresponding testing rate and positivity. A high diagnosis rate is indicative of a high burden of infection however, a low diagnosis rate may be explained by other factors as well.Every effort is made to ensure accuracy and completeness of GUMCADv2 data, including web-based reporting with integrated checks on data quality. However, responsibility for the accuracy and completeness of data lies with the reporting service.Data are updated on an annual basis due to clinic/laboratory resubmissions and improvements to data cleaning. Data may differ from previous publications.Data reported through GUMCADv2 are not representative of the general population because they only represent patients accessing sexual health services.This indicator appears in the PHE http://fingertips.phe.org.uk/profile/health-profiles and the http://fingertips.phe.org.uk/profile/sexualhealth . Since the Sexual and Reproductive Health Profiles are updated before the Health Profiles, the information may be out of step for a short period of time. | S6: The data shown in the Sexual and Reproductive Health Profiles are publicly available and there are no restrictions on their re-use.The polygon shape files used in the mapping function contain Ordnance Survey data (Â© Crown copyright and database rights 2017). | U6: National & regional level data are updated annually on the STI annual data page: <a href="https://www.gov.uk/government/statistics/sexually-transmitted-infections-stis-annual-data-tables">https://www.gov.uk/government/statistics/sexually-transmitted-infections-stis-annual-data-tablesPlease note that data published on the STI annual data page are based on location of reporting service thus will differ from figures presented here, which are based on area of residence.Related local level indicators such as STI testing rate and STI testing positivity, which can influence local diagnoses rates and can help in their interpretation are also available within the http://fingertips.phe.org.uk/profile/sexualhealth tool.Information for chlamydia diagnoses in 15 to 24 year olds is published on the NCSP page: <a href="https://www.gov.uk/government/collections/national-chlamydia-screening-programme-ncsp">https://www.gov.uk/government/collections/national-chlamydia-screening-programme-ncspLocal health services and commissioners can access more detailed local data through the HIV/STI Web Portal. These reports are generated quarterly using CTAD and GUMCADv2 data. Access is restricted to authorised users:<a href="https://www.hpawebservices.org.uk/HIV_STI_WebPortal/login.aspx">https://hivstiwebportal.phe.org.uk/login.aspxFurther information can be found at https://www.gov.uk/genitourinary-medicine-clinic-activity-dataset-gumcadv2 or please contact mailto:gumcad@phe.gov.uk . | W6: Office of National Statistics 2011 Area Classification (ONS 2011group), further details can be found at: <a href="http://webarchive.nationalarchives.gov.uk/20160105160709/http://www.ons.gov.uk/ons/guide-method/geography/products/area-classifications/ns-area-classifications/ns-2011-area-classifications/index.html">http://webarchive.nationalarchives.gov.uk/20160105160709/http://www.ons.gov.uk/ons/guide-method/geography/products/area-classifications/ns-area-classifications/ns-2011-area-classifications/index.htmlValues for the Combined Authorities (CAs) in England defined by 6th June 2017 have been provided directly. New CAs defined after 6 June 2017 and before the 2018 data refresh will be calculated automatically by the Fingertips software in the Sexual and Reproductive Health Profiles. | X6: Annual | AB6: per 100,000 | AC6: Crude rate | AD6: Calendar | AE6: RAG - Low is good
A7: 91046 | B7: Genital herpes diagnosis rate / 100,000 | C7: Rate of first episode genital herpes diagnoses per 100,000 population | D7: All diagnoses of first episode genital herpes among people accessing specialist and non-specialist sexual health services in England who are also residents in England, expressed as a rate per 100,000 population. Data exclude people accessing services located in England who are resident in Wales, Scotland, Northern Ireland or abroad. | E7: Genital herpes is the most common ulcerative sexually transmitted infection seen in England. Infections are frequently due to herpes simplex virus (HSV) type 2, although HSV-1 infection is also seen. Recurrent infections are common with patients returning for treatment. | F7: Sexual health is a key public health issue. The Department of Health has outlined its ambition for good sexual health in A Framework for Sexual Health Improvement in England. This is available at: <a href="https://www.gov.uk/government/publications/a-framework-for-sexual-health-improvement-in-england">https://www.gov.uk/government/publications/a-framework-for-sexual-health-improvement-in-england | G7: Public Health England | H7: Data are reported via Genitourinary Medicine Clinic Activity Dataset (GUMCADv2), the mandatory STI surveillance system for all commissioned sexual health services in England. GUMCADv2 returns are collected and collated by the HIV & STI Department, National Infections Service, PHE, Colindale. | J7: Rate per 100,000 population. The numerator is divided by the denominator and multiplied by 100,000. | L7: Confidence interval method: Exact PoissonA confidence interval is a range of values that is used to quantify the imprecision in the estimate of a particular indicator. Specifically it quantifies the imprecision that results from random variation in the measurement of the indicator. A wider confidence interval shows that the indicator value presented is likely to be a less precise estimate of the true underlying value.Confidence intervals have been calculated by the Public Health England using the Stata software package and are based on the exact Poisson method. | M7: The SHHAPT code for genital herpes (first episode) is C10A. The clinical criteria used to diagnose the conditions are given at: http://www.bashh.org/guidelines .Data were de-duplicated to ensure that a patient received a diagnostic code only once for each episode. Patients cannot be tracked between services and therefore de-duplication relies on patient attendances at a single service. | N7: The number of diagnoses of genital herpes (first episode) among people accessing sexual health services* in England who are also residents in England.*Sexual health services (SHS) include both specialist (level 3) and non-specialist (level 1 & 2) SHSs. Specialist SHSs refers to genitourinary medicine (GUM) and integrated GUM/sexual and reproductive health (SRH). Non-specialist SHSs refers to SRH services, young peopleâ€™s services, online sexual health services, termination of pregnancy services, pharmacies, outreach, general practice, and other community-based settings. | O7: The denominators for 2012-2015 are taken from the respective 2012-2015 Office for National Statistics (ONS) population estimates from the 2011 Census (revised on 23 June 2016). The denominator for 2016 is also taken from the 2015 ONS population estimate, as the ONS population estimate for 2016 will have been released after this data was processed. | P7: Total population. | Q7: Numbers between 1 & 4 with a population <10,000 are suppressed. Where counts for Isles of Scilly or City of London are between 1 and 4, these are combined with Cornwall or Hackney respectively.Please follow this link for further details on data sharing and confidentiality:<a href="https://www.gov.uk/government/publications/hiv-and-sti-data-sharing-policy">https://www.gov.uk/government/publications/hiv-and-sti-data-sharing-policy | R7: Every effort is made to ensure accuracy and completeness of GUMCADv2 data, including web-based reporting with integrated checks on data quality. However, responsibility for the accuracy and completeness of data lies with the reporting service.Data are updated on an annual basis due to clinic/laboratory resubmissions and improvements to data cleaning. Data may differ from previous publications.Data reported through GUMCADv2 are not representative of the general population because they only represent patients accessing sexual health services. | S7: The data shown in the Sexual and Reproductive Health Profiles are publicly available and there are no restrictions on their re-use.The polygon shape files used in the mapping function contain Ordnance Survey data (Â© Crown copyright and database rights 2017). | U7: National & regional level data are updated annually on the STI annual data page: <a href="https://www.gov.uk/government/statistics/sexually-transmitted-infections-stis-annual-data-tables">https://www.gov.uk/government/statistics/sexually-transmitted-infections-stis-annual-data-tables<a href="https://www.gov.uk/government/statistics/sexually-transmitted-infections-stis-annual-data-tables">Please note that data published on the STI annual data page are based on location of reporting service thus will differ from figures presented here, which are based on area of residence.Related local level indicators such as STI testing rate and STI testing positivity, which can influence local diagnoses rates and can help in their interpretation are also available within the http://fingertips.phe.org.uk/profile/sexualhealth tool.Information for chlamydia diagnoses in 15 to 24 year olds is published on the NCSP page: <a href="https://www.gov.uk/government/collections/national-chlamydia-screening-programme-ncsp">https://www.gov.uk/government/collections/national-chlamydia-screening-programme-ncsp<a href="https://www.gov.uk/government/collections/national-chlamydia-screening-programme-ncsp">Local health services and commissioners can access more detailed local data through the HIV/STI Web Portal. These reports are generated quarterly using GUMCADv2 data. Access is restricted to authorised users: https://hivstiwebportal.phe.org.uk/login.aspx <a href="https://www.hpawebservices.org.uk/HIV_STI_WebPortal/login.aspx"><a href="https://www.hpawebservices.org.uk/HIV_STI_WebPortal/login.aspx">Further information can be found at https://www.gov.uk/genitourinary-medicine-clinic-activity-dataset-gumcadv2 or please contact mailto:gumcad@phe.gov.uk . | W7: Office of National Statistics 2011 Area Classification (ONS 2011group), further details can be found at: <a href="http://webarchive.nationalarchives.gov.uk/20160105160709/http://www.ons.gov.uk/ons/guide-method/geography/products/area-classifications/ns-area-classifications/ns-2011-area-classifications/index.html">http://webarchive.nationalarchives.gov.uk/20160105160709/http://www.ons.gov.uk/ons/guide-method/geography/products/area-classifications/ns-area-classifications/ns-2011-area-classifications/index.htmlOverall values for each of the thirteen ONS 2011 Groups and the deprivation deciles were calculated automatically by the Fingertips software used in the Sexual and Reproductive Health Profiles.Values for the Combined Authorities (CAs) in England defined by 6th June 2017 have been provided directly. New CAs defined after 6 June 2017 and before the 2018 data refresh will be calculated automatically by the Fingertips software in the Sexual and Reproductive Health Profiles. | X7: Annual | AB7: per 100,000 | AC7: Crude rate | AD7: Calendar | AE7: RAG - Low is good
A8: 90729 | B8: Genital warts diagnostic rate / 100,000 | C8: Rate of first episode genital warts diagnoses per 100,000 population | D8: All diagnoses of first episode genital warts among people accessing specialist and non-specialist sexual health services in England who are also residents in England, expressed as a rate per 100,000 population. Data exclude people accessing services located in England who are resident in Wales, Scotland, Northern Ireland or abroad. | E8: Genital warts are the second most commonly diagnosed sexually transmitted infection (STI) in the UK and are caused by infection with specific subtypes of human papillomavirus (HPV). Recurrent infections are common with patients returning for treatment. | F8: Sexual health is a key public health issue. The Department of Health has outlined its ambition for good sexual health in A Framework for Sexual Health Improvement in England. This is available at: <a href="https://www.gov.uk/government/publications/a-framework-for-sexual-health-improvement-in-england">https://www.gov.uk/government/publications/a-framework-for-sexual-health-improvement-in-england | G8: Public Health England | H8: Data are reported via Genitourinary Medicine Clinic Activity Dataset (GUMCADv2), the mandatory STI surveillance system for all commissioned sexual health services in England. GUMCADv2 returns are collected and collated by the HIV & STI Department, National Infections Service, PHE, Colindale. | J8: Rate per 100,000 population. The numerator is divided by the denominator and multiplied by 100,000. | L8: Confidence interval method: Exact PoissonA confidence interval is a range of values that is used to quantify the imprecision in the estimate of a particular indicator. Specifically it quantifies the imprecision that results from random variation in the measurement of the indicator. A wider confidence interval shows that the indicator value presented is likely to be a less precise estimate of the true underlying value.Confidence intervals have been calculated by the Public Health England using the Stata software package and are based on the exact Poisson method. | M8: The SHHAPT code used for first episode genital warts is C11A. The clinical criteria used to diagnose the condition are given at: http://www.bashh.org/guidelines .Data were de-duplicated to ensure that a patient only received a diagnostic code once for each episode. Patients cannot be tracked between services and therefore de-duplication relies on patient attendances at a single service. | N8: The number of diagnoses of first episode genital warts among people accessing sexual health services* in England who are also residents in England.*Sexual health services (SHS) include both specialist (level 3) and non-specialist (level 1 & 2) SHSs. Specialist SHSs refers to genitourinary medicine (GUM) and integrated GUM/sexual and reproductive health (SRH). Non-specialist SHSs refers to SRH services, young peopleâ€™s services, online sexual health services, termination of pregnancy services, pharmacies, outreach, general practice, and other community-based settings. | O8: The denominators for 2012-2015 are taken from the respective 2012-2015 Office for National Statistics (ONS) population estimates from the 2011 Census (revised on 23 June 2016). The denominator for 2016 is also taken from the 2015 ONS population estimate, as the ONS population estimate for 2016 will have been released after this data was processed. | P8: Total population. | Q8: Numbers between 1 & 4 with a population <10,000 are suppressed. Where counts for Isles of Scilly or City of London are between 1 and 4, these are combined with Cornwall or Hackney respectively.Please follow this link for further details on data sharing and confidentiality:<a href="https://www.gov.uk/government/publications/hiv-and-sti-data-sharing-policy">https://www.gov.uk/government/publications/hiv-and-sti-data-sharing-policy | R8: Every effort is made to ensure accuracy and completeness of GUMCADv2 data, including web-based reporting with integrated checks on data quality. However, responsibility for the accuracy and completeness of data lies with the reporting service.Data are updated on an annual basis due to clinic/laboratory resubmissions and improvements to data cleaning. Data may differ from previous publications.Data reported through GUMCADv2 are not representative of the general population because they only represent patients accessing sexual health services. | S8: The data shown in the Sexual and Reproductive Health Profiles are publicly available and there are no restrictions on their re-use.The polygon shape files used in the mapping function contain Ordnance Survey data (Â© Crown copyright and database rights 2017). | U8: National & regional level data are updated annually on the STI annual data page: <a href="https://www.gov.uk/government/statistics/sexually-transmitted-infections-stis-annual-data-tables">https://www.gov.uk/government/statistics/sexually-transmitted-infections-stis-annual-data-tables<a href="https://www.gov.uk/government/statistics/sexually-transmitted-infections-stis-annual-data-tables">Please note that data published on the STI annual data page are based on location of reporting service thus will differ from figures presented here, which are based on area of residence.Related local level indicators such as STI testing rate and STI testing positivity, which can influence local diagnoses rates and can help in their interpretation are also available within the http://fingertips.phe.org.uk/profile/sexualhealth tool.Information for chlamydia diagnoses in 15 to 24 year olds is published on the NCSP page: <a href="https://www.gov.uk/government/collections/national-chlamydia-screening-programme-ncsp">https://www.gov.uk/government/collections/national-chlamydia-screening-programme-ncsp<a href="https://www.gov.uk/government/collections/national-chlamydia-screening-programme-ncsp">Local health services and commissioners can access more detailed local data through the HIV/STI Web Portal. These reports are generated quarterly using GUMCADv2 data. Access is restricted to authorised users:<a href="https://hivstiwebportal.phe.org.uk/login.aspx">https://hivstiwebportal.phe.org.uk/login.aspxFurther information can be found at https://www.gov.uk/genitourinary-medicine-clinic-activity-dataset-gumcadv2 or please contact mailto:gumcad@phe.gov.uk . | W8: Office of National Statistics 2011 Area Classification (ONS 2011group), further details can be found at: <a href="http://webarchive.nationalarchives.gov.uk/20160105160709/http://www.ons.gov.uk/ons/guide-method/geography/products/area-classifications/ns-area-classifications/ns-2011-area-classifications/index.html">http://webarchive.nationalarchives.gov.uk/20160105160709/http://www.ons.gov.uk/ons/guide-method/geography/products/area-classifications/ns-area-classifications/ns-2011-area-classifications/index.htmlOverall values for each of the thirteen ONS 2011 Groups and the deprivation deciles were calculated automatically by the Fingertips software used in the Sexual and Reproductive Health Profiles.Values for the Combined Authorities (CAs) in England defined by 6th June 2017 have been provided directly. New CAs defined after 6 June 2017 and before the 2018 data refresh will be calculated automatically by the Fingertips software in the Sexual and Reproductive Health Profiles. | X8: Annual | AB8: per 100,000 | AC8: Crude rate | AD8: Calendar | AE8: RAG - Low is good
